Service Area,Service Division,Expense Type,Expense Code,Detailed Expense Type,Payment Date,Transaction Number,Amount Exc Vat,Supplier Name
Adults Wellbeing and Health,Commissioning inc Supporting People,Third Party Payments,479111,Purchase of Care,01-Jun-2012,2453907-1,"11,994.75",VISUAL IMPAIRMENT PROBLEM SOLVING IN COUNTY DURHAM.
Adults Wellbeing and Health,Commissioning inc Supporting People,Supplies and Services,338099,Services,01-Jun-2012,2453852-3852860,"6,665.73",PERFORMING RIGHTS SOCIETY LTD.
Adults Wellbeing and Health,Commissioning inc Supporting People,Supplies and Services,324001,Provisions,01-Jun-2012,2453723-EW52887531,737.98,CARLSBERG UK LTD.
Adults Wellbeing and Health,Commissioning inc Supporting People,Supplies and Services,304259,Equipment and Materials,01-Jun-2012,2453728-544,"9,924.00",CHRISTOPHER HENRY T/A WILDWOOD CUMBRIA.
Adults Wellbeing and Health,Commissioning inc Supporting People,Supplies and Services,338047,Services,01-Jun-2012,2453748-FCM4018,"3,023.36",FAIRPORT CONVENTION LTD.
Adults Wellbeing and Health,Commissioning inc Supporting People,Supplies and Services,384199,Miscellaneous Expenses,01-Jun-2012,2453888-19,"1,425.00",SURFACE AREA DANCE THEATRE.
Adults Wellbeing and Health,Financing-Adult Services,Debtors,930131,Debtor-Hospital Re-Admission Avoidance Project,01-Jun-2012,2453791-13482,886.20,KELLY PARK CARING AGENCY LTD.
Adults Wellbeing and Health,Planning and Performance,Supplies and Services,332001,"Printing, Stationery and Gen Off Exps",01-Jun-2012,2453906-1338,"1,500.00",VISIT COUNTY DURHAM.
Adults Wellbeing and Health,Social Inclusion,Supplies and Services,384199,Miscellaneous Expenses,01-Jun-2012,2453765-3632,"1,238.02",HI LIGHTS THEATRE SERVICES.
Assistant Chief Executive,Partnerships & Community Engagement Div.,Supplies and Services,384086,Miscellaneous Expenses,01-Jun-2012,2453851-CHES028-NB11,"4,000.00",PELTON FELL COMMUNITY PARTNERSHIP.
Assistant Chief Executive,Partnerships & Community Engagement Div.,Transfer Payments,525030,Other,01-Jun-2012,2453855-GAF,"2,000.00",PLAWSWORTH & KIMBLESWORTH COMMUNITY ASSOCIATION.
Assistant Chief Executive,Partnerships & Community Engagement Div.,Transfer Payments,525030,Other,01-Jun-2012,2453912-GAF,"3,500.00",WEST RAINTON & LEAMSIDE COMMUNITY ASSOCIATION.
Children and Young Peoples Services,CYPS - Local Authority,Supplies and Services,384491,Miscellaneous Expenses,01-Jun-2012,2453721-C21,"1,529.55",BUTTERCUP NURSERIES LTD.
Children and Young Peoples Services,CYPS - Local Authority,Supplies and Services,338045,Services,01-Jun-2012,2453739-UA11C00114,600.00,REDACTED - PAYMENT TO INDIVIDUAL
Children and Young Peoples Services,CYPS - Local Authority,Supplies and Services,338045,Services,01-Jun-2012,2453767-Y460/80,"2,225.00",HMCTS.
Children and Young Peoples Services,CYPS - Local Authority,Employees,080025,Agency Staff,01-Jun-2012,2453776-A057,925.00,IMPROVEMENT FOCUS LTD.
Children and Young Peoples Services,CYPS - Local Authority,Construction Work,908105,Construction work,01-Jun-2012,2453779-DURH/0221,"808,629.60",INSPIREDSPACES DURHAM LTD.
Children and Young Peoples Services,CYPS - Local Authority,Supplies and Services,338045,Services,01-Jun-2012,2453807-286022/INVCG125,"1,150.00",MISS CLAIRE GIBSON.
Children and Young Peoples Services,CYPS - Local Authority,Supplies and Services,338045,Services,01-Jun-2012,2453810-286029/INVPM50,650.00,MISS PAULINE MOULDER.
Children and Young Peoples Services,CYPS - Local Authority,Supplies and Services,338045,Services,01-Jun-2012,2453810-286291/INVPM51,500.00,MISS PAULINE MOULDER.
Children and Young Peoples Services,CYPS - Local Authority,Supplies and Services,384638,Miscellaneous Expenses,01-Jun-2012,2453836-COM4182,"1,762.00",NORTH EAST AUTISM SOCIETY.
Children and Young Peoples Services,CYPS - Local Authority,Supplies and Services,384638,Miscellaneous Expenses,01-Jun-2012,2453836-COM4190,"1,287.00",NORTH EAST AUTISM SOCIETY.
Children and Young Peoples Services,CYPS - Local Authority,Supplies and Services,384638,Miscellaneous Expenses,01-Jun-2012,2453836-COM4195,"1,181.00",NORTH EAST AUTISM SOCIETY.
Children and Young Peoples Services,CYPS - Local Authority,Supplies and Services,384638,Miscellaneous Expenses,01-Jun-2012,2453836-COM4201,897.00,NORTH EAST AUTISM SOCIETY.
Children and Young Peoples Services,CYPS - Local Authority,Supplies and Services,384638,Miscellaneous Expenses,01-Jun-2012,2453836-COM4325,"2,769.00",NORTH EAST AUTISM SOCIETY.
Children and Young Peoples Services,CYPS - Local Authority,Supplies and Services,384638,Miscellaneous Expenses,01-Jun-2012,2453836-COM4329,598.50,NORTH EAST AUTISM SOCIETY.
Children and Young Peoples Services,CYPS - Local Authority,Supplies and Services,384638,Miscellaneous Expenses,01-Jun-2012,2453836-COM4333,"1,004.00",NORTH EAST AUTISM SOCIETY.
Children and Young Peoples Services,CYPS - Local Authority,Supplies and Services,384638,Miscellaneous Expenses,01-Jun-2012,2453836-COM4390,"1,074.00",NORTH EAST AUTISM SOCIETY.
Children and Young Peoples Services,CYPS - Local Authority,Supplies and Services,384638,Miscellaneous Expenses,01-Jun-2012,2453836-COM4393,"2,121.00",NORTH EAST AUTISM SOCIETY.
Children and Young Peoples Services,CYPS - Local Authority,Supplies and Services,384638,Miscellaneous Expenses,01-Jun-2012,2453836-COM4397,598.50,NORTH EAST AUTISM SOCIETY.
Children and Young Peoples Services,CYPS - Local Authority,Supplies and Services,384638,Miscellaneous Expenses,01-Jun-2012,2453836-COM4404,"1,004.00",NORTH EAST AUTISM SOCIETY.
Children and Young Peoples Services,CYPS - Local Authority,Supplies and Services,384302,Miscellaneous Expenses,01-Jun-2012,2453871-RA10132,"1,718.75",ROCK ANTICS LTD.
Children and Young Peoples Services,CYPS - Local Authority,Supplies and Services,304259,Equipment and Materials,01-Jun-2012,2453880-384/12/0016747,845.00,SIEMENS FINANCIAL SERVICES LTD.
Children and Young Peoples Services,CYPS - Local Authority,Supplies and Services,342013,Computers and Communications,01-Jun-2012,2453887-4987811,993.48,SUPPLIES TEAM LTD.
Children and Young Peoples Services,CYPS - Local Authority,Transport,235005,Public Transport,01-Jun-2012,2453908-0913,"2,070.00",WEARDALE MOTOR SERVICES LTD.
Children and Young Peoples Services,Dedicated Schools Grant,Third Party Payments,425005,Rendered by Voluntary Organisations,01-Jun-2012,2453705-203301698,"19,495.36",BARNARDOS.
Children and Young Peoples Services,Dedicated Schools Grant,Third Party Payments,425005,Rendered by Voluntary Organisations,01-Jun-2012,2453705-203301699,"65,300.20",BARNARDOS.
Children and Young Peoples Services,Dedicated Schools Grant,Third Party Payments,425005,Rendered by Voluntary Organisations,01-Jun-2012,2453705-203301700,"10,126.37",BARNARDOS.
Children and Young Peoples Services,Dedicated Schools Grant,Third Party Payments,425005,Rendered by Voluntary Organisations,01-Jun-2012,2453705-203301701,"3,870.91",BARNARDOS.
Children and Young Peoples Services,Dedicated Schools Grant,Third Party Payments,425005,Rendered by Voluntary Organisations,01-Jun-2012,2453705-203301702,"11,613.02",BARNARDOS.
Children and Young Peoples Services,Dedicated Schools Grant,Premises,125009,Rents,01-Jun-2012,2453737-3026,"1,833.33",DEAN BANK & FERRYHILL LITERARY INSTITUTE.
Children and Young Peoples Services,Dedicated Schools Grant,Supplies and Services,340001,Postages,01-Jun-2012,2453752-IN0300345,900.00,FP TELESET.
Children and Young Peoples Services,Dedicated Schools Grant,Employees,080025,Agency Staff,01-Jun-2012,2453831-23,662.50,NEXT STEP CONSULTANCY.
Corporate Resources,Financing- Resources,Supplies and Services,384197,Miscellaneous Expenses,01-Jun-2012,2453777-4694,640.00,INGRAMS REMOVERS & STORERS.
Corporate Resources,ICT Services incl. Design and Print,Supplies and Services,342033,Computers and Communications,01-Jun-2012,2453778-11711928,697.72,INSIGHT DIRECT (UK) LTD.
Corporate Resources,ICT Services incl. Design and Print,Stock,926900,Stock in hand-Inventory system,01-Jun-2012,2453778-11714229,873.75,INSIGHT DIRECT (UK) LTD.
Corporate Resources,ICT Services incl. Design and Print,Stock,926900,Stock in hand-Inventory system,01-Jun-2012,2453778-11715341,"4,000.00",INSIGHT DIRECT (UK) LTD.
Corporate Resources,ICT Services incl. Design and Print,Supplies and Services,342225,Computers and Communications,01-Jun-2012,2453778-11716456,516.88,INSIGHT DIRECT (UK) LTD.
Corporate Resources,ICT Services incl. Design and Print,Supplies and Services,342051,Computers and Communications,01-Jun-2012,2453825-900005700,600.00,NCC SERVICES LTD.
Corporate Resources,ICT Services incl. Design and Print,Supplies and Services,332029,"Printing, Stationery and Gen Off Exps",01-Jun-2012,2453854-25252,"1,346.12",PLASTIC DATA CARD LTD.
Corporate Resources,Internal Audit and Insurance,Supplies and Services,384956,Miscellaneous Expenses,01-Jun-2012,2453802-2032,"2,211.00",MERITEC LTD.
Corporate Resources,Legal & Democratic Services,Supplies and Services,338013,Services,01-Jun-2012,2453702-6183436,"43,853.50",AUDIT COMMISSION.
Neighbourhood Services,Direct Services,Stock,926900,Stock in hand-Inventory system,01-Jun-2012,2453687-LLI246753,511.92,A THOMPSON & SONS LTD.
Neighbourhood Services,Direct Services,Stock,926900,Stock in hand-Inventory system,01-Jun-2012,2453687-LLI246840,"1,150.44",A THOMPSON & SONS LTD.
Neighbourhood Services,Direct Services,Stock,926900,Stock in hand-Inventory system,01-Jun-2012,2453711-8312094,871.80,BOLD NU TEC INSULATION PRODUCTS & SERVICES LTD.
Neighbourhood Services,Direct Services,"Vehicles, Equipment, Furniture and Fittings",912529,Purchase-equipment,01-Jun-2012,2453746-6687976,"28,755.18",ESE LTD (ENVIRONMENTAL SYSTEMS EXPERTISE)..
Neighbourhood Services,Direct Services,Stock,926004,Stock,01-Jun-2012,2453756-7782580,680.60,GB OILS T/A BRETT FUELS.
Neighbourhood Services,Direct Services,Stock,926004,Stock,01-Jun-2012,2453756-7804795,"4,605.60",GB OILS T/A BRETT FUELS.
Neighbourhood Services,Direct Services,Stock,926004,Stock,01-Jun-2012,2453756-7825552,"12,443.87",GB OILS T/A BRETT FUELS.
Neighbourhood Services,Direct Services,Stock,926004,Stock,01-Jun-2012,2453756-7825565,"3,352.00",GB OILS T/A BRETT FUELS.
Neighbourhood Services,Direct Services,Stock,926004,Stock,01-Jun-2012,2453756-7845152,"12,392.68",GB OILS T/A BRETT FUELS.
Neighbourhood Services,Direct Services,Stock,926004,Stock,01-Jun-2012,2453756-7863638,"13,515.60",GB OILS T/A BRETT FUELS.
Neighbourhood Services,Direct Services,Stock,926004,Stock,01-Jun-2012,2453756-7863699,"1,954.50",GB OILS T/A BRETT FUELS.
Neighbourhood Services,Direct Services,Supplies and Services,304357,Equipment and Materials,01-Jun-2012,2453757-8765,737.76,GEORGE VARDY HAULAGE.
Neighbourhood Services,Direct Services,Supplies and Services,304221,Equipment and Materials,01-Jun-2012,2453772-B33/0041355,615.38,HOWDEN JOINERY LTD.
Neighbourhood Services,Direct Services,Supplies and Services,304221,Equipment and Materials,01-Jun-2012,2453772-B33/0041356,721.80,HOWDEN JOINERY LTD.
Neighbourhood Services,Direct Services,Stock,926900,Stock in hand-Inventory system,01-Jun-2012,2453839-0310143,"1,125.00",NORTHERN TOOLS & ACCESSORIES.
Neighbourhood Services,Direct Services,Premises,120009,Energy Costs,01-Jun-2012,2453843-NNO694Q8,"2,813.44",NPOWER.
Neighbourhood Services,Direct Services,Stock,926004,Stock,01-Jun-2012,2453846-1296,526.60,ORBIT IMPERIAL LUBRICANTS.
Neighbourhood Services,Direct Services,Stock,926900,Stock in hand-Inventory system,01-Jun-2012,2453848-XL056310,"1,789.50",PARK ELECTRICAL DISTRIBUTORS LTD.
Neighbourhood Services,Direct Services,Stock,926900,Stock in hand-Inventory system,01-Jun-2012,2453848-XL056486,"3,003.90",PARK ELECTRICAL DISTRIBUTORS LTD.
Neighbourhood Services,Direct Services,Supplies and Services,304259,Equipment and Materials,01-Jun-2012,2453853-58551881,"2,221.56",PHS GROUP PLC.
Neighbourhood Services,Direct Services,Supplies and Services,304221,Equipment and Materials,01-Jun-2012,2453857-4120/133083,713.32,PLUMBING TRADE SUPPLIES LTD.
Neighbourhood Services,Direct Services,Premises,145009,Cleaning and Domestic Supplies,01-Jun-2012,2453860-368152,639.20,PREMIER WASTE RECYCLING LTD.
Neighbourhood Services,Direct Services,Third Party Payments,430105,Rendered by Private Contractors,01-Jun-2012,2453886-041779,"1,177.00",STONEGRAVE AGGREGATES LTD.
Neighbourhood Services,Direct Services,Supplies and Services,304221,Equipment and Materials,01-Jun-2012,2453889-0267853,622.68,T CROSSLING & CO LTD.
Neighbourhood Services,Direct Services,Supplies and Services,304221,Equipment and Materials,01-Jun-2012,2453900-91521,"1,356.85",TOMMY WARDLE.
Neighbourhood Services,Direct Services,Third Party Payments,430100,Rendered by Private Contractors,01-Jun-2012,2453902-107111,"6,174.00",TRADESLINK ASBESTOS SERVICES LTD.
Neighbourhood Services,Direct Services,Supplies and Services,304221,Equipment and Materials,01-Jun-2012,2453911-0000191054,649.55,WESSEX LIFT CO LTD.
Neighbourhood Services,Projects and Business services,Supplies and Services,340001,Postages,01-Jun-2012,2453873-9038551608,"3,483.27",ROYAL MAIL GROUP PLC.
Neighbourhood Services,Sport & Leisure,Supplies and Services,384700,Miscellaneous Expenses,01-Jun-2012,2453742-241098,760.00,DURHAM UNIVERSITY.
Neighbourhood Services,Sport & Leisure,Supplies and Services,304221,Equipment and Materials,01-Jun-2012,2453865-2156,"3,815.00",RA`ALLOY RAMPS LTD.
Neighbourhood Services,Sport & Leisure,Supplies and Services,384199,Miscellaneous Expenses,01-Jun-2012,2453869-18779,"1,150.00",ROADSAFE UK LTD.
Neighbourhood Services,Sport & Leisure,Third Party Payments,430100,Rendered by Private Contractors,01-Jun-2012,2453884-GP,"12,900.00",STANLEY INDOOR BOWLS CENTRE.
Neighbourhood Services,Technical Services,Supplies and Services,304221,Equipment and Materials,01-Jun-2012,2453687-LLI249054,675.85,A THOMPSON & SONS LTD.
Neighbourhood Services,Technical Services,Supplies and Services,304221,Equipment and Materials,01-Jun-2012,2453690-16191680,729.70,AGGREGATE INDUSTRIES UK LTD.
Neighbourhood Services,Technical Services,Supplies and Services,304221,Equipment and Materials,01-Jun-2012,2453690-16236854,596.78,AGGREGATE INDUSTRIES UK LTD.
Neighbourhood Services,Technical Services,Supplies and Services,304221,Equipment and Materials,01-Jun-2012,2453690-16409613,"2,032.28",AGGREGATE INDUSTRIES UK LTD.
Neighbourhood Services,Technical Services,Supplies and Services,304221,Equipment and Materials,01-Jun-2012,2453690-16418257,"1,086.15",AGGREGATE INDUSTRIES UK LTD.
Neighbourhood Services,Technical Services,Supplies and Services,304221,Equipment and Materials,01-Jun-2012,2453690-16424614,544.71,AGGREGATE INDUSTRIES UK LTD.
Neighbourhood Services,Technical Services,Supplies and Services,304221,Equipment and Materials,01-Jun-2012,2453690-16424615,545.81,AGGREGATE INDUSTRIES UK LTD.
Neighbourhood Services,Technical Services,Supplies and Services,304221,Equipment and Materials,01-Jun-2012,2453690-16438818,550.18,AGGREGATE INDUSTRIES UK LTD.
Neighbourhood Services,Technical Services,Supplies and Services,304221,Equipment and Materials,01-Jun-2012,2453690-16452914,"1,458.18",AGGREGATE INDUSTRIES UK LTD.
Neighbourhood Services,Technical Services,Supplies and Services,304221,Equipment and Materials,01-Jun-2012,2453690-16452915,850.46,AGGREGATE INDUSTRIES UK LTD.
Neighbourhood Services,Technical Services,Supplies and Services,304358,Equipment and Materials,01-Jun-2012,2453696-2728,650.00,ANDREW HARDY CONSTRUCTION.
Neighbourhood Services,Technical Services,Supplies and Services,304358,Equipment and Materials,01-Jun-2012,2453757-8748,962.00,GEORGE VARDY HAULAGE.
Neighbourhood Services,Technical Services,Supplies and Services,304358,Equipment and Materials,01-Jun-2012,2453757-8752,864.00,GEORGE VARDY HAULAGE.
Neighbourhood Services,Technical Services,Supplies and Services,304358,Equipment and Materials,01-Jun-2012,2453781-5304018,998.40,JA GILSON (AGRICULTURAL CONTRACTORS) LTD.
Neighbourhood Services,Technical Services,Supplies and Services,304358,Equipment and Materials,01-Jun-2012,2453786-11795,503.08,JOHN R BUTTERFIELD LTD.
Neighbourhood Services,Technical Services,Supplies and Services,304358,Equipment and Materials,01-Jun-2012,2453786-11823,570.24,JOHN R BUTTERFIELD LTD.
Neighbourhood Services,Technical Services,Supplies and Services,304358,Equipment and Materials,01-Jun-2012,2453786-11891,758.34,JOHN R BUTTERFIELD LTD.
Neighbourhood Services,Technical Services,Supplies and Services,304221,Equipment and Materials,01-Jun-2012,2453798-118380,"3,152.10",MACCAFERRI.
RED HRA,HRA Capital,Other Expenses,914001,Other capital expenses,01-Jun-2012,2453774-D04701,"1,848.63",ICI DULUX DECORATOR CENTRES.
RED HRA,HRA Capital,Construction Work,908105,Construction work,01-Jun-2012,2453785-143010,"19,292.50",JOHN FLOWERS LTD.
RED HRA,HRA Capital,Construction Work,908105,Construction work,01-Jun-2012,2453806-CON52730,"1,422.00",MIS ENVIRONMENTAL LTD.
RED HRA,HRA Capital,Construction Work,908105,Construction work,01-Jun-2012,2453818-027,600.00,MR KARL WALKER T/A KEPIER ENERGY CONNECTIONS.
Regeneration & Economic Development,Economic Development and Housing,Premises,135005,Water Services,01-Jun-2012,2453840-303696120013051,856.81,NORTHUMBRIAN WATER LTD.
Regeneration & Economic Development,"Spatial Policy, Planning, Assets & Environment",Construction Work,908105,Construction work,01-Jun-2012,2453878-LS/DCC0001,"10,000.00",SACRISTON COMMUNITY & SPORTS TRUST.
Regeneration & Economic Development,Transport,Creditors,952025,Creditor-private street works,01-Jun-2012,2453745-B/E,"15,224.27",ELLISON THOMAS LLP.
Regeneration & Economic Development,Transport,Supplies and Services,342053,Computers and Communications,01-Jun-2012,2453787-00701,"11,750.00",JOURNEY PLAN LTD.
Regeneration & Economic Development,Transport,Supplies and Services,342051,Computers and Communications,01-Jun-2012,2453787-00705,"1,800.00",JOURNEY PLAN LTD.
Regeneration & Economic Development,Transport,Supplies and Services,384540,Miscellaneous Expenses,01-Jun-2012,2453787-00707,"3,150.00",JOURNEY PLAN LTD.
Regeneration & Economic Development,Transport,Third Party Payments,430100,Rendered by Private Contractors,01-Jun-2012,2453844-012108,"92,539.46",NSL LTD.
Regeneration & Economic Development,Transport,Premises,145050,Cleaning and Domestic Supplies,01-Jun-2012,2453844-012109,"12,194.52",NSL LTD.
Adults Wellbeing and Health,Commissioning inc Supporting People,Transport,240045,Car Allowances,06-Jun-2012,2454922-2242,"21,543.46",SOCIAL RESOURCE CENTRE LTD.
Adults Wellbeing and Health,Commissioning inc Supporting People,Transport,240045,Car Allowances,06-Jun-2012,2454922-2301,"13,307.14",SOCIAL RESOURCE CENTRE LTD.
Adults Wellbeing and Health,Commissioning inc Supporting People,Supplies and Services,324001,Provisions,06-Jun-2012,2454579-EW52906932,827.00,CARLSBERG UK LTD.
Adults Wellbeing and Health,Commissioning inc Supporting People,Supplies and Services,332001,"Printing, Stationery and Gen Off Exps",06-Jun-2012,2454745-G15/MS/250412,"1,639.00",JUTIC.CO.UK.
Adults Wellbeing and Health,Commissioning inc Supporting People,Supplies and Services,338047,Services,06-Jun-2012,2454838-1029,"6,145.71",PASSWORD PRODUCTIONS LTD.
Adults Wellbeing and Health,Commissioning inc Supporting People,Supplies and Services,338047,Services,06-Jun-2012,2454985-IN12010063,"2,651.23",UNIVERSAL PICTURES INTERNATIONAL UK & EIRE LTD.
Adults Wellbeing and Health,Commissioning inc Supporting People,Supplies and Services,384199,Miscellaneous Expenses,06-Jun-2012,2454990-13A,"3,750.00",VAMOS FESTIVAL CIC.
Adults Wellbeing and Health,Financing-Adult Services,Debtors,930300,Sundry  debtors - Other LAs,06-Jun-2012,207986-R-CA,804.00,REDACTED - PAYMENT TO INDIVIDUAL
Adults Wellbeing and Health,Head of Adults,Supplies and Services,384619,Miscellaneous Expenses,06-Jun-2012,2454601-3136338,"28,638.00",CO DURHAM & DARLINGTON NHS FOUNDATION TRUST.
Adults Wellbeing and Health,Head of Adults,Transport,230005,Contract Hire,06-Jun-2012,2454604-9MAY12,"1,120.00",COLIN E GLEAVE.
Adults Wellbeing and Health,Head of Adults,Transport,230005,Contract Hire,06-Jun-2012,2454719-016,520.00,I CLYDESDALE T/A BURNOPFIELD TAXIS.
Adults Wellbeing and Health,Head of Adults,Supplies and Services,304259,Equipment and Materials,06-Jun-2012,2454830-CN18028836,598.80,OCS GROUP UK LTD T/A CANNON HYGIENE.
Adults Wellbeing and Health,Head of Adults,Employees,080025,Agency Staff,06-Jun-2012,2454954-430022142,813.75,TEES ESK & WEAR VALLEY NHS FOUNDATION TRUST.
Adults Wellbeing and Health,Head of Adults,Transport,230005,Contract Hire,06-Jun-2012,2454995-615,990.00,WAYNE`S TAXIS.
Adults Wellbeing and Health,Head of Adults,Transport,230005,Contract Hire,06-Jun-2012,2454995-618,500.00,WAYNE`S TAXIS.
Adults Wellbeing and Health,Head of Adults,Transport,230005,Contract Hire,06-Jun-2012,2454995-619,"1,830.00",WAYNE`S TAXIS.
Adults Wellbeing and Health,Head of Adults,Transport,230005,Contract Hire,06-Jun-2012,2454995-620,"1,100.00",WAYNE`S TAXIS.
Adults Wellbeing and Health,Head of Adults,Transport,230005,Contract Hire,06-Jun-2012,2454995-624,922.00,WAYNE`S TAXIS.
Adults Wellbeing and Health,Head of Adults,Transport,230005,Contract Hire,06-Jun-2012,2454995-625,"1,677.00",WAYNE`S TAXIS.
Adults Wellbeing and Health,Head of Adults,Transport,230005,Contract Hire,06-Jun-2012,2454995-626,"1,679.00",WAYNE`S TAXIS.
Adults Wellbeing and Health,Head of Adults,Transport,230005,Contract Hire,06-Jun-2012,2454995-627,"1,015.00",WAYNE`S TAXIS.
Adults Wellbeing and Health,Head of Adults,Transport,230005,Contract Hire,06-Jun-2012,2454758-20131,600.00,LAWRENCE DRUMMOND.
Adults Wellbeing and Health,Head of Adults,Transport,230005,Contract Hire,06-Jun-2012,2454961-16,646.00,THE TAXI CO.
Adults Wellbeing and Health,Head of Adults,Summary reporting level,720045,Fees and Charges,06-Jun-2012,207922-R-CA,683.69,REDACTED - PAYMENT TO INDIVIDUAL
Adults Wellbeing and Health,Social Inclusion,Supplies and Services,384199,Miscellaneous Expenses,06-Jun-2012,2454647-20009218,"2,000.00",DURHAM POLICE AUTHORITY.
Adults Wellbeing and Health,Social Inclusion,Supplies and Services,312009,"Newspapers, Books and Periodicals",06-Jun-2012,2454810-1678126,510.97,NEWSMARKET.
Adults Wellbeing and Health,Social Inclusion,Supplies and Services,384199,Miscellaneous Expenses,06-Jun-2012,2454988-10367918,"7,500.00",UNIVERSITY OF TEESSIDE.
Adults Wellbeing and Health,Social Inclusion,Supplies and Services,364999,Grants to Voluntary Organisations,06-Jun-2012,207803-GA11/12,"10,500.00",CHILTON COMMUNITY COLLEGE.
Adults Wellbeing and Health,Social Inclusion,Supplies and Services,384199,Miscellaneous Expenses,06-Jun-2012,207787-2,500.00,BADAPPLE THEATRE CO LTD.
Assistant Chief Executive,Assistant Chief Executive Financing,Supplies and Services,340001,Postages,06-Jun-2012,2454894-9038630048,"3,305.07",ROYAL MAIL GROUP PLC.
Assistant Chief Executive,Partnerships & Community Engagement Div.,Cap Exp on Grants & Other Financial Assistance (REFCUS),918004,Contributions to other bodies,06-Jun-2012,207965-12NB-GAMP006,"6,877.00",ST MARY ST JOSEPHS PARISH (LUNCH CLUB).
Assistant Chief Executive,Partnerships & Community Engagement Div.,Transfer Payments,525030,Other,06-Jun-2012,2454554-G,"2,000.00",BISHOP MIDDLEHAM VILLAGE HALL ASSOCIATION.
Assistant Chief Executive,Partnerships & Community Engagement Div.,Transfer Payments,525030,Other,06-Jun-2012,2454573-G,"2,000.00",BUTTERKNOWLE & DIST VILLAGE HALL ASSOCIATION.
Assistant Chief Executive,Partnerships & Community Engagement Div.,Transfer Payments,525030,Other,06-Jun-2012,2454651-G,"1,664.00",EBCHESTER COMMUNITY ASSOCIATION.
Assistant Chief Executive,Partnerships & Community Engagement Div.,Transfer Payments,525030,Other,06-Jun-2012,2454733-W007-AB11,"5,300.00",JACK DRUM ARTS LTD.
Assistant Chief Executive,Partnerships & Community Engagement Div.,Transfer Payments,525030,Other,06-Jun-2012,2454756-G,568.00,LANDS VILLAGE HALL ASSOCIATION.
Assistant Chief Executive,Partnerships & Community Engagement Div.,Transfer Payments,525030,Other,06-Jun-2012,2454796-G,"2,000.00",MURTON COMMUNITY ASSOCIATION.
Assistant Chief Executive,Partnerships & Community Engagement Div.,Transfer Payments,525030,Other,06-Jun-2012,2454811-12AB-GAMP003,"1,868.00",NEWTON AYCLIFFE YOUTH CENTRE.
Assistant Chief Executive,Partnerships & Community Engagement Div.,Transfer Payments,525030,Other,06-Jun-2012,2454811-G,"3,500.00",NEWTON AYCLIFFE YOUTH CENTRE.
Assistant Chief Executive,Partnerships & Community Engagement Div.,Supplies and Services,384086,Miscellaneous Expenses,06-Jun-2012,2454924-TEES022-NB11,"3,000.00",SOUTH DURHAM ENG & MANUFACTURING FORUM LTD.
Assistant Chief Executive,Partnerships & Community Engagement Div.,Cap Exp on Grants & Other Financial Assistance (REFCUS),918004,Contributions to other bodies,06-Jun-2012,2454999-12NB-3TWN004,"2,000.00",WILLINGTON CRICKET CLUB.
Assistant Chief Executive,Partnerships & Community Engagement Div.,Supplies and Services,384086,Miscellaneous Expenses,06-Jun-2012,2455000-W010-NB11,"2,000.00",WITTON LE WEAR PARISH COUNCIL.
Assistant Chief Executive,Policy & Communications Division,Supplies and Services,312010,"Newspapers, Books and Periodicals",06-Jun-2012,2454799-230773/0,"16,215.13",NATIONAL LEAFLET CO LTD.
Children and Young Peoples Services,CYPS - Local Authority,Supplies and Services,304421,Equipment and Materials,06-Jun-2012,207804-LMS/2002/25833,801.04,CHILTON PRIMARY SCHOOL.
Children and Young Peoples Services,CYPS - Local Authority,Supplies and Services,338045,Services,06-Jun-2012,207808-12114,550.80,CRYSTAL CLEAR TRADING LTD.
Children and Young Peoples Services,CYPS - Local Authority,Supplies and Services,338045,Services,06-Jun-2012,207827-MR/OB,536.74,DR STEPHANIE HILL.
Children and Young Peoples Services,CYPS - Local Authority,Supplies and Services,338045,Services,06-Jun-2012,207862-UA12C00015,"1,900.00",HMCTS.
Children and Young Peoples Services,CYPS - Local Authority,Supplies and Services,338045,Services,06-Jun-2012,207863-ND11C00002,700.00,HMCTS.
Children and Young Peoples Services,CYPS - Local Authority,Supplies and Services,338045,Services,06-Jun-2012,207876-TC/CB/A/12893/1,716.60,KIRKUP LASCELLES & CREED.
Children and Young Peoples Services,CYPS - Local Authority,Supplies and Services,338045,Services,06-Jun-2012,207896-283822/INVMM18,800.00,MISS AMANDA MILLER.
Children and Young Peoples Services,CYPS - Local Authority,Supplies and Services,338045,Services,06-Jun-2012,207910-195360-14/5/12,"3,375.00",MR JOHN MYERS.
Children and Young Peoples Services,CYPS - Local Authority,Transport,235073,Public Transport,06-Jun-2012,207951-TRAVEXPS,"3,279.25",REDACTED - PAYMENT TO INDIVIDUAL
Children and Young Peoples Services,CYPS - Local Authority,Transport,235005,Public Transport,06-Jun-2012,207966-001464,580.00,STATION TAXIS (SUNDERLAND).
Children and Young Peoples Services,CYPS - Local Authority,Supplies and Services,384302,Miscellaneous Expenses,06-Jun-2012,207983-2471,720.00,WASHINGTON RIDING CENTRE.
Children and Young Peoples Services,CYPS - Local Authority,Third Party Payments,440028,Other Third Party Payments,06-Jun-2012,2454170-807037,"1,715.13",REDACTED - PAYMENT TO INDIVIDUAL
Children and Young Peoples Services,CYPS - Local Authority,Employees,080025,Agency Staff,06-Jun-2012,2454496-132OCT2011,"5,125.15",2D LTD.
Children and Young Peoples Services,CYPS - Local Authority,Employees,080025,Agency Staff,06-Jun-2012,2454496-188DEC2011,"5,129.65",2D LTD.
Children and Young Peoples Services,CYPS - Local Authority,Transport,230007,Contract Hire,06-Jun-2012,2454500-DCC72/A1,623.50,A1 TAXIS.
Children and Young Peoples Services,CYPS - Local Authority,Transport,230007,Contract Hire,06-Jun-2012,2454502-05/12,"1,663.42",ABA TAXIS.
Children and Young Peoples Services,CYPS - Local Authority,Supplies and Services,352001,Conference Expenses,06-Jun-2012,2454508-2348,780.00,ADCS LTD.
Children and Young Peoples Services,CYPS - Local Authority,Transport,230007,Contract Hire,06-Jun-2012,2454516-0236,"1,855.00",AJS PRIVATE HIRE.
Children and Young Peoples Services,CYPS - Local Authority,Supplies and Services,304245,Equipment and Materials,06-Jun-2012,2454541-0000049742,632.50,AWARD SCHEME LTD.
Children and Young Peoples Services,CYPS - Local Authority,Supplies and Services,338076,Services,06-Jun-2012,2454546-204101283,"4,083.33",BARNARDOS.
Children and Young Peoples Services,CYPS - Local Authority,Transport,230007,Contract Hire,06-Jun-2012,2454549-W089MAY12,855.00,BEELINE TAXIS.
Children and Young Peoples Services,CYPS - Local Authority,Transport,230007,Contract Hire,06-Jun-2012,2454561-0512,"2,180.64",BRIAN WAKE.
Children and Young Peoples Services,CYPS - Local Authority,Transport,230007,Contract Hire,06-Jun-2012,2454562-0377,685.30,BRIANS MINIBUSES.
Children and Young Peoples Services,CYPS - Local Authority,Transport,230007,Contract Hire,06-Jun-2012,2454605-179,"1,100.00",COLIN HOLMES.
Children and Young Peoples Services,CYPS - Local Authority,Transport,230007,Contract Hire,06-Jun-2012,2454605-180,"1,210.00",COLIN HOLMES.
Children and Young Peoples Services,CYPS - Local Authority,Transfer Payments,510032,School Children,06-Jun-2012,2454633-S2012A,"7,500.00",DAYPARK LTD.
Children and Young Peoples Services,CYPS - Local Authority,Transfer Payments,510032,School Children,06-Jun-2012,2454635-S2012A,"2,522.00",DAYPARK LTD.
Children and Young Peoples Services,CYPS - Local Authority,Employees,040149,"Recruitment, Instruction and Training",06-Jun-2012,2454649-0000026936,800.00,EAST DURHAM COLLEGE.
Children and Young Peoples Services,CYPS - Local Authority,Premises,125009,Rents,06-Jun-2012,2454699-GH2996,"1,010.59",GROUNDWORK NORTH EAST.
Children and Young Peoples Services,CYPS - Local Authority,Transport,230007,Contract Hire,06-Jun-2012,2454705-06/2012,"1,889.36",HARRY DICKSON.
Children and Young Peoples Services,CYPS - Local Authority,Supplies and Services,384199,Miscellaneous Expenses,06-Jun-2012,2454710-36972444,"4,900.00",HIGH STREET VOUCHERS LTD.
Children and Young Peoples Services,CYPS - Local Authority,Transport,230007,Contract Hire,06-Jun-2012,2454719-013,"1,760.00",I CLYDESDALE T/A BURNOPFIELD TAXIS.
Children and Young Peoples Services,CYPS - Local Authority,Transport,230007,Contract Hire,06-Jun-2012,2454719-014,"2,010.14",I CLYDESDALE T/A BURNOPFIELD TAXIS.
Children and Young Peoples Services,CYPS - Local Authority,Transport,230007,Contract Hire,06-Jun-2012,2454719-015,"1,680.00",I CLYDESDALE T/A BURNOPFIELD TAXIS.
Children and Young Peoples Services,CYPS - Local Authority,Third Party Payments,425040,Rendered by Voluntary Organisations,06-Jun-2012,2454727-INV-0037,"62,375.84",INTERACT CARE LTD.
Children and Young Peoples Services,CYPS - Local Authority,Transport,230007,Contract Hire,06-Jun-2012,2454736-45,"1,496.00",JDS PRIVATE HIRE.
Children and Young Peoples Services,CYPS - Local Authority,Transport,230007,Contract Hire,06-Jun-2012,2454736-46,"1,628.00",JDS PRIVATE HIRE.
Children and Young Peoples Services,CYPS - Local Authority,Transport,230007,Contract Hire,06-Jun-2012,2454736-47,"1,430.00",JDS PRIVATE HIRE.
Children and Young Peoples Services,CYPS - Local Authority,Transport,230007,Contract Hire,06-Jun-2012,2454736-48,"1,342.00",JDS PRIVATE HIRE.
Children and Young Peoples Services,CYPS - Local Authority,Transport,230007,Contract Hire,06-Jun-2012,2454736-49,"1,760.00",JDS PRIVATE HIRE.
Children and Young Peoples Services,CYPS - Local Authority,Transport,230007,Contract Hire,06-Jun-2012,2454736-51,792.00,JDS PRIVATE HIRE.
Children and Young Peoples Services,CYPS - Local Authority,Transport,230007,Contract Hire,06-Jun-2012,2454736-52,886.00,JDS PRIVATE HIRE.
Children and Young Peoples Services,CYPS - Local Authority,Transport,230005,Contract Hire,06-Jun-2012,2454765-1084,542.00,LOCAL TRANSPORT LTD.
Children and Young Peoples Services,CYPS - Local Authority,Transport,230007,Contract Hire,06-Jun-2012,2454765-1107,"2,414.72",LOCAL TRANSPORT LTD.
Children and Young Peoples Services,CYPS - Local Authority,Transport,230007,Contract Hire,06-Jun-2012,2454765-1108,"2,643.14",LOCAL TRANSPORT LTD.
Children and Young Peoples Services,CYPS - Local Authority,Transport,230007,Contract Hire,06-Jun-2012,2454767-05,"1,370.60",M & S TAXIS.
Children and Young Peoples Services,CYPS - Local Authority,Transport,230007,Contract Hire,06-Jun-2012,2454768-201205,"2,616.60",M WILDING T/A WILDINGS COACHES.
Children and Young Peoples Services,CYPS - Local Authority,Transport,230007,Contract Hire,06-Jun-2012,2454791-NU-5-12,"1,584.00",MR J AGAR T/A PARK TAXIS.
Children and Young Peoples Services,CYPS - Local Authority,Transport,230007,Contract Hire,06-Jun-2012,2454791-PU/05/12,506.00,MR J AGAR T/A PARK TAXIS.
Children and Young Peoples Services,CYPS - Local Authority,Transport,230007,Contract Hire,06-Jun-2012,2454793-TB20,"1,012.00",MR STEVEN WILSON.
Children and Young Peoples Services,CYPS - Local Authority,Supplies and Services,342053,Computers and Communications,06-Jun-2012,2454815-SI10600374,"2,312.00",NORD ANGLIA LIFETIME DEVELOPMENT SOUTH WEST LTD.
Children and Young Peoples Services,CYPS - Local Authority,Supplies and Services,384638,Miscellaneous Expenses,06-Jun-2012,2454818-COM4497,502.00,NORTH EAST AUTISM SOCIETY.
Children and Young Peoples Services,CYPS - Local Authority,Supplies and Services,384638,Miscellaneous Expenses,06-Jun-2012,2454818-COM4512,502.00,NORTH EAST AUTISM SOCIETY.
Children and Young Peoples Services,CYPS - Local Authority,Supplies and Services,384638,Miscellaneous Expenses,06-Jun-2012,2454818-COM4606,913.00,NORTH EAST AUTISM SOCIETY.
Children and Young Peoples Services,CYPS - Local Authority,Supplies and Services,384638,Miscellaneous Expenses,06-Jun-2012,2454818-COM4614,931.00,NORTH EAST AUTISM SOCIETY.
Children and Young Peoples Services,CYPS - Local Authority,Supplies and Services,384638,Miscellaneous Expenses,06-Jun-2012,2454818-COM4615,"1,291.00",NORTH EAST AUTISM SOCIETY.
Children and Young Peoples Services,CYPS - Local Authority,Supplies and Services,384638,Miscellaneous Expenses,06-Jun-2012,2454818-COM4617,"1,074.00",NORTH EAST AUTISM SOCIETY.
Children and Young Peoples Services,CYPS - Local Authority,Supplies and Services,384638,Miscellaneous Expenses,06-Jun-2012,2454818-COM4618,"1,833.00",NORTH EAST AUTISM SOCIETY.
Children and Young Peoples Services,CYPS - Local Authority,Supplies and Services,384638,Miscellaneous Expenses,06-Jun-2012,2454818-COM4621,504.00,NORTH EAST AUTISM SOCIETY.
Children and Young Peoples Services,CYPS - Local Authority,Supplies and Services,384638,Miscellaneous Expenses,06-Jun-2012,2454818-COM4626,753.00,NORTH EAST AUTISM SOCIETY.
Children and Young Peoples Services,CYPS - Local Authority,Employees,040149,"Recruitment, Instruction and Training",06-Jun-2012,2454825-91131360,"1,170.00",NORTHUMBRIA UNIVERSITY.
Children and Young Peoples Services,CYPS - Local Authority,Employees,040149,"Recruitment, Instruction and Training",06-Jun-2012,2454825-91131795,"2,530.00",NORTHUMBRIA UNIVERSITY.
Children and Young Peoples Services,CYPS - Local Authority,Employees,040149,"Recruitment, Instruction and Training",06-Jun-2012,2454825-91131808,"2,530.00",NORTHUMBRIA UNIVERSITY.
Children and Young Peoples Services,CYPS - Local Authority,Employees,040149,"Recruitment, Instruction and Training",06-Jun-2012,2454825-91131812,"1,170.00",NORTHUMBRIA UNIVERSITY.
Children and Young Peoples Services,CYPS - Local Authority,Employees,040149,"Recruitment, Instruction and Training",06-Jun-2012,2454825-91134887,846.00,NORTHUMBRIA UNIVERSITY.
Children and Young Peoples Services,CYPS - Local Authority,Transport,230007,Contract Hire,06-Jun-2012,2454839-014,"1,181.18",PAUL SAVAGE.
Children and Young Peoples Services,CYPS - Local Authority,Transport,230007,Contract Hire,06-Jun-2012,2454840-ST19/12MAY12,"1,813.68",PB PRIVATE HIRE.
Children and Young Peoples Services,CYPS - Local Authority,Transport,230007,Contract Hire,06-Jun-2012,2454843-5,968.00,PETER HOLMES.
Children and Young Peoples Services,CYPS - Local Authority,Transport,230007,Contract Hire,06-Jun-2012,2454845-207,836.00,PETERLEE EXECUTIVE CARS.
Children and Young Peoples Services,CYPS - Local Authority,Transport,230007,Contract Hire,06-Jun-2012,2454845-208,"1,650.00",PETERLEE EXECUTIVE CARS.
Children and Young Peoples Services,CYPS - Local Authority,Transport,230007,Contract Hire,06-Jun-2012,2454845-209,"1,250.00",PETERLEE EXECUTIVE CARS.
Children and Young Peoples Services,CYPS - Local Authority,Transport,230007,Contract Hire,06-Jun-2012,2454845-212,"1,500.00",PETERLEE EXECUTIVE CARS.
Children and Young Peoples Services,CYPS - Local Authority,Transport,230007,Contract Hire,06-Jun-2012,2454847-0185,"2,310.00",PETER`S PRIVATE HIRE/PETER BEST.
Children and Young Peoples Services,CYPS - Local Authority,Transport,230007,Contract Hire,06-Jun-2012,2454860-120502,"1,722.60",PRATTS TAXIS.
Children and Young Peoples Services,CYPS - Local Authority,Transport,230007,Contract Hire,06-Jun-2012,2454860-120504,"3,309.90",PRATTS TAXIS.
Children and Young Peoples Services,CYPS - Local Authority,Transport,230007,Contract Hire,06-Jun-2012,2454860-120505,639.54,PRATTS TAXIS.
Children and Young Peoples Services,CYPS - Local Authority,Transport,230007,Contract Hire,06-Jun-2012,2454860-120507,528.00,PRATTS TAXIS.
Children and Young Peoples Services,CYPS - Local Authority,Transport,230007,Contract Hire,06-Jun-2012,2454873-14,"2,741.20",RAYNERS COACHES.
Children and Young Peoples Services,CYPS - Local Authority,Transport,230007,Contract Hire,06-Jun-2012,2454880-2066,"1,045.88",RICHIES TAXIS.
Children and Young Peoples Services,CYPS - Local Authority,Transport,230007,Contract Hire,06-Jun-2012,2454880-2067,"2,929.50",RICHIES TAXIS.
Children and Young Peoples Services,CYPS - Local Authority,Transport,230007,Contract Hire,06-Jun-2012,2454889-6181,"3,597.88",ROBERTS OF WINGATE.
Children and Young Peoples Services,CYPS - Local Authority,Transport,230007,Contract Hire,06-Jun-2012,2454889-6182,"14,117.40",ROBERTS OF WINGATE.
Children and Young Peoples Services,CYPS - Local Authority,Transport,230007,Contract Hire,06-Jun-2012,2454891-1518,"2,200.00",RONS TAXIS.
Children and Young Peoples Services,CYPS - Local Authority,Transport,230007,Contract Hire,06-Jun-2012,2454891-1519,880.00,RONS TAXIS.
Children and Young Peoples Services,CYPS - Local Authority,Transport,230007,Contract Hire,06-Jun-2012,2454891-1520,"2,047.54",RONS TAXIS.
Children and Young Peoples Services,CYPS - Local Authority,Transport,230007,Contract Hire,06-Jun-2012,2454891-1521,"1,553.42",RONS TAXIS.
Children and Young Peoples Services,CYPS - Local Authority,Transport,230007,Contract Hire,06-Jun-2012,2454899-4212,"3,452.68",SAFARI TRAVEL.
Children and Young Peoples Services,CYPS - Local Authority,Transport,230007,Contract Hire,06-Jun-2012,2454916-W058MAY12,"3,413.09",SIMON ELLIFF.
Children and Young Peoples Services,CYPS - Local Authority,Transport,230007,Contract Hire,06-Jun-2012,2454918-39,"2,945.00",SJ MACKENZIE T/A SCOTTS TAXIS.
Children and Young Peoples Services,CYPS - Local Authority,Transport,230007,Contract Hire,06-Jun-2012,2454918-40,"3,382.10",SJ MACKENZIE T/A SCOTTS TAXIS.
Children and Young Peoples Services,CYPS - Local Authority,Transport,240045,Car Allowances,06-Jun-2012,2454922-2311,"51,045.47",SOCIAL RESOURCE CENTRE LTD.
Children and Young Peoples Services,CYPS - Local Authority,Transport,240045,Car Allowances,06-Jun-2012,2454922-2318,"56,124.32",SOCIAL RESOURCE CENTRE LTD.
Children and Young Peoples Services,CYPS - Local Authority,Third Party Payments,425040,Rendered by Voluntary Organisations,06-Jun-2012,2454943-112923,901.00,SWIIS FOSTER CARE LTD.
Children and Young Peoples Services,CYPS - Local Authority,Third Party Payments,425040,Rendered by Voluntary Organisations,06-Jun-2012,2454943-112924,"1,069.00",SWIIS FOSTER CARE LTD.
Children and Young Peoples Services,CYPS - Local Authority,Third Party Payments,425040,Rendered by Voluntary Organisations,06-Jun-2012,2454943-112925,"1,342.00",SWIIS FOSTER CARE LTD.
Children and Young Peoples Services,CYPS - Local Authority,Third Party Payments,425040,Rendered by Voluntary Organisations,06-Jun-2012,2454943-112926,"1,075.00",SWIIS FOSTER CARE LTD.
Children and Young Peoples Services,CYPS - Local Authority,Third Party Payments,425040,Rendered by Voluntary Organisations,06-Jun-2012,2454943-112927,774.00,SWIIS FOSTER CARE LTD.
Children and Young Peoples Services,CYPS - Local Authority,Third Party Payments,425040,Rendered by Voluntary Organisations,06-Jun-2012,2454943-112928,795.00,SWIIS FOSTER CARE LTD.
Children and Young Peoples Services,CYPS - Local Authority,Third Party Payments,425040,Rendered by Voluntary Organisations,06-Jun-2012,2454943-112929,"1,058.00",SWIIS FOSTER CARE LTD.
Children and Young Peoples Services,CYPS - Local Authority,Third Party Payments,425040,Rendered by Voluntary Organisations,06-Jun-2012,2454943-112930,910.00,SWIIS FOSTER CARE LTD.
Children and Young Peoples Services,CYPS - Local Authority,Third Party Payments,425040,Rendered by Voluntary Organisations,06-Jun-2012,2454943-112931,"1,091.00",SWIIS FOSTER CARE LTD.
Children and Young Peoples Services,CYPS - Local Authority,Third Party Payments,425040,Rendered by Voluntary Organisations,06-Jun-2012,2454943-112932,911.00,SWIIS FOSTER CARE LTD.
Children and Young Peoples Services,CYPS - Local Authority,Transport,230007,Contract Hire,06-Jun-2012,2454947-1153,"1,720.00",TAILORMADE TRAVEL.
Children and Young Peoples Services,CYPS - Local Authority,Transport,230007,Contract Hire,06-Jun-2012,2454947-1154,"1,598.96",TAILORMADE TRAVEL.
Children and Young Peoples Services,CYPS - Local Authority,Supplies and Services,324500,Provisions,06-Jun-2012,2454951-SI-TSW-1008677,"3,422.80",TAYLOR SHAW LTD.
Children and Young Peoples Services,CYPS - Local Authority,Transport,230007,Contract Hire,06-Jun-2012,2454961-13,"1,023.00",THE TAXI CO.
Children and Young Peoples Services,CYPS - Local Authority,Transport,230007,Contract Hire,06-Jun-2012,2454961-14,946.00,THE TAXI CO.
Children and Young Peoples Services,CYPS - Local Authority,Transport,230007,Contract Hire,06-Jun-2012,2454961-18,"2,860.00",THE TAXI CO.
Children and Young Peoples Services,CYPS - Local Authority,Transfer Payments,510033,School Children,06-Jun-2012,2454986-3000021262/S021081110,650.00,UNIVERSITY OF NEWCASTLE UPON TYNE.
Children and Young Peoples Services,CYPS - Local Authority,Employees,040149,"Recruitment, Instruction and Training",06-Jun-2012,2454987-91132141,"1,170.00",UNIVERSITY OF NORTHUMBRIA.
Children and Young Peoples Services,CYPS - Local Authority,Employees,040149,"Recruitment, Instruction and Training",06-Jun-2012,2454987-91134476,"1,170.00",UNIVERSITY OF NORTHUMBRIA.
Children and Young Peoples Services,CYPS - Local Authority,Transport,230007,Contract Hire,06-Jun-2012,2454995-621,"1,078.00",WAYNE`S TAXIS.
Children and Young Peoples Services,CYPS - Local Authority,Transport,230007,Contract Hire,06-Jun-2012,2454996-901,753.31,WE CONNOR.
Children and Young Peoples Services,CYPS - Local Authority,Transport,230007,Contract Hire,06-Jun-2012,2454997-4085,681.34,WEARDALE PRIVATE HIRE.
Children and Young Peoples Services,CYPS - Local Authority,Transport,230007,Contract Hire,06-Jun-2012,2454997-4086,"2,027.30",WEARDALE PRIVATE HIRE.
Children and Young Peoples Services,CYPS - Local Authority,Transport,230007,Contract Hire,06-Jun-2012,2454997-4087,"3,432.00",WEARDALE PRIVATE HIRE.
Children and Young Peoples Services,CYPS - Local Authority,Transport,230007,Contract Hire,06-Jun-2012,2454997-4090,"1,496.00",WEARDALE PRIVATE HIRE.
Children and Young Peoples Services,CYPS - Local Authority,Transport,230007,Contract Hire,06-Jun-2012,2454997-4091,548.24,WEARDALE PRIVATE HIRE.
Children and Young Peoples Services,Dedicated Schools Grant,Third Party Payments,425005,Rendered by Voluntary Organisations,06-Jun-2012,2454628-2144591,"4,449.00",DARLINGTON BOROUGH COUNCIL.
Children and Young Peoples Services,Dedicated Schools Grant,Third Party Payments,410037,Rendered by Other Local Authorities,06-Jun-2012,2454628-2144606,"5,190.00",DARLINGTON BOROUGH COUNCIL.
Children and Young Peoples Services,Dedicated Schools Grant,Third Party Payments,425005,Rendered by Voluntary Organisations,06-Jun-2012,2454628-2144622,"7,415.00",DARLINGTON BOROUGH COUNCIL.
Children and Young Peoples Services,Dedicated Schools Grant,Supplies and Services,340001,Postages,06-Jun-2012,2454678-IN0300345,900.00,FRANCOTYP POSTALIA LTD.
Children and Young Peoples Services,Dedicated Schools Grant,Transport,230005,Contract Hire,06-Jun-2012,2454961-15,"1,470.00",THE TAXI CO.
Corporate Resources,Financing- Resources,Supplies and Services,364993,Grants to Voluntary Organisations,06-Jun-2012,207834-C-M2012,"2,000.00",DURHAM HORTICULTURAL & CRAFT SHOW.
Corporate Resources,Financing- Resources,Supplies and Services,342053,Computers and Communications,06-Jun-2012,2454595-C/RB110186,"1,900.00",CIVICA UK LTD.
Corporate Resources,Financing- Resources,Supplies and Services,340001,Postages,06-Jun-2012,2454894-9038670964,"1,258.87",ROYAL MAIL GROUP PLC.
Corporate Resources,Human Resources Total,Supplies and Services,372009,Subscriptions,06-Jun-2012,2454820-6031,"14,558.00",NORTH EAST REGIONAL EMPLOYERS ORGANISATION.
Corporate Resources,ICT Services incl. Design and Print,Supplies and Services,304245,Equipment and Materials,06-Jun-2012,2454529-WN1976744,925.50,ANTALIS MCNAUGHTON LTD.
Corporate Resources,ICT Services incl. Design and Print,Supplies and Services,342033,Computers and Communications,06-Jun-2012,2454638-7401934535,589.00,DELL COMPUTER CORPORATION LTD.
Corporate Resources,ICT Services incl. Design and Print,Supplies and Services,342051,Computers and Communications,06-Jun-2012,2454667-15MAY2012,"86,360.00",ESRI (UK) LTD.
Corporate Resources,ICT Services incl. Design and Print,Supplies and Services,304245,Equipment and Materials,06-Jun-2012,2454715-16676450,554.30,HOWARD SMITH PAPER GROUP.
Corporate Resources,ICT Services incl. Design and Print,Stock,926900,Stock in hand-Inventory system,06-Jun-2012,2454725-11700341,"1,935.45",INSIGHT DIRECT (UK) LTD.
Corporate Resources,ICT Services incl. Design and Print,Supplies and Services,304303,Equipment and Materials,06-Jun-2012,2454725-11722194,"11,990.00",INSIGHT DIRECT (UK) LTD.
Corporate Resources,ICT Services incl. Design and Print,Supplies and Services,304303,Equipment and Materials,06-Jun-2012,2454725-11722196,"7,110.00",INSIGHT DIRECT (UK) LTD.
Corporate Resources,ICT Services incl. Design and Print,Supplies and Services,342033,Computers and Communications,06-Jun-2012,2454746-35447,"1,110.00",KBR IT & NETWORKING SOLUTIONS.
Corporate Resources,ICT Services incl. Design and Print,Supplies and Services,332029,"Printing, Stationery and Gen Off Exps",06-Jun-2012,2454859-582073,600.00,POTTS PRINTERS LTD.
Corporate Resources,ICT Services incl. Design and Print,Stock,926900,Stock in hand-Inventory system,06-Jun-2012,2454940-5002005,708.09,SUPPLIES TEAM LTD.
Neighbourhood Services,Direct Services,Stock,926900,Stock in hand-Inventory system,06-Jun-2012,2454499-LLI249780,"1,454.10",A THOMPSON & SONS LTD.
Neighbourhood Services,Direct Services,Stock,926900,Stock in hand-Inventory system,06-Jun-2012,2454499-LLI251544,"1,189.00",A THOMPSON & SONS LTD.
Neighbourhood Services,Direct Services,Premises,108301,Service Repairs and Maintenance,06-Jun-2012,2454510-21330316-61,"3,701.00",ADT FIRE & SECURITY PLC.
Neighbourhood Services,Direct Services,Third Party Payments,430100,Rendered by Private Contractors,06-Jun-2012,2454581-12483,"1,439.36",CATHEDRAL LOCK & SAFE SERVICES LTD.
Neighbourhood Services,Direct Services,Transport,210057,Repair and Maintenance of Vehicles,06-Jun-2012,2454587-556930,"1,581.08",CHATFIELDS.
Neighbourhood Services,Direct Services,Stock,926900,Stock in hand-Inventory system,06-Jun-2012,2454618-9950/01485098,928.84,CTD.
Neighbourhood Services,Direct Services,Third Party Payments,430100,Rendered by Private Contractors,06-Jun-2012,2454662-0000082797,525.00,ENVIROVENT LTD.
Neighbourhood Services,Direct Services,Premises,106099,Centrally Controlled Rep and Maint,06-Jun-2012,2454672-315703,"1,139.53",FIRST IN SERVICE LTD.
Neighbourhood Services,Direct Services,Stock,926900,Stock in hand-Inventory system,06-Jun-2012,2454674-OP/I259177,579.60,FLEMING & CO (MACHINERY) LTD.
Neighbourhood Services,Direct Services,Stock,926004,Stock,06-Jun-2012,2454685-7866307,"22,457.12",GB OILS T/A BRETT FUELS.
Neighbourhood Services,Direct Services,Premises,106099,Centrally Controlled Rep and Maint,06-Jun-2012,2454689-3508,585.60,GLAZING FILMS & BLINDS.
Neighbourhood Services,Direct Services,Third Party Payments,430100,Rendered by Private Contractors,06-Jun-2012,2454701-SW2136/1,700.00,H MALONE & SONS LTD.
Neighbourhood Services,Direct Services,Supplies and Services,304221,Equipment and Materials,06-Jun-2012,2454716-B33/0041419,842.13,HOWDEN JOINERY LTD.
Neighbourhood Services,Direct Services,Supplies and Services,304221,Equipment and Materials,06-Jun-2012,2454716-B33/0041522,611.60,HOWDEN JOINERY LTD.
Neighbourhood Services,Direct Services,Stock,926900,Stock in hand-Inventory system,06-Jun-2012,2454726-374055,"2,928.00",INSTARMAC GROUP PLC.
Neighbourhood Services,Direct Services,Stock,926900,Stock in hand-Inventory system,06-Jun-2012,2454740-NI019574,"3,750.60",JOHN MACLEAN & SONS ELECTRICAL (DINGWALL) LTD.
Neighbourhood Services,Direct Services,Supplies and Services,324117,Provisions,06-Jun-2012,2454743-K98284,598.29,JR HOLLAND FOOD SERVICES LTD.
Neighbourhood Services,Direct Services,Stock,926004,Stock,06-Jun-2012,2454802-HI052382,724.74,NE TRUCK SPARES LTD.
Neighbourhood Services,Direct Services,Supplies and Services,304221,Equipment and Materials,06-Jun-2012,2454816-4297,501.00,NORDIC PIONEER LTD.
Neighbourhood Services,Direct Services,Premises,106099,Centrally Controlled Rep and Maint,06-Jun-2012,2454817-10019819,"1,384.90",NORSTEAD.
Neighbourhood Services,Direct Services,Premises,106099,Centrally Controlled Rep and Maint,06-Jun-2012,2454817-10019820,"1,048.00",NORSTEAD.
Neighbourhood Services,Direct Services,Supplies and Services,304221,Equipment and Materials,06-Jun-2012,2454855-4120/133144,877.82,PLUMBING TRADE SUPPLIES LTD.
Neighbourhood Services,Direct Services,Supplies and Services,304221,Equipment and Materials,06-Jun-2012,2454855-4120/133169,772.92,PLUMBING TRADE SUPPLIES LTD.
Neighbourhood Services,Direct Services,Supplies and Services,304221,Equipment and Materials,06-Jun-2012,2454855-4120/133239,847.42,PLUMBING TRADE SUPPLIES LTD.
Neighbourhood Services,Direct Services,Supplies and Services,304221,Equipment and Materials,06-Jun-2012,2454856-4120/133208,703.49,PLUMBING TRADE SUPPLIES LTD.
Neighbourhood Services,Direct Services,Premises,125009,Rents,06-Jun-2012,2454886-4940,576.92,RIVERGREEN DEVELOPMENTS PLC.
Neighbourhood Services,Direct Services,Transport,230710,Contract Hire,06-Jun-2012,2454923-L/011/12/22653,550.00,SOCIETE GENERALE EQUIPMENT FINANCE LTD.
Neighbourhood Services,Direct Services,Stock,926900,Stock in hand-Inventory system,06-Jun-2012,2454926-727255,"1,114.50",SOVEREIGN CHEMICALS LTD.
Neighbourhood Services,Direct Services,Third Party Payments,430105,Rendered by Private Contractors,06-Jun-2012,2454935-041690,754.00,STONEGRAVE AGGREGATES LTD.
Neighbourhood Services,Direct Services,Third Party Payments,430100,Rendered by Private Contractors,06-Jun-2012,2454974-107134,"8,673.00",TRADESLINK ASBESTOS SERVICES LTD.
Neighbourhood Services,Direct Services,Premises,106099,Centrally Controlled Rep and Maint,06-Jun-2012,2454982-DL594471,"1,874.25",TYCO FIRE & INTEGRATED SOLUTIONS (UK) LTD.
Neighbourhood Services,Direct Services,Stock,926900,Stock in hand-Inventory system,06-Jun-2012,2454983-D1991,"2,780.00",ULTIMATE COMMUNICATIONS SYSTEMS LTD.
Neighbourhood Services,Direct Services,Stock,926900,Stock in hand-Inventory system,06-Jun-2012,2454983-D1997,"1,420.00",ULTIMATE COMMUNICATIONS SYSTEMS LTD.
Neighbourhood Services,Direct Services,Supplies and Services,304221,Equipment and Materials,06-Jun-2012,2455001-73370828,800.00,WOLSELEY UK LTD.
Neighbourhood Services,Direct Services,Stock,926900,Stock in hand-Inventory system,06-Jun-2012,2455001-73405535,"1,252.35",WOLSELEY UK LTD.
Neighbourhood Services,Direct Services,Stock,926900,Stock in hand-Inventory system,06-Jun-2012,2455001-73405576,"1,381.80",WOLSELEY UK LTD.
Neighbourhood Services,"Environment,Health & Consumer Protection",Supplies and Services,338027,Services,06-Jun-2012,2454668-INV/MAR/12,"2,564.00",FAIRMEADOW SERVICES LTD.
Neighbourhood Services,"Environment,Health & Consumer Protection",Employees,040149,"Recruitment, Instruction and Training",06-Jun-2012,2454857-14/12,"1,200.00",PORTCULLIS INVESTIGATIVE TRAINING & CONSULTANCY.
Neighbourhood Services,Projects and Business services,Third Party Payments,430104,Rendered by Private Contractors,06-Jun-2012,2454862-046617,566.66,PREMIER WASTE MANAGEMENT LTD.
Neighbourhood Services,Projects and Business services,Third Party Payments,430105,Rendered by Private Contractors,06-Jun-2012,2454862-SDIN/00006566,"35,273.62",PREMIER WASTE MANAGEMENT LTD.
Neighbourhood Services,Projects and Business services,Third Party Payments,430105,Rendered by Private Contractors,06-Jun-2012,2454862-SDIN/00006568,"16,021.91",PREMIER WASTE MANAGEMENT LTD.
Neighbourhood Services,Projects and Business services,Third Party Payments,430105,Rendered by Private Contractors,06-Jun-2012,2454862-SUIN/00006570,"6,508.68",PREMIER WASTE MANAGEMENT LTD.
Neighbourhood Services,Projects and Business services,Supplies and Services,340001,Postages,06-Jun-2012,2454894-9038639510,"2,461.10",ROYAL MAIL GROUP PLC.
Neighbourhood Services,Projects and Business services,Supplies and Services,336005,Advertising,06-Jun-2012,2454936-SI-171784,610.00,STRAIGHT PLC.
Neighbourhood Services,Sport & Leisure,Supplies and Services,384700,Miscellaneous Expenses,06-Jun-2012,2454512-0000000299,"89,345.00",AGE CONCERN DURHAM COUNTY.
Neighbourhood Services,Sport & Leisure,Premises,106099,Centrally Controlled Rep and Maint,06-Jun-2012,2454693-BT44282/1,790.00,GRANWOOD FLOORING LTD.
Neighbourhood Services,Sport & Leisure,Premises,106099,Centrally Controlled Rep and Maint,06-Jun-2012,2454761-DCC2300,"1,552.50",LEISURE CONNECTION LTD.
Neighbourhood Services,Sport & Leisure,Premises,106099,Centrally Controlled Rep and Maint,06-Jun-2012,2454817-10019864,"14,457.60",NORSTEAD.
Neighbourhood Services,Sport & Leisure,Supplies and Services,304221,Equipment and Materials,06-Jun-2012,2454851-58524176,582.34,PHS GROUP PLC.
Neighbourhood Services,Technical Services,Third Party Payments,430100,Rendered by Private Contractors,06-Jun-2012,207947-DI20142591,"4,679.58",NORTHERN POWERGRID (NORTHEAST) LTD..
Neighbourhood Services,Technical Services,Supplies and Services,304221,Equipment and Materials,06-Jun-2012,2454513-16466993,851.56,AGGREGATE INDUSTRIES UK LTD.
Neighbourhood Services,Technical Services,Supplies and Services,304221,Equipment and Materials,06-Jun-2012,2454514-16460997,"1,220.64",AGGREGATE INDUSTRIES UK LTD.
Neighbourhood Services,Technical Services,Supplies and Services,304221,Equipment and Materials,06-Jun-2012,2454514-16460998,"1,220.64",AGGREGATE INDUSTRIES UK LTD.
Neighbourhood Services,Technical Services,Supplies and Services,304221,Equipment and Materials,06-Jun-2012,2454514-16460999,530.89,AGGREGATE INDUSTRIES UK LTD.
Neighbourhood Services,Technical Services,Supplies and Services,304221,Equipment and Materials,06-Jun-2012,2454514-16466992,"1,218.20",AGGREGATE INDUSTRIES UK LTD.
Neighbourhood Services,Technical Services,Supplies and Services,304221,Equipment and Materials,06-Jun-2012,2454514-16473520,"1,220.64",AGGREGATE INDUSTRIES UK LTD.
Neighbourhood Services,Technical Services,Supplies and Services,304221,Equipment and Materials,06-Jun-2012,2454514-16473521,"1,204.80",AGGREGATE INDUSTRIES UK LTD.
Neighbourhood Services,Technical Services,Supplies and Services,304358,Equipment and Materials,06-Jun-2012,2454528-2735,650.00,ANDREW HARDY CONSTRUCTION.
Neighbourhood Services,Technical Services,Stock,926004,Stock,06-Jun-2012,2454600-90120075,"15,410.71",CLEVELAND POTASH LTD.
Neighbourhood Services,Technical Services,Third Party Payments,430100,Rendered by Private Contractors,06-Jun-2012,2454614-14644,708.95,COUPE LINE LTD.
Neighbourhood Services,Technical Services,Third Party Payments,430100,Rendered by Private Contractors,06-Jun-2012,2454614-14645,"1,534.11",COUPE LINE LTD.
Neighbourhood Services,Technical Services,Third Party Payments,430100,Rendered by Private Contractors,06-Jun-2012,2454614-14647,732.54,COUPE LINE LTD.
Neighbourhood Services,Technical Services,Third Party Payments,430100,Rendered by Private Contractors,06-Jun-2012,2454614-14673,"6,783.76",COUPE LINE LTD.
Neighbourhood Services,Technical Services,Supplies and Services,384199,Miscellaneous Expenses,06-Jun-2012,2454683-GHU36,"1,575.00",GAVIN HUTCHINSON.
Neighbourhood Services,Technical Services,Supplies and Services,384199,Miscellaneous Expenses,06-Jun-2012,2454684-GRI36,630.00,GAVIN RIDDLE.
Neighbourhood Services,Technical Services,Supplies and Services,304358,Equipment and Materials,06-Jun-2012,2454687-8779,"2,022.12",GEORGE VARDY HAULAGE.
Neighbourhood Services,Technical Services,Supplies and Services,304221,Equipment and Materials,06-Jun-2012,2454695-79050,560.00,GREEN TECH LTD.
Neighbourhood Services,Technical Services,Supplies and Services,304358,Equipment and Materials,06-Jun-2012,2454732-5304000,793.60,JA GILSON (AGRICULTURAL CONTRACTORS) LTD.
Neighbourhood Services,Technical Services,Supplies and Services,304358,Equipment and Materials,06-Jun-2012,2454732-5304027,793.60,JA GILSON (AGRICULTURAL CONTRACTORS) LTD.
Neighbourhood Services,Technical Services,Supplies and Services,304221,Equipment and Materials,06-Jun-2012,2454740-NI019575,"1,294.52",JOHN MACLEAN & SONS ELECTRICAL (DINGWALL) LTD.
Neighbourhood Services,Technical Services,Supplies and Services,304358,Equipment and Materials,06-Jun-2012,2454741-11814,791.01,JOHN R BUTTERFIELD LTD.
Neighbourhood Services,Technical Services,Supplies and Services,304358,Equipment and Materials,06-Jun-2012,2454741-11822,728.64,JOHN R BUTTERFIELD LTD.
Neighbourhood Services,Technical Services,Supplies and Services,304358,Equipment and Materials,06-Jun-2012,2454741-11845,705.87,JOHN R BUTTERFIELD LTD.
Neighbourhood Services,Technical Services,Supplies and Services,304358,Equipment and Materials,06-Jun-2012,2454741-11854,766.76,JOHN R BUTTERFIELD LTD.
Neighbourhood Services,Technical Services,Supplies and Services,304358,Equipment and Materials,06-Jun-2012,2454741-11860,942.48,JOHN R BUTTERFIELD LTD.
Neighbourhood Services,Technical Services,Supplies and Services,304358,Equipment and Materials,06-Jun-2012,2454741-11861,577.17,JOHN R BUTTERFIELD LTD.
Neighbourhood Services,Technical Services,Supplies and Services,304358,Equipment and Materials,06-Jun-2012,2454741-11868,576.18,JOHN R BUTTERFIELD LTD.
Neighbourhood Services,Technical Services,Supplies and Services,304358,Equipment and Materials,06-Jun-2012,2454741-11870,888.03,JOHN R BUTTERFIELD LTD.
Neighbourhood Services,Technical Services,Supplies and Services,304358,Equipment and Materials,06-Jun-2012,2454741-11881,945.95,JOHN R BUTTERFIELD LTD.
Neighbourhood Services,Technical Services,Supplies and Services,304358,Equipment and Materials,06-Jun-2012,2454741-11890,694.98,JOHN R BUTTERFIELD LTD.
Neighbourhood Services,Technical Services,Supplies and Services,304358,Equipment and Materials,06-Jun-2012,2454741-11892,934.07,JOHN R BUTTERFIELD LTD.
Neighbourhood Services,Technical Services,Supplies and Services,304358,Equipment and Materials,06-Jun-2012,2454741-11895,827.64,JOHN R BUTTERFIELD LTD.
Neighbourhood Services,Technical Services,Supplies and Services,304358,Equipment and Materials,06-Jun-2012,2454741-11896,897.00,JOHN R BUTTERFIELD LTD.
Neighbourhood Services,Technical Services,Supplies and Services,304358,Equipment and Materials,06-Jun-2012,2454741-11901,873.18,JOHN R BUTTERFIELD LTD.
Neighbourhood Services,Technical Services,Supplies and Services,304358,Equipment and Materials,06-Jun-2012,2454741-11919,945.95,JOHN R BUTTERFIELD LTD.
Neighbourhood Services,Technical Services,Supplies and Services,304358,Equipment and Materials,06-Jun-2012,2454741-11921,945.95,JOHN R BUTTERFIELD LTD.
Neighbourhood Services,Technical Services,Supplies and Services,304358,Equipment and Materials,06-Jun-2012,2454741-11923,945.95,JOHN R BUTTERFIELD LTD.
Neighbourhood Services,Technical Services,Supplies and Services,304358,Equipment and Materials,06-Jun-2012,2454741-11924,945.95,JOHN R BUTTERFIELD LTD.
Neighbourhood Services,Technical Services,Supplies and Services,304358,Equipment and Materials,06-Jun-2012,2454741-11925,611.82,JOHN R BUTTERFIELD LTD.
Neighbourhood Services,Technical Services,Supplies and Services,304358,Equipment and Materials,06-Jun-2012,2454741-11927,619.74,JOHN R BUTTERFIELD LTD.
Neighbourhood Services,Technical Services,Supplies and Services,304358,Equipment and Materials,06-Jun-2012,2454741-11928,621.72,JOHN R BUTTERFIELD LTD.
Neighbourhood Services,Technical Services,Supplies and Services,304358,Equipment and Materials,06-Jun-2012,2454741-11931,694.98,JOHN R BUTTERFIELD LTD.
Neighbourhood Services,Technical Services,Supplies and Services,304358,Equipment and Materials,06-Jun-2012,2454741-11934,888.03,JOHN R BUTTERFIELD LTD.
Neighbourhood Services,Technical Services,Supplies and Services,304358,Equipment and Materials,06-Jun-2012,2454741-11936,778.07,JOHN R BUTTERFIELD LTD.
Neighbourhood Services,Technical Services,Supplies and Services,304358,Equipment and Materials,06-Jun-2012,2454741-11939,942.48,JOHN R BUTTERFIELD LTD.
Neighbourhood Services,Technical Services,Supplies and Services,304358,Equipment and Materials,06-Jun-2012,2454741-11940,694.98,JOHN R BUTTERFIELD LTD.
Neighbourhood Services,Technical Services,Supplies and Services,304358,Equipment and Materials,06-Jun-2012,2454741-11956,751.91,JOHN R BUTTERFIELD LTD.
Neighbourhood Services,Technical Services,Supplies and Services,304358,Equipment and Materials,06-Jun-2012,2454741-11958,751.91,JOHN R BUTTERFIELD LTD.
Neighbourhood Services,Technical Services,Supplies and Services,304358,Equipment and Materials,06-Jun-2012,2454741-11961,611.82,JOHN R BUTTERFIELD LTD.
Neighbourhood Services,Technical Services,Supplies and Services,304358,Equipment and Materials,06-Jun-2012,2454741-11966,519.01,JOHN R BUTTERFIELD LTD.
Neighbourhood Services,Technical Services,Supplies and Services,304358,Equipment and Materials,06-Jun-2012,2454741-11967,705.87,JOHN R BUTTERFIELD LTD.
Neighbourhood Services,Technical Services,Supplies and Services,304358,Equipment and Materials,06-Jun-2012,2454741-11970,793.98,JOHN R BUTTERFIELD LTD.
Neighbourhood Services,Technical Services,Supplies and Services,304358,Equipment and Materials,06-Jun-2012,2454741-11971,780.64,JOHN R BUTTERFIELD LTD.
Neighbourhood Services,Technical Services,Supplies and Services,384199,Miscellaneous Expenses,06-Jun-2012,2454763-LGL36,697.14,LINDA GLENDINNING.
Neighbourhood Services,Technical Services,Supplies and Services,384199,Miscellaneous Expenses,06-Jun-2012,2454775-MHO36,"1,079.91",MARION HOCKWORTH.
Neighbourhood Services,Technical Services,Third Party Payments,430100,Rendered by Private Contractors,06-Jun-2012,2454861-119896,"6,318.95",PREMIER TRAFFIC MANAGEMENT LTD.
Neighbourhood Services,Technical Services,Third Party Payments,430100,Rendered by Private Contractors,06-Jun-2012,2454861-119901,"5,079.64",PREMIER TRAFFIC MANAGEMENT LTD.
Neighbourhood Services,Technical Services,Supplies and Services,304221,Equipment and Materials,06-Jun-2012,2454862-045723,"3,794.55",PREMIER WASTE MANAGEMENT LTD.
Neighbourhood Services,Technical Services,Supplies and Services,304221,Equipment and Materials,06-Jun-2012,2454862-046622,"1,292.30",PREMIER WASTE MANAGEMENT LTD.
Neighbourhood Services,Technical Services,Third Party Payments,430100,Rendered by Private Contractors,06-Jun-2012,2454883-2539,"1,000.00",RINGLAND SCAFFOLDING.
Neighbourhood Services,Technical Services,Third Party Payments,430100,Rendered by Private Contractors,06-Jun-2012,2454883-2540,"1,742.00",RINGLAND SCAFFOLDING.
Neighbourhood Services,Technical Services,Third Party Payments,430100,Rendered by Private Contractors,06-Jun-2012,2454883-2546,"1,400.00",RINGLAND SCAFFOLDING.
Neighbourhood Services,Technical Services,Supplies and Services,304358,Equipment and Materials,06-Jun-2012,2454913-2012057,"1,644.00",SHIREHAVEN LTD.
Neighbourhood Services,Technical Services,Third Party Payments,430100,Rendered by Private Contractors,06-Jun-2012,2454938-874,860.00,SUPAMOLE DIRECTIONAL DRILLING SPECIALISTS.
Neighbourhood Services,Technical Services,Third Party Payments,430100,Rendered by Private Contractors,06-Jun-2012,2454994-33622,694.80,W MARLEY AGRICULTURAL CONTRACTORS LTD.
Neighbourhood Services,Technical Services,Supplies and Services,304358,Equipment and Materials,06-Jun-2012,2454994-33627,"2,558.00",W MARLEY AGRICULTURAL CONTRACTORS LTD.
Neighbourhood Services,Technical Services,Supplies and Services,304358,Equipment and Materials,06-Jun-2012,2454994-33628,"2,322.50",W MARLEY AGRICULTURAL CONTRACTORS LTD.
Neighbourhood Services,Technical Services,Supplies and Services,304358,Equipment and Materials,06-Jun-2012,2455005-2538,"1,277.56",YOULL CONSTRUCTION LTD.
Neighbourhood Services,Technical Services,Supplies and Services,304358,Equipment and Materials,06-Jun-2012,2455005-2546,"1,478.64",YOULL CONSTRUCTION LTD.
Neighbourhood Services,Technical Services,Supplies and Services,304358,Equipment and Materials,06-Jun-2012,2455005-2559,580.00,YOULL CONSTRUCTION LTD.
RED HRA,Dale & Valley Homes - HRA Rent Control Account,Creditors,952191,Creditor-HRA-rents-refunds,06-Jun-2012,207898-11HOW3588001W026,913.67,REDACTED - PAYMENT TO INDIVIDUAL
RED HRA,Dale & Valley Homes - HRA Rent Control Account,Creditors,952191,Creditor-HRA-rents-refunds,06-Jun-2012,207901-RR,"1,011.86",REDACTED - PAYMENT TO INDIVIDUAL
RED HRA,HRA Capital,Construction Work,908105,Construction work,06-Jun-2012,207788-C/26361/47,"1,170.00",BH NELSON & CO LTD.
RED HRA,HRA Capital,Construction Work,908105,Construction work,06-Jun-2012,2454505-12024,"1,873.87",ACREBROAD LTD T/A DOBERMANS FLOORING.
RED HRA,HRA Capital,Construction Work,908105,Construction work,06-Jun-2012,2454506-12023,"4,421.52",ACREBROAD T/A MHP COATINGS.
RED HRA,HRA Capital,Construction Work,908105,Construction work,06-Jun-2012,2454506-12025,"1,887.92",ACREBROAD T/A MHP COATINGS.
RED HRA,HRA Capital,Construction Work,908105,Construction work,06-Jun-2012,2454506-12046,"1,864.65",ACREBROAD T/A MHP COATINGS.
RED HRA,HRA Capital,Construction Work,908105,Construction work,06-Jun-2012,2454639-143675,"1,113.97",DELTA ELECTRICAL & MECHANICAL SERVICES.
RED HRA,HRA Capital,Construction Work,908105,Construction work,06-Jun-2012,2454686-SIGN/00029119,"56,287.07",GENTOO CONSTRUCTION LTD.
RED HRA,HRA Capital,Construction Work,908105,Construction work,06-Jun-2012,2454786-CON52789,822.00,MIS ENVIRONMENTAL LTD.
Regeneration & Economic Development,Economic Development and Housing,Other Expenses,914001,Other capital expenses,06-Jun-2012,207793-D,"4,643.39",REDACTED - PAYMENT TO INDIVIDUAL
Regeneration & Economic Development,Economic Development and Housing,Supplies and Services,384999,Miscellaneous Expenses,06-Jun-2012,207851-A/14335/8123,"5,000.00",GE MONEY.
Regeneration & Economic Development,Economic Development and Housing,Other Expenses,914001,Other capital expenses,06-Jun-2012,207872-D,"1,000.00",REDACTED - PAYMENT TO INDIVIDUAL
Regeneration & Economic Development,Economic Development and Housing,Supplies and Services,338066,Services,06-Jun-2012,207980-5153,"1,500.00",UK FUNDERS.
Regeneration & Economic Development,Economic Development and Housing,Cap Exp on Grants & Other Financial Assistance (REFCUS),918401,Capital grants,06-Jun-2012,2454577-G,"2,064.30",CAPTAINS COD LTD.
Regeneration & Economic Development,Economic Development and Housing,Supplies and Services,336005,Advertising,06-Jun-2012,2454742-8609270,"2,026.80",JOHNSTON PUBLISHING LTD.
Regeneration & Economic Development,Economic Development and Housing,Supplies and Services,384700,Miscellaneous Expenses,06-Jun-2012,2454782-Y1C,"1,250.60",MEMOIR CLUB.
Regeneration & Economic Development,Economic Development and Housing,Other Expenses,914001,Other capital expenses,06-Jun-2012,2454795-HL1,"4,475.14",REDACTED - PAYMENT TO INDIVIDUAL
Regeneration & Economic Development,Economic Development and Housing,Supplies and Services,340001,Postages,06-Jun-2012,2454804-415291,800.00,NEOPOST LTD CREDIFON RCB ACCOUNT.
Regeneration & Economic Development,Economic Development and Housing,Supplies and Services,384199,Miscellaneous Expenses,06-Jun-2012,2454808-4125,"1,470.00",NEWCASTLE GATESHEAD INITIATIVE.
Regeneration & Economic Development,Economic Development and Housing,Premises,106099,Centrally Controlled Rep and Maint,06-Jun-2012,2454817-10019765,742.06,NORSTEAD.
Regeneration & Economic Development,Economic Development and Housing,Premises,106099,Centrally Controlled Rep and Maint,06-Jun-2012,2454817-10019824,647.00,NORSTEAD.
Regeneration & Economic Development,Economic Development and Housing,Premises,120009,Energy Costs,06-Jun-2012,2454827-NNO695SP,934.20,NPOWER.
Regeneration & Economic Development,Economic Development and Housing,Construction Work,908105,Construction work,06-Jun-2012,2454836-INS4-SV,"1,050.00",PARKLANDS ARCHITECTURAL LTD.
Regeneration & Economic Development,Economic Development and Housing,Supplies and Services,368008,Incentives to Industrialists,06-Jun-2012,2454849-37126,613.76,PHOENIX SECURITY UK LTD.
Regeneration & Economic Development,Economic Development and Housing,Supplies and Services,338066,Services,06-Jun-2012,2454912-0100052012,"20,000.00",SHE`S GOTT IT.
Regeneration & Economic Development,Housing General Fund,Cap Exp on Grants & Other Financial Assistance (REFCUS),918401,Capital grants,06-Jun-2012,2454518-DFG02/12,"2,160.00",ALAN LEE & SON.
Regeneration & Economic Development,Housing General Fund,Cap Exp on Grants & Other Financial Assistance (REFCUS),918401,Capital grants,06-Jun-2012,2454967-SIP-118482,"1,355.00",THYSSENKRUPP ENCASA LTD.
Regeneration & Economic Development,Housing General Fund,Cap Exp on Grants & Other Financial Assistance (REFCUS),918401,Capital grants,06-Jun-2012,2454967-SIP-118519,"2,481.00",THYSSENKRUPP ENCASA LTD.
Regeneration & Economic Development,Housing General Fund,Cap Exp on Grants & Other Financial Assistance (REFCUS),918401,Capital grants,06-Jun-2012,2454967-SIP118471,"1,077.09",THYSSENKRUPP ENCASA LTD.
Regeneration & Economic Development,Housing General Fund,Cap Exp on Grants & Other Financial Assistance (REFCUS),918401,Capital grants,06-Jun-2012,2454967-SIP118600,"1,750.00",THYSSENKRUPP ENCASA LTD.
Regeneration & Economic Development,"Spatial Policy, Planning, Assets & Environment",Summary reporting level,720190,Fees and Charges,06-Jun-2012,207846-R/PF,"3,685.00",FIELD HOMES LTD.
Regeneration & Economic Development,"Spatial Policy, Planning, Assets & Environment",Supplies and Services,384918,Miscellaneous Expenses,06-Jun-2012,207918-CP,500.00,REDACTED - PAYMENT TO INDIVIDUAL
Regeneration & Economic Development,"Spatial Policy, Planning, Assets & Environment",Supplies and Services,384199,Miscellaneous Expenses,06-Jun-2012,207979-1800005973150,"2,000.00",TYNE & WEAR MUSEUM.
Regeneration & Economic Development,"Spatial Policy, Planning, Assets & Environment",Transport,240001,Car Allowances,06-Jun-2012,2454522-B/M,844.50,ALISTAIR LOCKETT.
Regeneration & Economic Development,"Spatial Policy, Planning, Assets & Environment",Supplies and Services,384199,Miscellaneous Expenses,06-Jun-2012,2454580-1114,"4,500.00",CARRICK CONTRACTORS LTD.
Regeneration & Economic Development,"Spatial Policy, Planning, Assets & Environment",Supplies and Services,384199,Miscellaneous Expenses,06-Jun-2012,2454580-1115,"2,600.00",CARRICK CONTRACTORS LTD.
Regeneration & Economic Development,Transport,Supplies and Services,344033,Telephones,06-Jun-2012,2454567-20015885,"7,766.60",BRITISH TELECOMMUNICATIONS PLC.
Regeneration & Economic Development,Transport,Supplies and Services,336005,Advertising,06-Jun-2012,2454658-15371,974.00,ELLENELL LTD.
Regeneration & Economic Development,Transport,Third Party Payments,430100,Rendered by Private Contractors,06-Jun-2012,2454922-2244,"1,939.66",SOCIAL RESOURCE CENTRE LTD.
Regeneration & Economic Development,Transport,Third Party Payments,430100,Rendered by Private Contractors,06-Jun-2012,2454922-2302,"1,060.39",SOCIAL RESOURCE CENTRE LTD.
Regeneration & Economic Development,Transport,Supplies and Services,304259,Equipment and Materials,06-Jun-2012,2454979-10200608,"69,000.00",TUNSTALL HEALTHCARE (UK) LTD.
Adults Wellbeing and Health,Commissioning inc Supporting People,Third Party Payments,479111,Purchase of Care,07-Jun-2012,2455050-291.,"41,098.20",DURHAM DALES ACTION FOR CARERS.
Adults Wellbeing and Health,Commissioning inc Supporting People,Supplies and Services,304259,Equipment and Materials,07-Jun-2012,2455109-9367LCR,882.00,PORTABOWL PET & ANIMAL FEEDS.
Adults Wellbeing and Health,Commissioning inc Supporting People,Supplies and Services,338047,Services,07-Jun-2012,2455016-SLS10474,"15,230.94",BIRMINGHAM ROYAL BALLET.
Adults Wellbeing and Health,Commissioning inc Supporting People,Supplies and Services,338047,Services,07-Jun-2012,2455106-38356,"4,947.73",OFF THE KERB PRODUCTIONS.
Adults Wellbeing and Health,Commissioning inc Supporting People,Supplies and Services,338047,Services,07-Jun-2012,2455130-583,"1,750.00",SPEAKERS FROM THE EDGE LTD.
Adults Wellbeing and Health,Commissioning inc Supporting People,Supplies and Services,338047,Services,07-Jun-2012,2455166-22054034,"1,249.17",WARNER BROS ENTERTAINMENT UK LTD.
Adults Wellbeing and Health,Head of Adults,Transfer Payments,515201,Social Services Clients,07-Jun-2012,2455080-RC,"7,500.00",REDACTED - PAYMENT TO INDIVIDUAL
Adults Wellbeing and Health,Head of Adults,Summary reporting level,720033,Fees and Charges,07-Jun-2012,2455074-R-O/P,"1,423.70",REDACTED - PAYMENT TO INDIVIDUAL
Adults Wellbeing and Health,Head of Adults,Summary reporting level,720033,Fees and Charges,07-Jun-2012,2455096-OPF,"1,089.28",REDACTED - PAYMENT TO INDIVIDUAL
Adults Wellbeing and Health,Social Inclusion,Supplies and Services,384899,Miscellaneous Expenses,07-Jun-2012,2455049-20009255,"12,000.00",DURHAM CONSTABULARY.
Assistant Chief Executive,Planning & Performance Division,Supplies and Services,342053,Computers and Communications,07-Jun-2012,2455086-40124824,"3,000.00",LOCAL GOVERNMENT ASSOCIATION.
Children and Young Peoples Services,CYPS - Local Authority,Transport,230007,Contract Hire,07-Jun-2012,2455009-0027,"2,860.00",ABC TAXIS.
Children and Young Peoples Services,CYPS - Local Authority,Transport,230007,Contract Hire,07-Jun-2012,2455009-0030,602.00,ABC TAXIS.
Children and Young Peoples Services,CYPS - Local Authority,Transport,230007,Contract Hire,07-Jun-2012,2455009-0031,946.00,ABC TAXIS.
Children and Young Peoples Services,CYPS - Local Authority,Transport,230007,Contract Hire,07-Jun-2012,2455020-N005AMAY12,"1,051.60",BURNDALE TAXIS.
Children and Young Peoples Services,CYPS - Local Authority,Supplies and Services,352001,Conference Expenses,07-Jun-2012,2455022-29200,519.20,CAPITA BUSINESS SERVICES LTD.
Children and Young Peoples Services,CYPS - Local Authority,Premises,108099,Service Repairs and Maintenance,07-Jun-2012,2455032-030490,"7,651.68",CHUBB LOCKS CUSTODIAL SERVICES LTD.
Children and Young Peoples Services,CYPS - Local Authority,Transport,230007,Contract Hire,07-Jun-2012,2455038-OAK005,"1,518.66",D IRVING T/A BJ TAXIS.
Children and Young Peoples Services,CYPS - Local Authority,Transport,230007,Contract Hire,07-Jun-2012,2455038-WAL005,"1,760.00",D IRVING T/A BJ TAXIS.
Children and Young Peoples Services,CYPS - Local Authority,Supplies and Services,338045,Services,07-Jun-2012,2455070-Y460/81,"2,225.00",HMCTS.
Children and Young Peoples Services,CYPS - Local Authority,Transport,230007,Contract Hire,07-Jun-2012,2455076-042,"4,823.28",J YOUNG T/A VIP TAXIS.
Children and Young Peoples Services,CYPS - Local Authority,Transport,230007,Contract Hire,07-Jun-2012,2455076-043,"2,208.00",J YOUNG T/A VIP TAXIS.
Children and Young Peoples Services,CYPS - Local Authority,Transport,230007,Contract Hire,07-Jun-2012,2455076-044,732.02,J YOUNG T/A VIP TAXIS.
Children and Young Peoples Services,CYPS - Local Authority,Transport,230007,Contract Hire,07-Jun-2012,2455076-045,"2,750.00",J YOUNG T/A VIP TAXIS.
Children and Young Peoples Services,CYPS - Local Authority,Transport,230007,Contract Hire,07-Jun-2012,2455076-045P032MAY12,"1,096.00",J YOUNG T/A VIP TAXIS.
Children and Young Peoples Services,CYPS - Local Authority,Transport,230007,Contract Hire,07-Jun-2012,2455076-047,690.00,J YOUNG T/A VIP TAXIS.
Children and Young Peoples Services,CYPS - Local Authority,Transport,230007,Contract Hire,07-Jun-2012,2455077-44,"1,707.86",JDS PRIVATE HIRE.
Children and Young Peoples Services,CYPS - Local Authority,Transport,230007,Contract Hire,07-Jun-2012,2455077-50,"1,144.00",JDS PRIVATE HIRE.
Children and Young Peoples Services,CYPS - Local Authority,Transport,230007,Contract Hire,07-Jun-2012,2455077-53,"1,672.00",JDS PRIVATE HIRE.
Children and Young Peoples Services,CYPS - Local Authority,Transport,230007,Contract Hire,07-Jun-2012,2455083-878,"1,695.00",KEN CHAMBERS.
Children and Young Peoples Services,CYPS - Local Authority,Transport,230007,Contract Hire,07-Jun-2012,2455083-881,"1,650.00",KEN CHAMBERS.
Children and Young Peoples Services,CYPS - Local Authority,Transport,230007,Contract Hire,07-Jun-2012,2455083-881W088CMAY12,990.00,KEN CHAMBERS.
Children and Young Peoples Services,CYPS - Local Authority,Transport,230007,Contract Hire,07-Jun-2012,2455084-10512,990.00,KEVIN EDMUNDSON.
Children and Young Peoples Services,CYPS - Local Authority,Transport,230007,Contract Hire,07-Jun-2012,2455090-W006AMAY12,"2,284.48",MCDONALD TRAVEL.
Children and Young Peoples Services,CYPS - Local Authority,Transport,230007,Contract Hire,07-Jun-2012,2455090-W017BMAY12,"2,575.08",MCDONALD TRAVEL.
Children and Young Peoples Services,CYPS - Local Authority,Transport,230007,Contract Hire,07-Jun-2012,2455090-W034BMAY12,"1,827.54",MCDONALD TRAVEL.
Children and Young Peoples Services,CYPS - Local Authority,Transport,230007,Contract Hire,07-Jun-2012,2455090-W037AMAY12,"1,827.54",MCDONALD TRAVEL.
Children and Young Peoples Services,CYPS - Local Authority,Transport,230007,Contract Hire,07-Jun-2012,2455090-W043MAY12,"1,827.54",MCDONALD TRAVEL.
Children and Young Peoples Services,CYPS - Local Authority,Transport,230007,Contract Hire,07-Jun-2012,2455095-45M028AMAY12,"2,376.00",MR BW YOUNG.
Children and Young Peoples Services,CYPS - Local Authority,Transport,230007,Contract Hire,07-Jun-2012,2455097-21,836.00,MR PETER YOUNG.
Children and Young Peoples Services,CYPS - Local Authority,Transport,230007,Contract Hire,07-Jun-2012,2455098-125,558.14,MR THOMAS G GRIFFITHS T/A TNL TAXIS.
Children and Young Peoples Services,CYPS - Local Authority,Supplies and Services,384638,Miscellaneous Expenses,07-Jun-2012,2455103-COM4612,718.00,NORTH EAST AUTISM SOCIETY.
Children and Young Peoples Services,CYPS - Local Authority,Transport,230007,Contract Hire,07-Jun-2012,2455110-120508,"1,700.00",PRATTS TAXIS.
Children and Young Peoples Services,CYPS - Local Authority,Supplies and Services,384638,Miscellaneous Expenses,07-Jun-2012,2455118-2650,630.00,REAL CARE LTD.
Children and Young Peoples Services,CYPS - Local Authority,Supplies and Services,384638,Miscellaneous Expenses,07-Jun-2012,2455118-2653,630.00,REAL CARE LTD.
Children and Young Peoples Services,CYPS - Local Authority,Supplies and Services,384638,Miscellaneous Expenses,07-Jun-2012,2455118-2657,504.00,REAL CARE LTD.
Children and Young Peoples Services,CYPS - Local Authority,Supplies and Services,384638,Miscellaneous Expenses,07-Jun-2012,2455118-2691,504.00,REAL CARE LTD.
Children and Young Peoples Services,CYPS - Local Authority,Transport,230007,Contract Hire,07-Jun-2012,2455119-6179,"3,633.52",ROBERTS OF WINGATE.
Children and Young Peoples Services,CYPS - Local Authority,Transport,230007,Contract Hire,07-Jun-2012,2455120-SA017,"1,738.00",S & A TAXIS.
Children and Young Peoples Services,CYPS - Local Authority,Supplies and Services,304259,Equipment and Materials,07-Jun-2012,2455121-I4185,507.50,SAFETY SYSTEMS DISTRIBUTION LTD.
Children and Young Peoples Services,CYPS - Local Authority,Transport,230007,Contract Hire,07-Jun-2012,2455125-51016,"1,708.96",SHOTTON PRIVATE HIRE.
Children and Young Peoples Services,CYPS - Local Authority,Transport,230007,Contract Hire,07-Jun-2012,2455127-A06905,"1,210.00",SMILERS TAXIS.
Children and Young Peoples Services,CYPS - Local Authority,Transport,230005,Contract Hire,07-Jun-2012,2455132-1308,"1,062.40",STANLEY TRAVEL (NORTH EAST) LTD.
Children and Young Peoples Services,CYPS - Local Authority,Transport,230007,Contract Hire,07-Jun-2012,2455134-STYL4108,"4,568.52",STYLE TRAVEL.
Children and Young Peoples Services,CYPS - Local Authority,Supplies and Services,342013,Computers and Communications,07-Jun-2012,2455137-4995207,766.30,SUPPLIES TEAM LTD.
Children and Young Peoples Services,CYPS - Local Authority,Transport,230007,Contract Hire,07-Jun-2012,2455141-037/3188,"1,970.85",TA TRAVEL.
Children and Young Peoples Services,CYPS - Local Authority,Transport,230007,Contract Hire,07-Jun-2012,2455141-037/W012,"1,848.00",TA TRAVEL.
Children and Young Peoples Services,CYPS - Local Authority,Transport,230007,Contract Hire,07-Jun-2012,2455141-037/W023,"1,518.00",TA TRAVEL.
Children and Young Peoples Services,CYPS - Local Authority,Transport,230007,Contract Hire,07-Jun-2012,2455141-037/W055,"2,914.00",TA TRAVEL.
Children and Young Peoples Services,CYPS - Local Authority,Transport,230007,Contract Hire,07-Jun-2012,2455141-037/W062,"3,740.00",TA TRAVEL.
Children and Young Peoples Services,CYPS - Local Authority,Transport,230007,Contract Hire,07-Jun-2012,2455141-037/W084,"3,269.00",TA TRAVEL.
Children and Young Peoples Services,CYPS - Local Authority,Transport,230007,Contract Hire,07-Jun-2012,2455143-000960,964.92,TALLENTIRES LTD.
Children and Young Peoples Services,CYPS - Local Authority,Transport,230007,Contract Hire,07-Jun-2012,2455143-000961,807.18,TALLENTIRES LTD.
Children and Young Peoples Services,CYPS - Local Authority,Transport,230007,Contract Hire,07-Jun-2012,2455145-05/2012/043,704.00,TARN`S TAXIS.
Children and Young Peoples Services,CYPS - Local Authority,Transport,230007,Contract Hire,07-Jun-2012,2455145-05/2012/045,"2,180.64",TARN`S TAXIS.
Children and Young Peoples Services,CYPS - Local Authority,Transport,230007,Contract Hire,07-Jun-2012,2455145-05/2012/047,"1,364.00",TARN`S TAXIS.
Children and Young Peoples Services,CYPS - Local Authority,Transport,230007,Contract Hire,07-Jun-2012,2455145-05/2012/048,616.00,TARN`S TAXIS.
Children and Young Peoples Services,CYPS - Local Authority,Transport,230007,Contract Hire,07-Jun-2012,2455147-SB003,"2,055.90",TED WILFORD COACHES.
Children and Young Peoples Services,CYPS - Local Authority,Transport,230007,Contract Hire,07-Jun-2012,2455147-SH003,"1,598.96",TED WILFORD COACHES.
Children and Young Peoples Services,CYPS - Local Authority,Transport,230007,Contract Hire,07-Jun-2012,2455147-TV03&TV004,"4,977.50",TED WILFORD COACHES.
Children and Young Peoples Services,CYPS - Local Authority,Transport,230007,Contract Hire,07-Jun-2012,2455156-1767,"2,478.00",TM TRAVEL.
Children and Young Peoples Services,CYPS - Local Authority,Transport,230007,Contract Hire,07-Jun-2012,2455156-1768,"5,090.40",TM TRAVEL.
Children and Young Peoples Services,CYPS - Local Authority,Transport,230007,Contract Hire,07-Jun-2012,2455164-3,"1,420.00",TT TAXIS.
Children and Young Peoples Services,CYPS - Local Authority,Transport,230007,Contract Hire,07-Jun-2012,2455167-201205,"1,248.00",WENDYS` TAXIS.
Children and Young Peoples Services,CYPS - Local Authority,Employees,080025,Agency Staff,07-Jun-2012,2455169-04/05/2012,678.12,WHEATLEY HILL COMMUNITY NURSERY LTD.
Children and Young Peoples Services,Dedicated Schools Grant,Transport,230007,Contract Hire,07-Jun-2012,2455011-11,960.00,ACE TAXIS..
Children and Young Peoples Services,Dedicated Schools Grant,Transport,230007,Contract Hire,07-Jun-2012,2455014-GC05/12,"2,072.00",ANDY`S TAXIS.
Children and Young Peoples Services,Dedicated Schools Grant,Third Party Payments,410037,Rendered by Other Local Authorities,07-Jun-2012,2455066-0040079160,"6,534.00",HARTLEPOOL BOROUGH COUNCIL.
Children and Young Peoples Services,Dedicated Schools Grant,Transport,230007,Contract Hire,07-Jun-2012,2455097-20,"1,890.00",MR PETER YOUNG.
Corporate Resources,ICT Services incl. Design and Print,Stock,926900,Stock in hand-Inventory system,07-Jun-2012,2455042-7401934089,"2,483.79",DELL COMPUTER CORPORATION LTD.
Corporate Resources,ICT Services incl. Design and Print,Stock,926900,Stock in hand-Inventory system,07-Jun-2012,2455042-7401934108,673.61,DELL COMPUTER CORPORATION LTD.
Neighbourhood Services,Direct Services,Supplies and Services,304221,Equipment and Materials,07-Jun-2012,2455126-1196332,"5,137.30",SIKA LIQUID PLASTICS LTD.
Neighbourhood Services,Direct Services,Third Party Payments,430105,Rendered by Private Contractors,07-Jun-2012,2455133-041821,"1,220.00",STONEGRAVE AGGREGATES LTD.
Neighbourhood Services,Direct Services,Third Party Payments,430105,Rendered by Private Contractors,07-Jun-2012,2455133-041865,"1,635.00",STONEGRAVE AGGREGATES LTD.
Neighbourhood Services,Direct Services,Third Party Payments,430105,Rendered by Private Contractors,07-Jun-2012,2455133-041914,"1,432.00",STONEGRAVE AGGREGATES LTD.
Neighbourhood Services,Direct Services,Third Party Payments,430105,Rendered by Private Contractors,07-Jun-2012,2455133-041949,"1,141.50",STONEGRAVE AGGREGATES LTD.
Neighbourhood Services,Direct Services,Third Party Payments,430105,Rendered by Private Contractors,07-Jun-2012,2455133-042037,930.50,STONEGRAVE AGGREGATES LTD.
Neighbourhood Services,Direct Services,Stock,926900,Stock in hand-Inventory system,07-Jun-2012,2455153-N/IN74138,"1,137.10",THOMAS OWEN & SONS (NEWCASTLE) LTD.
Neighbourhood Services,Direct Services,Stock,926900,Stock in hand-Inventory system,07-Jun-2012,2455153-N/IN74349,"1,049.98",THOMAS OWEN & SONS (NEWCASTLE) LTD.
Neighbourhood Services,Direct Services,Supplies and Services,304221,Equipment and Materials,07-Jun-2012,2455160-91935,918.32,TOMMY WARDLE.
Neighbourhood Services,Direct Services,Third Party Payments,430100,Rendered by Private Contractors,07-Jun-2012,2455163-107171,"8,498.25",TRADESLINK ASBESTOS SERVICES LTD.
Neighbourhood Services,"Environment,Health & Consumer Protection",Employees,040149,"Recruitment, Instruction and Training",07-Jun-2012,2455073-127315,820.00,INSTITUTE OF ACOUSTICS.
Neighbourhood Services,Projects and Business services,Supplies and Services,342053,Computers and Communications,07-Jun-2012,2455146-SI-100007,"3,500.00",TECHNOLOGY STORE LTD.
Neighbourhood Services,Technical Services,Supplies and Services,304221,Equipment and Materials,07-Jun-2012,2455013-16226356,644.80,AGGREGATE INDUSTRIES UK LTD.
Neighbourhood Services,Technical Services,Supplies and Services,304221,Equipment and Materials,07-Jun-2012,2455013-16433115,"1,135.49",AGGREGATE INDUSTRIES UK LTD.
Neighbourhood Services,Technical Services,Supplies and Services,304357,Equipment and Materials,07-Jun-2012,2455062-402910399NE,591.80,GAP GROUP LTD.
Neighbourhood Services,Technical Services,Third Party Payments,460350,Contract Payments,07-Jun-2012,2455063-14017,"2,361.50",GJ CONTRACTORS.
Neighbourhood Services,Technical Services,Supplies and Services,304221,Equipment and Materials,07-Jun-2012,2455088-ZBB0238057,"3,301.00",MARSHALLS MONO LTD.
Neighbourhood Services,Technical Services,Supplies and Services,304221,Equipment and Materials,07-Jun-2012,2455111-046559,"1,145.47",PREMIER WASTE MANAGEMENT LTD.
Neighbourhood Services,Technical Services,Third Party Payments,430100,Rendered by Private Contractors,07-Jun-2012,2455135-873,"2,210.80",SUPAMOLE DIRECTIONAL DRILLING SPECIALISTS.
Neighbourhood Services,Technical Services,Supplies and Services,304221,Equipment and Materials,07-Jun-2012,2455144-9028181829,705.12,TARMAC LTD.
RED HRA,HRA Capital,Construction Work,908105,Construction work,07-Jun-2012,2455043-145306,"198,829.14",DELTA ELECTRICAL & MECHANICAL SERVICES.
RED HRA,HRA Capital,Construction Work,908105,Construction work,07-Jun-2012,2455114-143412,"16,286.33",R BLAND LTD.
Regeneration & Economic Development,Economic Development and Housing,Supplies and Services,384999,Miscellaneous Expenses,07-Jun-2012,2455149-2011-12/27,750.00,TEESDALE SCHOOL (FUND).
Regeneration & Economic Development,Economic Development and Housing,Supplies and Services,384700,Miscellaneous Expenses,07-Jun-2012,2455162-Y1C,"1,370.59",TOUCHSTONE LEADS LTD.
Regeneration & Economic Development,Housing General Fund,Cap Exp on Grants & Other Financial Assistance (REFCUS),918401,Capital grants,07-Jun-2012,2455082-1258,"5,624.75",K HARRISON (BUILDER) NE LTD.
Regeneration & Economic Development,"Spatial Policy, Planning, Assets & Environment",Supplies and Services,352001,Conference Expenses,07-Jun-2012,2455031-395149,659.22,CHRISTINE NUGENT BUSINESS TRAVEL LTD.
Regeneration & Economic Development,"Spatial Policy, Planning, Assets & Environment",Supplies and Services,352001,Conference Expenses,07-Jun-2012,2455138-15817,500.00,SYSTEMSLINK 2000 LTD.
Regeneration & Economic Development,Strategy Programmes and Performance,Supplies and Services,384899,Miscellaneous Expenses,07-Jun-2012,2455060-ED066/01321,"32,294.97",FUTURE LEISURE IN COXHOE (FLIC).
Regeneration & Economic Development,Transport,Third Party Payments,430106,Rendered by Private Contractors,07-Jun-2012,2455079-DCC0174MAY12,"11,389.62",JOHN JAMES BRUNSKILL.
Regeneration & Economic Development,Transport,Third Party Payments,430106,Rendered by Private Contractors,07-Jun-2012,2455089-PPT2982&3111-1/4-28/4/12,"6,934.06",MAURICE & SONS.
Regeneration & Economic Development,Transport,Third Party Payments,430106,Rendered by Private Contractors,07-Jun-2012,2455089-PPT2983&3175-1/4-28/4/12,"4,419.10",MAURICE & SONS.
Regeneration & Economic Development,Transport,Third Party Payments,430106,Rendered by Private Contractors,07-Jun-2012,2455089-PPT2983&3175-29/4-26/5/12,"3,847.30",MAURICE & SONS.
Regeneration & Economic Development,Transport,Third Party Payments,430106,Rendered by Private Contractors,07-Jun-2012,2455123-62,"6,287.87",SB TRAVEL.
Adults Wellbeing and Health,Commissioning inc Supporting People,Third Party Payments,479101,Purchase of Care,08-Jun-2012,2455244-399/12/1218,"2,702.00",DISC LTD.
Adults Wellbeing and Health,Commissioning inc Supporting People,Third Party Payments,470111,Purchase of Care,08-Jun-2012,2455311-RINVTP/00226871,"4,047.23",LEONARD CHESHIRE DISABILITY.
Adults Wellbeing and Health,Commissioning inc Supporting People,Third Party Payments,470111,Purchase of Care,08-Jun-2012,2455311-RINVTP/00230282,"3,916.67",LEONARD CHESHIRE DISABILITY.
Adults Wellbeing and Health,Commissioning inc Supporting People,Supplies and Services,304259,Equipment and Materials,08-Jun-2012,2455387-4661,801.50,VORTEX LIGHTING LTD.
Adults Wellbeing and Health,Commissioning inc Supporting People,Supplies and Services,338047,Services,08-Jun-2012,2455193-5872,903.61,BOUND & GAGGED LTD.
Adults Wellbeing and Health,Commissioning inc Supporting People,Supplies and Services,338047,Services,08-Jun-2012,2455337-224A,"3,850.16",NO THIRD ENTERTAINMENTS LTD.
Adults Wellbeing and Health,Financing-Adult Services,Creditors,952035,Creditor-housing benefit-eqpt,08-Jun-2012,2455195-44927,506.14,BAILEYS BLINDS CO LTD.
Adults Wellbeing and Health,Head of Adults,Transport,240001,Car Allowances,08-Jun-2012,2455302-LWH/JBS/80,"1,115.40",JB SKILLCARE LTD.
Adults Wellbeing and Health,Head of Adults,Premises,108301,Service Repairs and Maintenance,08-Jun-2012,2455366-46606,"4,379.00",STANBRIDGE LTD.
Adults Wellbeing and Health,Head of Adults,Premises,108301,Service Repairs and Maintenance,08-Jun-2012,2455366-46607,"4,379.00",STANBRIDGE LTD.
Adults Wellbeing and Health,Head of Adults,Premises,108301,Service Repairs and Maintenance,08-Jun-2012,2455366-46608,"4,379.00",STANBRIDGE LTD.
Adults Wellbeing and Health,Head of Adults,Premises,108301,Service Repairs and Maintenance,08-Jun-2012,2455366-46609,"4,379.00",STANBRIDGE LTD.
Adults Wellbeing and Health,Head of Adults,Premises,108301,Service Repairs and Maintenance,08-Jun-2012,2455366-46610,"4,379.00",STANBRIDGE LTD.
Adults Wellbeing and Health,Social Inclusion,Supplies and Services,384199,Miscellaneous Expenses,08-Jun-2012,2455356-4173,"2,830.75",S & D TRAINING.
Assistant Chief Executive,Partnerships & Community Engagement Div.,Cap Exp on Grants & Other Financial Assistance (REFCUS),918004,Contributions to other bodies,08-Jun-2012,2455374-12NB-4TOG001,"9,150.00",THRISLINGTON BANNER GROUP.
Assistant Chief Executive,Policy & Communications Division,Supplies and Services,342225,Computers and Communications,08-Jun-2012,2455255-0000145140,593.00,ELECTRONIC READING SYSTEMS LTD.
Children and Young Peoples Services,CYPS - Local Authority,Transport,230007,Contract Hire,08-Jun-2012,2455171-N037005,"1,302.00",@CAB TAXIS.
Children and Young Peoples Services,CYPS - Local Authority,Transport,230007,Contract Hire,08-Jun-2012,2455172-22,"2,300.00",A & P TAXI.
Children and Young Peoples Services,CYPS - Local Authority,Transport,230007,Contract Hire,08-Jun-2012,2455172-22/M048AMAY12,966.00,A & P TAXI.
Children and Young Peoples Services,CYPS - Local Authority,Transport,230007,Contract Hire,08-Jun-2012,2455175-AA480,"1,529.00",AA MINIBUS HIRE.
Children and Young Peoples Services,CYPS - Local Authority,Transport,230007,Contract Hire,08-Jun-2012,2455175-AA481,"1,430.00",AA MINIBUS HIRE.
Children and Young Peoples Services,CYPS - Local Authority,Transport,230007,Contract Hire,08-Jun-2012,2455176-10,"1,584.00",AALPHA TAXIS.
Children and Young Peoples Services,CYPS - Local Authority,Transport,230007,Contract Hire,08-Jun-2012,2455177-37-31/5/12,"1,200.00",ABLE NOVAK TAXIS.
Children and Young Peoples Services,CYPS - Local Authority,Transport,230007,Contract Hire,08-Jun-2012,2455177-38,"1,012.00",ABLE NOVAK TAXIS.
Children and Young Peoples Services,CYPS - Local Authority,Transport,230007,Contract Hire,08-Jun-2012,2455177-39,"1,760.00",ABLE NOVAK TAXIS.
Children and Young Peoples Services,CYPS - Local Authority,Transport,230007,Contract Hire,08-Jun-2012,2455178-456,"2,450.00",AC TAXIS.
Children and Young Peoples Services,CYPS - Local Authority,Transport,230007,Contract Hire,08-Jun-2012,2455178-457,945.00,AC TAXIS.
Children and Young Peoples Services,CYPS - Local Authority,Transport,230007,Contract Hire,08-Jun-2012,2455178-458,"1,100.00",AC TAXIS.
Children and Young Peoples Services,CYPS - Local Authority,Transport,230007,Contract Hire,08-Jun-2012,2455178-459,"1,100.00",AC TAXIS.
Children and Young Peoples Services,CYPS - Local Authority,Transport,230007,Contract Hire,08-Jun-2012,2455178-460,880.00,AC TAXIS.
Children and Young Peoples Services,CYPS - Local Authority,Transport,230007,Contract Hire,08-Jun-2012,2455180-286,540.00,ADAMSONS TAXIS.
Children and Young Peoples Services,CYPS - Local Authority,Transport,230007,Contract Hire,08-Jun-2012,2455180-287,548.24,ADAMSONS TAXIS.
Children and Young Peoples Services,CYPS - Local Authority,Transport,230007,Contract Hire,08-Jun-2012,2455182-197503,"1,650.00",ALANS CABS.
Children and Young Peoples Services,CYPS - Local Authority,Transport,230007,Contract Hire,08-Jun-2012,2455189-267,"2,568.06",AT TAXIS LTD.
Children and Young Peoples Services,CYPS - Local Authority,Transport,230007,Contract Hire,08-Jun-2012,2455189-268,880.00,AT TAXIS LTD.
Children and Young Peoples Services,CYPS - Local Authority,Transport,230007,Contract Hire,08-Jun-2012,2455189-269,528.00,AT TAXIS LTD.
Children and Young Peoples Services,CYPS - Local Authority,Transport,230007,Contract Hire,08-Jun-2012,2455190-02827,630.00,ATLAS TAXIS CONSETT.
Children and Young Peoples Services,CYPS - Local Authority,Transport,230007,Contract Hire,08-Jun-2012,2455190-02829,695.20,ATLAS TAXIS CONSETT.
Children and Young Peoples Services,CYPS - Local Authority,Transport,230007,Contract Hire,08-Jun-2012,2455190-02830,550.00,ATLAS TAXIS CONSETT.
Children and Young Peoples Services,CYPS - Local Authority,Transport,230007,Contract Hire,08-Jun-2012,2455190-02833,506.00,ATLAS TAXIS CONSETT.
Children and Young Peoples Services,CYPS - Local Authority,Transport,230007,Contract Hire,08-Jun-2012,2455190-02837,616.00,ATLAS TAXIS CONSETT.
Children and Young Peoples Services,CYPS - Local Authority,Transport,230007,Contract Hire,08-Jun-2012,2455196-3,"1,400.60",BARRYS TAXIS.
Children and Young Peoples Services,CYPS - Local Authority,Transport,230007,Contract Hire,08-Jun-2012,2455198-330,"1,362.24",BEELINE PRIVATE HIRE.
Children and Young Peoples Services,CYPS - Local Authority,Transport,230007,Contract Hire,08-Jun-2012,2455198-331,"2,527.36",BEELINE PRIVATE HIRE.
Children and Young Peoples Services,CYPS - Local Authority,Transport,230007,Contract Hire,08-Jun-2012,2455198-S/1M12,"2,148.96",BEELINE PRIVATE HIRE.
Children and Young Peoples Services,CYPS - Local Authority,Transport,230007,Contract Hire,08-Jun-2012,2455198-S/2M12,"1,370.60",BEELINE PRIVATE HIRE.
Children and Young Peoples Services,CYPS - Local Authority,Transport,230007,Contract Hire,08-Jun-2012,2455198-S/3M12,"2,660.00",BEELINE PRIVATE HIRE.
Children and Young Peoples Services,CYPS - Local Authority,Transport,230007,Contract Hire,08-Jun-2012,2455198-S/4M12,"2,200.00",BEELINE PRIVATE HIRE.
Children and Young Peoples Services,CYPS - Local Authority,Transport,235154,Public Transport,08-Jun-2012,2455199-SINV21710,600.00,BISHOP AUCKLAND COLLEGE.
Children and Young Peoples Services,CYPS - Local Authority,Transport,230007,Contract Hire,08-Jun-2012,2455200-56,"1,370.60",BL TAXIS.
Children and Young Peoples Services,CYPS - Local Authority,Transport,230007,Contract Hire,08-Jun-2012,2455201-0066,"1,650.00",BOBBY DOVE.
Children and Young Peoples Services,CYPS - Local Authority,Transport,230007,Contract Hire,08-Jun-2012,2455201-0067,"2,055.90",BOBBY DOVE.
Children and Young Peoples Services,CYPS - Local Authority,Transport,230007,Contract Hire,08-Jun-2012,2455202-5,"1,760.00",BOBS TAXIS.
Children and Young Peoples Services,CYPS - Local Authority,Transport,230007,Contract Hire,08-Jun-2012,2455209-A06605,"1,760.00",C & R TAXIS.
Children and Young Peoples Services,CYPS - Local Authority,Transport,230007,Contract Hire,08-Jun-2012,2455210-BIL007,"1,370.06",CA MUSGROVE.
Children and Young Peoples Services,CYPS - Local Authority,Transport,230007,Contract Hire,08-Jun-2012,2455210-BIL008,"1,370.60",CA MUSGROVE.
Children and Young Peoples Services,CYPS - Local Authority,Transport,230007,Contract Hire,08-Jun-2012,2455211-234,924.00,CARE FREE PRIVATE HIRE.
Children and Young Peoples Services,CYPS - Local Authority,Transport,230007,Contract Hire,08-Jun-2012,2455216-GKR-04,751.22,CAVELL TAXIS.
Children and Young Peoples Services,CYPS - Local Authority,Transport,230007,Contract Hire,08-Jun-2012,2455218-118,"1,188.00",CENTRAL TAXIS (PETERLEE) LTD.
Children and Young Peoples Services,CYPS - Local Authority,Transport,230007,Contract Hire,08-Jun-2012,2455218-119,"1,584.00",CENTRAL TAXIS (PETERLEE) LTD.
Children and Young Peoples Services,CYPS - Local Authority,Transport,230007,Contract Hire,08-Jun-2012,2455218-120,770.00,CENTRAL TAXIS (PETERLEE) LTD.
Children and Young Peoples Services,CYPS - Local Authority,Transport,230007,Contract Hire,08-Jun-2012,2455218-121,"1,100.00",CENTRAL TAXIS (PETERLEE) LTD.
Children and Young Peoples Services,CYPS - Local Authority,Third Party Payments,425021,Rendered by Voluntary Organisations,08-Jun-2012,2455220-C328,"5,000.00",CHESTER LE STREET MIND.
Children and Young Peoples Services,CYPS - Local Authority,Transport,230007,Contract Hire,08-Jun-2012,2455221-1025,"2,171.18",CHESTER ROAD TAXIS.
Children and Young Peoples Services,CYPS - Local Authority,Transport,230007,Contract Hire,08-Jun-2012,2455223-CB013,"2,577.70",CHIPPERS TAXIS.
Children and Young Peoples Services,CYPS - Local Authority,Transport,230007,Contract Hire,08-Jun-2012,2455223-MD002MAY12,"1,796.00",CHIPPERS TAXIS.
Children and Young Peoples Services,CYPS - Local Authority,Transport,230007,Contract Hire,08-Jun-2012,2455226-43239,"7,332.82",CJ GRIERSON.
Children and Young Peoples Services,CYPS - Local Authority,Transport,230007,Contract Hire,08-Jun-2012,2455226-43240,"8,566.36",CJ GRIERSON.
Children and Young Peoples Services,CYPS - Local Authority,Transport,230007,Contract Hire,08-Jun-2012,2455226-43241,"2,284.48",CJ GRIERSON.
Children and Young Peoples Services,CYPS - Local Authority,Transport,230007,Contract Hire,08-Jun-2012,2455227-004,"3,010.28",CJS TAXIS.
Children and Young Peoples Services,CYPS - Local Authority,Transport,230007,Contract Hire,08-Jun-2012,2455228-1/N070CMAY2012,"2,592.00",CLARKS MINIBUSES & TAXIS.
Children and Young Peoples Services,CYPS - Local Authority,Transport,230007,Contract Hire,08-Jun-2012,2455228-1/W008,"2,280.96",CLARKS MINIBUSES & TAXIS.
Children and Young Peoples Services,CYPS - Local Authority,Transport,230007,Contract Hire,08-Jun-2012,2455229-25/12,660.00,CLARKS TAXIS LTD.
Children and Young Peoples Services,CYPS - Local Authority,Transport,230007,Contract Hire,08-Jun-2012,2455230-512,"2,200.00",CLIVE HUBERY.
Children and Young Peoples Services,CYPS - Local Authority,Transport,230007,Contract Hire,08-Jun-2012,2455230-513,"3,008.28",CLIVE HUBERY.
Children and Young Peoples Services,CYPS - Local Authority,Transport,230007,Contract Hire,08-Jun-2012,2455230-S008,"2,546.94",CLIVE HUBERY.
Children and Young Peoples Services,CYPS - Local Authority,Employees,080025,Agency Staff,08-Jun-2012,2455231-3136075,"3,686.23",CO DURHAM & DARLINGTON NHS FOUNDATION TRUST.
Children and Young Peoples Services,CYPS - Local Authority,Transport,230007,Contract Hire,08-Jun-2012,2455232-9/AO18BMAY12,"1,425.00",COLIN E GLEAVE.
Children and Young Peoples Services,CYPS - Local Authority,Transport,230007,Contract Hire,08-Jun-2012,2455236-4021/05/12,"2,512.84",COUNTY COACHES.
Children and Young Peoples Services,CYPS - Local Authority,Transport,230007,Contract Hire,08-Jun-2012,2455236-4026/05/12,"2,055.90",COUNTY COACHES.
Children and Young Peoples Services,CYPS - Local Authority,Transport,230007,Contract Hire,08-Jun-2012,2455236-4029/05/12,"2,078.78",COUNTY COACHES.
Children and Young Peoples Services,CYPS - Local Authority,Transport,230007,Contract Hire,08-Jun-2012,2455238-1181,"1,210.00",DA TAXIS.
Children and Young Peoples Services,CYPS - Local Authority,Transport,230007,Contract Hire,08-Jun-2012,2455238-1182,"1,815.00",DA TAXIS.
Children and Young Peoples Services,CYPS - Local Authority,Transport,230007,Contract Hire,08-Jun-2012,2455238-1183,"3,027.76",DA TAXIS.
Children and Young Peoples Services,CYPS - Local Authority,Transport,230007,Contract Hire,08-Jun-2012,2455238-1184,"1,650.00",DA TAXIS.
Children and Young Peoples Services,CYPS - Local Authority,Transport,230007,Contract Hire,08-Jun-2012,2455238-1185,"1,540.00",DA TAXIS.
Children and Young Peoples Services,CYPS - Local Authority,Transport,230007,Contract Hire,08-Jun-2012,2455238-1186,"1,400.00",DA TAXIS.
Children and Young Peoples Services,CYPS - Local Authority,Transport,230007,Contract Hire,08-Jun-2012,2455238-1187,"1,980.00",DA TAXIS.
Children and Young Peoples Services,CYPS - Local Authority,Transport,230007,Contract Hire,08-Jun-2012,2455239-230662,"3,080.00",DALELINK PRIVATE HIRE.
Children and Young Peoples Services,CYPS - Local Authority,Transport,230007,Contract Hire,08-Jun-2012,2455239-230663,"1,430.00",DALELINK PRIVATE HIRE.
Children and Young Peoples Services,CYPS - Local Authority,Transport,230007,Contract Hire,08-Jun-2012,2455239-230664,"2,860.00",DALELINK PRIVATE HIRE.
Children and Young Peoples Services,CYPS - Local Authority,Transport,230007,Contract Hire,08-Jun-2012,2455240-1521,"2,033.02",DAVES MINIBUSES.
Children and Young Peoples Services,CYPS - Local Authority,Transport,230007,Contract Hire,08-Jun-2012,2455240-1522,"1,848.00",DAVES MINIBUSES.
Children and Young Peoples Services,CYPS - Local Authority,Transport,230007,Contract Hire,08-Jun-2012,2455240-1523,"2,089.12",DAVES MINIBUSES.
Children and Young Peoples Services,CYPS - Local Authority,Transport,230007,Contract Hire,08-Jun-2012,2455240-1524,"1,484.78",DAVES MINIBUSES.
Children and Young Peoples Services,CYPS - Local Authority,Transport,230007,Contract Hire,08-Jun-2012,2455240-1525,"1,639.88",DAVES MINIBUSES.
Children and Young Peoples Services,CYPS - Local Authority,Transport,230007,Contract Hire,08-Jun-2012,2455240-1526,"1,644.72",DAVES MINIBUSES.
Children and Young Peoples Services,CYPS - Local Authority,Transport,230007,Contract Hire,08-Jun-2012,2455241-11,"1,540.00",DAVES TAXIS.
Children and Young Peoples Services,CYPS - Local Authority,Transport,230007,Contract Hire,08-Jun-2012,2455241-9,880.00,DAVES TAXIS.
Children and Young Peoples Services,CYPS - Local Authority,Transport,230007,Contract Hire,08-Jun-2012,2455245-A1202/7,"3,157.77",DMG PRIVATE HIRE.
Children and Young Peoples Services,CYPS - Local Authority,Transport,230007,Contract Hire,08-Jun-2012,2455245-A1202/8,"2,860.62",DMG PRIVATE HIRE.
Children and Young Peoples Services,CYPS - Local Authority,Transport,230007,Contract Hire,08-Jun-2012,2455248-15625,"2,969.78",DURHAM CITY COACHES.
Children and Young Peoples Services,CYPS - Local Authority,Transport,230007,Contract Hire,08-Jun-2012,2455248-15626,"8,973.36",DURHAM CITY COACHES.
Children and Young Peoples Services,CYPS - Local Authority,Transport,230007,Contract Hire,08-Jun-2012,2455248-15627,"2,969.78",DURHAM CITY COACHES.
Children and Young Peoples Services,CYPS - Local Authority,Transport,230007,Contract Hire,08-Jun-2012,2455248-15628,"3,409.78",DURHAM CITY COACHES.
Children and Young Peoples Services,CYPS - Local Authority,Transport,230007,Contract Hire,08-Jun-2012,2455258-4107/0512,"1,422.08",ELLIOTTS OF TRIMDON.
Children and Young Peoples Services,CYPS - Local Authority,Transport,230007,Contract Hire,08-Jun-2012,2455258-E009/0512,"1,784.18",ELLIOTTS OF TRIMDON.
Children and Young Peoples Services,CYPS - Local Authority,Transport,230007,Contract Hire,08-Jun-2012,2455258-E014/0512,"2,044.46",ELLIOTTS OF TRIMDON.
Children and Young Peoples Services,CYPS - Local Authority,Transport,230007,Contract Hire,08-Jun-2012,2455260-0489,"3,062.84",EN ROUTE TRAVEL.
Children and Young Peoples Services,CYPS - Local Authority,Transport,230007,Contract Hire,08-Jun-2012,2455260-0490,"1,805.00",EN ROUTE TRAVEL.
Children and Young Peoples Services,CYPS - Local Authority,Transport,230007,Contract Hire,08-Jun-2012,2455266-117/12,685.30,FERRYHILL TAXIS.
Children and Young Peoples Services,CYPS - Local Authority,Transport,230007,Contract Hire,08-Jun-2012,2455277-020MAY12,"1,292.00",GMC TAXIS NORTH EAST.
Children and Young Peoples Services,CYPS - Local Authority,Transport,230007,Contract Hire,08-Jun-2012,2455277-028,"1,320.00",GMC TAXIS NORTH EAST.
Children and Young Peoples Services,CYPS - Local Authority,Construction Work,908105,Construction work,08-Jun-2012,2455298-12-05-001,"2,065.00",INGREEN ARCHITECTURAL SOLUTIONS LTD.
Children and Young Peoples Services,CYPS - Local Authority,Transport,230007,Contract Hire,08-Jun-2012,2455299-201209,"2,772.46",J & D KELLY.
Children and Young Peoples Services,CYPS - Local Authority,Transport,230007,Contract Hire,08-Jun-2012,2455299-201210,"1,954.47",J & D KELLY.
Children and Young Peoples Services,CYPS - Local Authority,Transport,230007,Contract Hire,08-Jun-2012,2455301-96,525.00,JACKSONS TAXIS LTD .
Children and Young Peoples Services,CYPS - Local Authority,Transport,230007,Contract Hire,08-Jun-2012,2455301-97,968.00,JACKSONS TAXIS LTD .
Children and Young Peoples Services,CYPS - Local Authority,Transport,230007,Contract Hire,08-Jun-2012,2455301-98,"1,260.00",JACKSONS TAXIS LTD .
Children and Young Peoples Services,CYPS - Local Authority,Transport,230007,Contract Hire,08-Jun-2012,2455303-1292,"1,987.48",JEFF ANDERSON COACHES LTD.
Children and Young Peoples Services,CYPS - Local Authority,Transport,230005,Contract Hire,08-Jun-2012,2455312-2695,"2,523.00",LINCAB TAXIS.
Children and Young Peoples Services,CYPS - Local Authority,Transport,230005,Contract Hire,08-Jun-2012,2455313-1027,792.00,LOCAL TRANSPORT LTD.
Children and Young Peoples Services,CYPS - Local Authority,Transport,230005,Contract Hire,08-Jun-2012,2455313-1048,"2,052.00",LOCAL TRANSPORT LTD.
Children and Young Peoples Services,CYPS - Local Authority,Transport,230007,Contract Hire,08-Jun-2012,2455323-A044CMAY12,814.00,MR CHRISTOPHER BRECHIN.
Children and Young Peoples Services,CYPS - Local Authority,Transport,230007,Contract Hire,08-Jun-2012,2455323-F402AMAY12,"1,184.00",MR CHRISTOPHER BRECHIN.
Children and Young Peoples Services,CYPS - Local Authority,Transport,230007,Contract Hire,08-Jun-2012,2455324-W-05-12,"4,856.98",MR CT WALKER T/A COLIN`S TAXIS.
Children and Young Peoples Services,CYPS - Local Authority,Transport,230007,Contract Hire,08-Jun-2012,2455325-131,"2,640.00",MR D KEMP T/A ACE EXECUTIVE.
Children and Young Peoples Services,CYPS - Local Authority,Transport,230007,Contract Hire,08-Jun-2012,2455325-132,"2,398.66",MR D KEMP T/A ACE EXECUTIVE.
Children and Young Peoples Services,CYPS - Local Authority,Transport,230007,Contract Hire,08-Jun-2012,2455326-10,890.00,MR DAVID CULLEN.
Children and Young Peoples Services,CYPS - Local Authority,Transport,230007,Contract Hire,08-Jun-2012,2455326-11,770.00,MR DAVID CULLEN.
Children and Young Peoples Services,CYPS - Local Authority,Transport,230007,Contract Hire,08-Jun-2012,2455326-12,770.00,MR DAVID CULLEN.
Children and Young Peoples Services,CYPS - Local Authority,Transport,230007,Contract Hire,08-Jun-2012,2455327-6012MAY12,836.00,MR DEREK HENDERSON.
Children and Young Peoples Services,CYPS - Local Authority,Transport,230007,Contract Hire,08-Jun-2012,2455330-10G,"2,141.70",MR GS ANDERSON.
Children and Young Peoples Services,CYPS - Local Authority,Transport,230007,Contract Hire,08-Jun-2012,2455330-11H,"1,138.06",MR GS ANDERSON.
Children and Young Peoples Services,CYPS - Local Authority,Transport,230007,Contract Hire,08-Jun-2012,2455330-12I,840.00,MR GS ANDERSON.
Children and Young Peoples Services,CYPS - Local Authority,Transport,230007,Contract Hire,08-Jun-2012,2455331-1190512,"1,034.00",MR JOHN CHISHOLM.
Children and Young Peoples Services,CYPS - Local Authority,Transport,230007,Contract Hire,08-Jun-2012,2455331-51590512,946.00,MR JOHN CHISHOLM.
Children and Young Peoples Services,CYPS - Local Authority,Transport,230007,Contract Hire,08-Jun-2012,2455331-60180512,"1,056.00",MR JOHN CHISHOLM.
Children and Young Peoples Services,CYPS - Local Authority,Transport,230007,Contract Hire,08-Jun-2012,2455331-E0540512,"1,298.00",MR JOHN CHISHOLM.
Children and Young Peoples Services,CYPS - Local Authority,Transport,230007,Contract Hire,08-Jun-2012,2455332-5,"1,864.32",MR PHILIP YOUNG.
Children and Young Peoples Services,CYPS - Local Authority,Transport,230007,Contract Hire,08-Jun-2012,2455334-2678,"1,144.00",MR S BOWERS.
Children and Young Peoples Services,CYPS - Local Authority,Transport,230007,Contract Hire,08-Jun-2012,2455335-7,"1,611.06",N FORBES.
Children and Young Peoples Services,CYPS - Local Authority,Transport,230007,Contract Hire,08-Jun-2012,2455335-8,900.00,N FORBES.
Children and Young Peoples Services,CYPS - Local Authority,Transport,230007,Contract Hire,08-Jun-2012,2455335-9,"1,080.00",N FORBES.
Children and Young Peoples Services,CYPS - Local Authority,Supplies and Services,384638,Miscellaneous Expenses,08-Jun-2012,2455338-COM4750,"1,722.00",NORTH EAST AUTISM SOCIETY.
Children and Young Peoples Services,CYPS - Local Authority,Supplies and Services,384638,Miscellaneous Expenses,08-Jun-2012,2455338-COM4751,"2,916.00",NORTH EAST AUTISM SOCIETY.
Children and Young Peoples Services,CYPS - Local Authority,Supplies and Services,384638,Miscellaneous Expenses,08-Jun-2012,2455338-COM4752,"2,802.00",NORTH EAST AUTISM SOCIETY.
Children and Young Peoples Services,CYPS - Local Authority,Supplies and Services,384638,Miscellaneous Expenses,08-Jun-2012,2455338-COM4753,"2,761.00",NORTH EAST AUTISM SOCIETY.
Children and Young Peoples Services,CYPS - Local Authority,Supplies and Services,384638,Miscellaneous Expenses,08-Jun-2012,2455338-COM4755,"1,471.00",NORTH EAST AUTISM SOCIETY.
Children and Young Peoples Services,CYPS - Local Authority,Supplies and Services,384638,Miscellaneous Expenses,08-Jun-2012,2455338-COM4758,"2,224.00",NORTH EAST AUTISM SOCIETY.
Children and Young Peoples Services,CYPS - Local Authority,Supplies and Services,384638,Miscellaneous Expenses,08-Jun-2012,2455338-COM4764,"2,151.00",NORTH EAST AUTISM SOCIETY.
Children and Young Peoples Services,CYPS - Local Authority,Supplies and Services,384638,Miscellaneous Expenses,08-Jun-2012,2455338-COM4765,"1,398.00",NORTH EAST AUTISM SOCIETY.
Children and Young Peoples Services,CYPS - Local Authority,Supplies and Services,384638,Miscellaneous Expenses,08-Jun-2012,2455338-COM4766,"1,363.00",NORTH EAST AUTISM SOCIETY.
Children and Young Peoples Services,CYPS - Local Authority,Supplies and Services,384638,Miscellaneous Expenses,08-Jun-2012,2455338-COM4767,"1,506.00",NORTH EAST AUTISM SOCIETY.
Children and Young Peoples Services,CYPS - Local Authority,Supplies and Services,384638,Miscellaneous Expenses,08-Jun-2012,2455338-COM4774,661.00,NORTH EAST AUTISM SOCIETY.
Children and Young Peoples Services,CYPS - Local Authority,Supplies and Services,384638,Miscellaneous Expenses,08-Jun-2012,2455338-COM4776,858.00,NORTH EAST AUTISM SOCIETY.
Children and Young Peoples Services,CYPS - Local Authority,Supplies and Services,384638,Miscellaneous Expenses,08-Jun-2012,2455338-COM4780,"1,398.00",NORTH EAST AUTISM SOCIETY.
Children and Young Peoples Services,CYPS - Local Authority,Supplies and Services,384638,Miscellaneous Expenses,08-Jun-2012,2455338-COM4781,"4,343.00",NORTH EAST AUTISM SOCIETY.
Children and Young Peoples Services,CYPS - Local Authority,Supplies and Services,384638,Miscellaneous Expenses,08-Jun-2012,2455338-COM4782,"1,147.00",NORTH EAST AUTISM SOCIETY.
Children and Young Peoples Services,CYPS - Local Authority,Supplies and Services,384638,Miscellaneous Expenses,08-Jun-2012,2455338-COM4785,"2,335.00",NORTH EAST AUTISM SOCIETY.
Children and Young Peoples Services,CYPS - Local Authority,Supplies and Services,384638,Miscellaneous Expenses,08-Jun-2012,2455338-COM4786,823.00,NORTH EAST AUTISM SOCIETY.
Children and Young Peoples Services,CYPS - Local Authority,Supplies and Services,384638,Miscellaneous Expenses,08-Jun-2012,2455338-COM4787,"2,119.00",NORTH EAST AUTISM SOCIETY.
Children and Young Peoples Services,CYPS - Local Authority,Supplies and Services,384638,Miscellaneous Expenses,08-Jun-2012,2455338-COM4788,502.00,NORTH EAST AUTISM SOCIETY.
Children and Young Peoples Services,CYPS - Local Authority,Supplies and Services,384638,Miscellaneous Expenses,08-Jun-2012,2455338-COM4790,950.00,NORTH EAST AUTISM SOCIETY.
Children and Young Peoples Services,CYPS - Local Authority,Supplies and Services,384638,Miscellaneous Expenses,08-Jun-2012,2455338-COM4791,"1,147.00",NORTH EAST AUTISM SOCIETY.
Children and Young Peoples Services,CYPS - Local Authority,Supplies and Services,384638,Miscellaneous Expenses,08-Jun-2012,2455338-COM4792,537.00,NORTH EAST AUTISM SOCIETY.
Children and Young Peoples Services,CYPS - Local Authority,Supplies and Services,384638,Miscellaneous Expenses,08-Jun-2012,2455338-COM4794,537.00,NORTH EAST AUTISM SOCIETY.
Children and Young Peoples Services,CYPS - Local Authority,Transport,230007,Contract Hire,08-Jun-2012,2455345-05,532.40,PAUL CROOK.
Children and Young Peoples Services,CYPS - Local Authority,Construction Work,908105,Construction work,08-Jun-2012,2455347-358520,"3,006.33",PKL GROUP (UK) LTD.
Children and Young Peoples Services,CYPS - Local Authority,Supplies and Services,384638,Miscellaneous Expenses,08-Jun-2012,2455353-2696,630.00,REAL CARE LTD.
Children and Young Peoples Services,CYPS - Local Authority,Transport,230007,Contract Hire,08-Jun-2012,2455357-SO10/48,"1,937.54",S & S TRAVEL LTD.
Children and Young Peoples Services,CYPS - Local Authority,Transport,230007,Contract Hire,08-Jun-2012,2455357-W026/48,"1,959.54",S & S TRAVEL LTD.
Children and Young Peoples Services,CYPS - Local Authority,Transport,230007,Contract Hire,08-Jun-2012,2455357-W042/48,"1,839.54",S & S TRAVEL LTD.
Children and Young Peoples Services,CYPS - Local Authority,Transport,230005,Contract Hire,08-Jun-2012,2455361-41411APR12,632.00,SHOTTON PRIVATE HIRE.
Children and Young Peoples Services,CYPS - Local Authority,Transport,230005,Contract Hire,08-Jun-2012,2455361-41426APR12,517.00,SHOTTON PRIVATE HIRE.
Children and Young Peoples Services,CYPS - Local Authority,Transport,230005,Contract Hire,08-Jun-2012,2455361-41430MAY12,"1,102.00",SHOTTON PRIVATE HIRE.
Children and Young Peoples Services,CYPS - Local Authority,Transport,230005,Contract Hire,08-Jun-2012,2455361-51005,876.00,SHOTTON PRIVATE HIRE.
Children and Young Peoples Services,CYPS - Local Authority,Transport,230005,Contract Hire,08-Jun-2012,2455361-51008,868.00,SHOTTON PRIVATE HIRE.
Children and Young Peoples Services,CYPS - Local Authority,Transport,230007,Contract Hire,08-Jun-2012,2455363-1587,"2,948.00",SNOWDON COACHES.
Children and Young Peoples Services,CYPS - Local Authority,Transport,230007,Contract Hire,08-Jun-2012,2455363-1588,"7,216.00",SNOWDON COACHES.
Children and Young Peoples Services,CYPS - Local Authority,Transport,230007,Contract Hire,08-Jun-2012,2455363-1589,"2,728.00",SNOWDON COACHES.
Children and Young Peoples Services,CYPS - Local Authority,Transport,230007,Contract Hire,08-Jun-2012,2455363-1592,"11,385.00",SNOWDON COACHES.
Children and Young Peoples Services,CYPS - Local Authority,Transport,230007,Contract Hire,08-Jun-2012,2455369-460MAY12,"1,826.00",T MOORE & SON.
Children and Young Peoples Services,CYPS - Local Authority,Transport,230007,Contract Hire,08-Jun-2012,2455369-461,"1,476.42",T MOORE & SON.
Children and Young Peoples Services,CYPS - Local Authority,Transport,230007,Contract Hire,08-Jun-2012,2455369-462MAY12,765.16,T MOORE & SON.
Children and Young Peoples Services,CYPS - Local Authority,Transport,230007,Contract Hire,08-Jun-2012,2455369-463MAY12,616.00,T MOORE & SON.
Children and Young Peoples Services,CYPS - Local Authority,Transport,230007,Contract Hire,08-Jun-2012,2455369-464MAY12,"1,530.54",T MOORE & SON.
Children and Young Peoples Services,CYPS - Local Authority,Transport,230007,Contract Hire,08-Jun-2012,2455369-465MAY12,858.00,T MOORE & SON.
Children and Young Peoples Services,CYPS - Local Authority,Transport,230007,Contract Hire,08-Jun-2012,2455369-466MAY12,704.00,T MOORE & SON.
Children and Young Peoples Services,CYPS - Local Authority,Transport,230007,Contract Hire,08-Jun-2012,2455370-1738,"1,118.00",TALBOTS TAXIS.
Children and Young Peoples Services,CYPS - Local Authority,Transport,230007,Contract Hire,08-Jun-2012,2455370-1740,"1,660.00",TALBOTS TAXIS.
Children and Young Peoples Services,CYPS - Local Authority,Transport,230007,Contract Hire,08-Jun-2012,2455371-62972,"2,748.90",TGM GROUP LTD T/A CLASSIC COACHES (CONTINENTAL) LTD.
Children and Young Peoples Services,CYPS - Local Authority,Transport,230005,Contract Hire,08-Jun-2012,2455376-493,608.00,TONYS TAXIS (A BIRCH).
Children and Young Peoples Services,CYPS - Local Authority,Transport,230005,Contract Hire,08-Jun-2012,2455376-495,"1,512.00",TONYS TAXIS (A BIRCH).
Children and Young Peoples Services,Dedicated Schools Grant,Transport,230007,Contract Hire,08-Jun-2012,2455183-9,"1,167.50",ALAN`S TAXIS.
Children and Young Peoples Services,Dedicated Schools Grant,Supplies and Services,338035,Services,08-Jun-2012,2455188-160905,510.00,ASDAN LTD.
Children and Young Peoples Services,Dedicated Schools Grant,Transport,230007,Contract Hire,08-Jun-2012,2455189-270,"1,738.00",AT TAXIS LTD.
Children and Young Peoples Services,Dedicated Schools Grant,Transport,230007,Contract Hire,08-Jun-2012,2455218-122,880.00,CENTRAL TAXIS (PETERLEE) LTD.
Children and Young Peoples Services,Dedicated Schools Grant,Transport,230007,Contract Hire,08-Jun-2012,2455221-1026,"2,170.00",CHESTER ROAD TAXIS.
Children and Young Peoples Services,Dedicated Schools Grant,Transport,230007,Contract Hire,08-Jun-2012,2455229-24/12,"1,144.00",CLARKS TAXIS LTD.
Children and Young Peoples Services,Dedicated Schools Grant,Transport,230007,Contract Hire,08-Jun-2012,2455297-003,"1,496.00",IAN SOULSBY.
Children and Young Peoples Services,Dedicated Schools Grant,Transport,230007,Contract Hire,08-Jun-2012,2455309-882,"1,500.00",KEN CHAMBERS.
Children and Young Peoples Services,Dedicated Schools Grant,Transport,230007,Contract Hire,08-Jun-2012,2455324-BC-05-12,"3,162.00",MR CT WALKER T/A COLIN`S TAXIS.
Children and Young Peoples Services,Dedicated Schools Grant,Transport,230007,Contract Hire,08-Jun-2012,2455377-TS7,"2,420.00",TOP STAR TRAVEL.
Corporate Resources,Financing- Resources,Supplies and Services,338019,Services,08-Jun-2012,2455185-191267,942.80,ALLPAY.NET LTD.
Corporate Resources,Financing- Resources,Supplies and Services,338019,Services,08-Jun-2012,2455185-194075,940.94,ALLPAY.NET LTD.
Corporate Resources,Financing- Resources,Employees,080025,Agency Staff,08-Jun-2012,2455194-4198137,803.00,BADENOCH & CLARK.
Corporate Resources,Financing- Resources,Employees,080025,Agency Staff,08-Jun-2012,2455194-4198138,825.00,BADENOCH & CLARK.
Corporate Resources,Financing- Resources,Employees,080025,Agency Staff,08-Jun-2012,2455194-4198139,704.00,BADENOCH & CLARK.
Corporate Resources,Human Resources Total,Supplies and Services,344135,Telephones,08-Jun-2012,2455254-SI04430,"1,173.78",ELECTROMASTER TELECOMMUNICATIONS LTD.
Corporate Resources,ICT Services incl. Design and Print,Supplies and Services,342107,Computers and Communications,08-Jun-2012,2455263-0001486760,"1,333.00",EUROPEAN ELECTRONIQUE LTD.
Corporate Resources,ICT Services incl. Design and Print,Supplies and Services,304252,Equipment and Materials,08-Jun-2012,2455343-4659208,"4,535.40",OCE UK LTD.
Corporate Resources,ICT Services incl. Design and Print,Supplies and Services,304303,Equipment and Materials,08-Jun-2012,2455379-102617,"1,240.02",TP ELECTRICAL SUPPLIES & FIXINGS LTD.
Corporate Resources,ICT Services incl. Design and Print,Stock,926900,Stock in hand-Inventory system,08-Jun-2012,2455384-1494,512.99,VALUE POWER SYSTEMS LTD.
Corporate Resources,Legal & Democratic Services,Supplies and Services,384151,Miscellaneous Expenses,08-Jun-2012,2455231-3136818,"39,179.08",CO DURHAM & DARLINGTON NHS FOUNDATION TRUST.
Corporate Resources,Legal & Democratic Services,Supplies and Services,338057,Services,08-Jun-2012,2455259-1086,562.20,ELYSIAN PATHOLOGY SERVICES LTD.
Corporate Resources,Legal & Democratic Services,Supplies and Services,384199,Miscellaneous Expenses,08-Jun-2012,2455386-SIN037849,500.00,VOICE PRODUCTS LTD.
Neighbourhood Services,Direct Services,Supplies and Services,324117,Provisions,08-Jun-2012,2455203-22471638,"1,041.83",BRAKE BROS FOODSERVICE LTD.
Neighbourhood Services,Direct Services,Stock,926900,Stock in hand-Inventory system,08-Jun-2012,2455234-12591,"1,530.00",CONDENSATION SHOP.
Neighbourhood Services,Direct Services,Supplies and Services,304221,Equipment and Materials,08-Jun-2012,2455253-059-096469,"8,047.75",EDMUNDSON ELECTRICAL LTD.
Neighbourhood Services,Direct Services,Stock,926900,Stock in hand-Inventory system,08-Jun-2012,2455253-059-098959,584.52,EDMUNDSON ELECTRICAL LTD.
Neighbourhood Services,Direct Services,Stock,926900,Stock in hand-Inventory system,08-Jun-2012,2455253-059-099178,744.00,EDMUNDSON ELECTRICAL LTD.
Neighbourhood Services,Direct Services,Stock,926900,Stock in hand-Inventory system,08-Jun-2012,2455253-059-099385,715.00,EDMUNDSON ELECTRICAL LTD.
Neighbourhood Services,Direct Services,Stock,926900,Stock in hand-Inventory system,08-Jun-2012,2455253-059-099435,"1,097.90",EDMUNDSON ELECTRICAL LTD.
Neighbourhood Services,Direct Services,Supplies and Services,304357,Equipment and Materials,08-Jun-2012,2455271-237978,966.26,G O`BRIEN & SONS LTD.
Neighbourhood Services,Direct Services,Stock,926004,Stock,08-Jun-2012,2455273-7910017,"15,619.80",GB OILS T/A BRETT FUELS.
Neighbourhood Services,Direct Services,Stock,926004,Stock,08-Jun-2012,2455273-7910018,"4,480.70",GB OILS T/A BRETT FUELS.
Neighbourhood Services,Direct Services,Stock,926004,Stock,08-Jun-2012,2455273-7910019,"6,718.20",GB OILS T/A BRETT FUELS.
Neighbourhood Services,Direct Services,Stock,926004,Stock,08-Jun-2012,2455273-7917058,"2,805.50",GB OILS T/A BRETT FUELS.
Neighbourhood Services,Direct Services,Supplies and Services,304259,Equipment and Materials,08-Jun-2012,2455274-112-143-LP,691.50,GB SPORT & LEISURE UK LTD.
Neighbourhood Services,Direct Services,Transport,210057,Repair and Maintenance of Vehicles,08-Jun-2012,2455275-B73160,"1,843.74",GEESINK NORBA LTD.
Neighbourhood Services,Direct Services,Supplies and Services,304259,Equipment and Materials,08-Jun-2012,2455289-595409,886.00,HC SLINGSBY PLC.
Neighbourhood Services,Direct Services,Third Party Payments,430100,Rendered by Private Contractors,08-Jun-2012,2455318-SIN098927,"2,667.00",MICROLISE LTD.
Neighbourhood Services,Direct Services,Supplies and Services,304221,Equipment and Materials,08-Jun-2012,2455349-4120/133322,916.43,PLUMBING TRADE SUPPLIES LTD.
Neighbourhood Services,Direct Services,Third Party Payments,430105,Rendered by Private Contractors,08-Jun-2012,2455367-042077,"1,417.50",STONEGRAVE AGGREGATES LTD.
Neighbourhood Services,Direct Services,Third Party Payments,430100,Rendered by Private Contractors,08-Jun-2012,2455380-107155,"7,662.00",TRADESLINK ASBESTOS SERVICES LTD.
Neighbourhood Services,Projects and Business services,Third Party Payments,430103,Rendered by Private Contractors,08-Jun-2012,2455283-CLAIM26-292012/13,"3,255.45",GREAT NORTH AIR AMBULANCE SERVICE TRADING CO LTD.
Neighbourhood Services,Sport & Leisure,Third Party Payments,430100,Rendered by Private Contractors,08-Jun-2012,2455278-12/15,785.00,GO KART PARTY.
Neighbourhood Services,Technical Services,Construction Work,908114,Capital - Bridge Strengthening,08-Jun-2012,2455181-60216682-60,988.50,AECOM LTD.
Neighbourhood Services,Technical Services,Supplies and Services,384999,Miscellaneous Expenses,08-Jun-2012,2455215-MI44820,"1,143.28",CAUSEWAY TECHNOLOGIES LTD.
Neighbourhood Services,Technical Services,Construction Work,908105,Construction work,08-Jun-2012,2455233-19MAY2012,"2,980.00",COLIN ROBINSON LTD.
Neighbourhood Services,Technical Services,Supplies and Services,304357,Equipment and Materials,08-Jun-2012,2455272-DCC270512,"7,882.80",GAP GROUP LTD.
Neighbourhood Services,Technical Services,Supplies and Services,304357,Equipment and Materials,08-Jun-2012,2455276-8739,837.82,GEORGE VARDY HAULAGE.
Neighbourhood Services,Technical Services,Supplies and Services,304358,Equipment and Materials,08-Jun-2012,2455276-8762,"1,039.50",GEORGE VARDY HAULAGE.
Neighbourhood Services,Technical Services,Supplies and Services,304357,Equipment and Materials,08-Jun-2012,2455320-718063297,860.00,MOBILE MINI UK LTD.
Neighbourhood Services,Technical Services,Supplies and Services,304357,Equipment and Materials,08-Jun-2012,2455320-718063302,860.00,MOBILE MINI UK LTD.
Neighbourhood Services,Technical Services,Supplies and Services,304254,Equipment and Materials,08-Jun-2012,2455339-113313,"1,923.20",NORTH EAST VENDING LTD.
Neighbourhood Services,Technical Services,Premises,106099,Centrally Controlled Rep and Maint,08-Jun-2012,2455341-QUO5180055,693.00,NORTHERN POWERGRID (YORKSHIRE) PLC..
Neighbourhood Services,Technical Services,Supplies and Services,304221,Equipment and Materials,08-Jun-2012,2455360-561653,642.20,SHERBURN STONE CO LTD.
Neighbourhood Services,Technical Services,Supplies and Services,304358,Equipment and Materials,08-Jun-2012,2455396-2568,878.64,YOULL CONSTRUCTION LTD.
Neighbourhood Services,Technical Services,Supplies and Services,304358,Equipment and Materials,08-Jun-2012,2455396-2569,988.64,YOULL CONSTRUCTION LTD.
Neighbourhood Services,Technical Services,Supplies and Services,304358,Equipment and Materials,08-Jun-2012,2455396-2570,988.64,YOULL CONSTRUCTION LTD.
RED HRA,Dale & Valley Homes - HRA Rent Control Account,Creditors,952191,Creditor-HRA-rents-refunds,08-Jun-2012,2455328-RR,524.05,REDACTED - PAYMENT TO INDIVIDUAL
RED HRA,HRA Capital,Other Expenses,914006,Tenants Allowances,08-Jun-2012,2455393-6/256158,"1,094.26",WILLIAMSONS PAINT & WALL COVERINGS.
Regeneration & Economic Development,Economic Development and Housing,Supplies and Services,344033,Telephones,08-Jun-2012,2455207-20016454,"1,739.80",BRITISH TELECOMMUNICATIONS PLC.
Regeneration & Economic Development,Economic Development and Housing,Premises,125009,Rents,08-Jun-2012,2455243-1489,"1,666.64",DERWENTSIDE COUNCIL FOR VOL SERVICES & VOL BUREAU.
Regeneration & Economic Development,Economic Development and Housing,Supplies and Services,384700,Miscellaneous Expenses,08-Jun-2012,2455294-Y1C,"1,250.60",HIATCO LTD.
Regeneration & Economic Development,Economic Development and Housing,Premises,120021,Energy Costs,08-Jun-2012,2455364-0314584111-27/4/12,510.00,SOUTHERN ELECTRIC.
Regeneration & Economic Development,Economic Development and Housing,Supplies and Services,384700,Miscellaneous Expenses,08-Jun-2012,2455373-Y1C,"1,351.46",THE HOUSE.
Regeneration & Economic Development,Housing General Fund,Cap Exp on Grants & Other Financial Assistance (REFCUS),918401,Capital grants,08-Jun-2012,2455191-766,"6,677.50",AVENSWAY BUILDING CONTRACTORS LTD.
Regeneration & Economic Development,Housing General Fund,Cap Exp on Grants & Other Financial Assistance (REFCUS),918401,Capital grants,08-Jun-2012,2455251-8424,"2,208.92",EASIBATHE LTD.
Regeneration & Economic Development,Housing General Fund,Cap Exp on Grants & Other Financial Assistance (REFCUS),918401,Capital grants,08-Jun-2012,2455257-810,"3,500.00",ELLIOT HIRD & PARTNERS LTD.
Regeneration & Economic Development,Housing General Fund,Cap Exp on Grants & Other Financial Assistance (REFCUS),918401,Capital grants,08-Jun-2012,2455265-DFG23/12,"3,250.00",F TIFFEN BUILDING SERVICES.
Regeneration & Economic Development,Housing General Fund,Cap Exp on Grants & Other Financial Assistance (REFCUS),918401,Capital grants,08-Jun-2012,2455265-DFG483/11,"1,440.00",F TIFFEN BUILDING SERVICES.
Regeneration & Economic Development,Housing General Fund,Cap Exp on Grants & Other Financial Assistance (REFCUS),918401,Capital grants,08-Jun-2012,2455315-2012/484,"3,341.39",M & R DEVELOPMENTS & CONTRACTORS LTD..
Regeneration & Economic Development,Transport,Third Party Payments,430107,Rendered by Private Contractors,08-Jun-2012,2455187-CF12/13-INS2,"701,727.45",ARRIVA DURHAM COUNTY LTD.
Regeneration & Economic Development,Transport,Third Party Payments,430107,Rendered by Private Contractors,08-Jun-2012,2455279-CF12/13-INS2,"755,777.35",GO NORTH EAST.
Regeneration & Economic Development,Transport,Third Party Payments,430107,Rendered by Private Contractors,08-Jun-2012,2455279-CFADDSRS12/13-INS2,"25,528.07",GO NORTH EAST.
Regeneration & Economic Development,Transport,Third Party Payments,430107,Rendered by Private Contractors,08-Jun-2012,2455296-CF12/13-INS2,"1,267.40",HODGSONS COACH OPERATORS LTD.
Regeneration & Economic Development,Transport,Third Party Payments,430107,Rendered by Private Contractors,08-Jun-2012,2455304-CF12/13-INS2,"13,990.92",JOHN JAMES BRUNSKILL.
Regeneration & Economic Development,Transport,Third Party Payments,430107,Rendered by Private Contractors,08-Jun-2012,2455358-CF12/13-INS2,"11,688.49",SB TRAVEL.
Regeneration & Economic Development,Transport,Third Party Payments,430107,Rendered by Private Contractors,08-Jun-2012,2455359-CF12/13-INS2,"24,489.96",SCARLET BAND MOTOR SERVICES.
Regeneration & Economic Development,Transport,Premises,145009,Cleaning and Domestic Supplies,08-Jun-2012,2455372-53328,905.84,THE DURHAM COMPANY (TDC).
Regeneration & Economic Development,Transport,Premises,145009,Cleaning and Domestic Supplies,08-Jun-2012,2455372-53341,905.84,THE DURHAM COMPANY (TDC).
Regeneration & Economic Development,Transport,Premises,145009,Cleaning and Domestic Supplies,08-Jun-2012,2455372-53365,905.84,THE DURHAM COMPANY (TDC).
Regeneration & Economic Development,Transport,Third Party Payments,430107,Rendered by Private Contractors,08-Jun-2012,2455391-CF12/13-INS2,"39,336.31",WEARDALE MOTOR SERVICES LTD.
Adults Wellbeing and Health,Commissioning inc Supporting People,Third Party Payments,473111,Purchase of Care,11-Jun-2012,2455534-1576,"9,970.00",DAYBREAK.
Adults Wellbeing and Health,Commissioning inc Supporting People,Supplies and Services,338047,Services,11-Jun-2012,2455451-BTBDUR-190512,"4,896.96",BEYOND THE BARRICADE LTD.
Adults Wellbeing and Health,Commissioning inc Supporting People,Supplies and Services,338047,Services,11-Jun-2012,2455847-0941,"1,495.23",SOUL OVER EASY.
Adults Wellbeing and Health,Financing-Adult Services,Creditors,952035,Creditor-housing benefit-eqpt,11-Jun-2012,2455705-17/05/2012,"1,646.67",LINTZFORD GARDEN CENTRE.
Adults Wellbeing and Health,Head of Adults,Premises,106099,Centrally Controlled Rep and Maint,11-Jun-2012,2455693-INV00128786,"1,560.00",LANES GROUP PLC.
Adults Wellbeing and Health,Head of Adults,Premises,125009,Rents,11-Jun-2012,2455653-3-JUN12,585.06,REDACTED - PAYMENT TO INDIVIDUAL
Adults Wellbeing and Health,Head of Adults,Supplies and Services,304259,Equipment and Materials,11-Jun-2012,2455696-SIN0491729,"1,084.21",LBS HORTICULTURE LTD.
Adults Wellbeing and Health,Head of Adults,Third Party Payments,478101,Purchase of Care,11-Jun-2012,2455525-0000095573,"1,494.08",CREATIVE SUPPORT LTD.
Adults Wellbeing and Health,Head of Adults,Third Party Payments,478101,Purchase of Care,11-Jun-2012,2455525-0000095574,"2,988.16",CREATIVE SUPPORT LTD.
Adults Wellbeing and Health,Head of Adults,Summary reporting level,720033,Fees and Charges,11-Jun-2012,2455536-R,"5,169.01",REDACTED - PAYMENT TO INDIVIDUAL
Adults Wellbeing and Health,Planning and Performance,Supplies and Services,340001,Postages,11-Jun-2012,2455751-ACC204981-20/4/12,900.00,NEOPOST LTD CREDIFON RCB ACCOUNT.
Adults Wellbeing and Health,Social Inclusion,Supplies and Services,384199,Miscellaneous Expenses,11-Jun-2012,2455547-6B,"6,500.00",DURHAM AGENCY AGAINST CRIME LTD.
Adults Wellbeing and Health,Social Inclusion,Supplies and Services,384199,Miscellaneous Expenses,11-Jun-2012,2455625-HBBATH10,700.00,HILARITY BITES COMEDY CLUB.
Assistant Chief Executive,Partnerships & Community Engagement Div.,Supplies and Services,384085,Miscellaneous Expenses,11-Jun-2012,2455485-HENS07-12MARL06-12MAYP06-12,700.00,CHESTER LE STREET & DISTRICT CVS & VB.
Assistant Chief Executive,Partnerships & Community Engagement Div.,Supplies and Services,384085,Miscellaneous Expenses,11-Jun-2012,2455598-BELA01-12,500.00,GREAT LUMLEY METHODIST CHURCH.
Assistant Chief Executive,Partnerships & Community Engagement Div.,Transfer Payments,525030,Other,11-Jun-2012,2455733-OTR,550.00,MONK HESLEDEN PARISH COUNCIL.
Assistant Chief Executive,Policy & Communications Division,Supplies and Services,332029,"Printing, Stationery and Gen Off Exps",11-Jun-2012,2455403-0000042234,"18,448.67",ACORN WEB OFFSET LTD.
Children and Young Peoples Services,CYPS - Local Authority,Transport,230007,Contract Hire,11-Jun-2012,2455397-051201,836.00,24/7 TAXI SERVICES LTD.
Children and Young Peoples Services,CYPS - Local Authority,Transport,230007,Contract Hire,11-Jun-2012,2455397-051202,880.00,24/7 TAXI SERVICES LTD.
Children and Young Peoples Services,CYPS - Local Authority,Transport,230007,Contract Hire,11-Jun-2012,2455397-051203,"1,992.00",24/7 TAXI SERVICES LTD.
Children and Young Peoples Services,CYPS - Local Authority,Transport,230007,Contract Hire,11-Jun-2012,2455397-051205,770.00,24/7 TAXI SERVICES LTD.
Children and Young Peoples Services,CYPS - Local Authority,Transport,230007,Contract Hire,11-Jun-2012,2455397-051207,"2,860.00",24/7 TAXI SERVICES LTD.
Children and Young Peoples Services,CYPS - Local Authority,Transport,230007,Contract Hire,11-Jun-2012,2455397-051208,914.50,24/7 TAXI SERVICES LTD.
Children and Young Peoples Services,CYPS - Local Authority,Transport,230007,Contract Hire,11-Jun-2012,2455397-051209,"1,624.00",24/7 TAXI SERVICES LTD.
Children and Young Peoples Services,CYPS - Local Authority,Transport,230007,Contract Hire,11-Jun-2012,2455399-429,"1,650.00",A BARKER.
Children and Young Peoples Services,CYPS - Local Authority,Transport,230007,Contract Hire,11-Jun-2012,2455399-430,"1,100.00",A BARKER.
Children and Young Peoples Services,CYPS - Local Authority,Transport,230007,Contract Hire,11-Jun-2012,2455399-431,"1,650.00",A BARKER.
Children and Young Peoples Services,CYPS - Local Authority,Transport,230007,Contract Hire,11-Jun-2012,2455413-14,"1,890.00",AJ ADAMSON (TONY`S TAXIS).
Children and Young Peoples Services,CYPS - Local Authority,Premises,106099,Centrally Controlled Rep and Maint,11-Jun-2012,2455424-81524,603.33,AQUEOUS 1ST KWIK FLOW.
Children and Young Peoples Services,CYPS - Local Authority,Transport,230007,Contract Hire,11-Jun-2012,2455475-53,"3,105.66",CASTLE CARS.
Children and Young Peoples Services,CYPS - Local Authority,Transport,230007,Contract Hire,11-Jun-2012,2455527-1180MAY12,"1,100.00",DA TAXIS.
Children and Young Peoples Services,CYPS - Local Authority,Transfer Payments,510026,School Children,11-Jun-2012,2455576-EDS/SUS/003,"3,000.00",FIRST STEPS NURSERY.
Children and Young Peoples Services,CYPS - Local Authority,Transport,230007,Contract Hire,11-Jun-2012,2455580-0199,"1,609.30",FMR SILVA PITA.
Children and Young Peoples Services,CYPS - Local Authority,Transport,230007,Contract Hire,11-Jun-2012,2455580-0200,913.66,FMR SILVA PITA.
Children and Young Peoples Services,CYPS - Local Authority,Transport,230007,Contract Hire,11-Jun-2012,2455580-0201,748.00,FMR SILVA PITA.
Children and Young Peoples Services,CYPS - Local Authority,Transport,230007,Contract Hire,11-Jun-2012,2455580-0202,756.12,FMR SILVA PITA.
Children and Young Peoples Services,CYPS - Local Authority,Transport,230007,Contract Hire,11-Jun-2012,2455580-0203,555.50,FMR SILVA PITA.
Children and Young Peoples Services,CYPS - Local Authority,Transport,230007,Contract Hire,11-Jun-2012,2455599-7921,"1,564.42",GREENCROFT MINI COACHES.
Children and Young Peoples Services,CYPS - Local Authority,Transport,230007,Contract Hire,11-Jun-2012,2455599-7922,"1,727.88",GREENCROFT MINI COACHES.
Children and Young Peoples Services,CYPS - Local Authority,Supplies and Services,338045,Services,11-Jun-2012,2455628-ND11C00087,"2,600.00",HMCTS.
Children and Young Peoples Services,CYPS - Local Authority,Transport,230007,Contract Hire,11-Jun-2012,2455630-YC004,523.60,HOTS TAXIS.
Children and Young Peoples Services,CYPS - Local Authority,Transport,230007,Contract Hire,11-Jun-2012,2455636-IR1206001,"2,600.00",I & R EXECUTIVE TRAVEL.
Children and Young Peoples Services,CYPS - Local Authority,Transport,230007,Contract Hire,11-Jun-2012,2455636-IR1206002,990.00,I & R EXECUTIVE TRAVEL.
Children and Young Peoples Services,CYPS - Local Authority,Transport,230007,Contract Hire,11-Jun-2012,2455636-IR1206004,"1,260.00",I & R EXECUTIVE TRAVEL.
Children and Young Peoples Services,CYPS - Local Authority,Supplies and Services,308011,Furniture,11-Jun-2012,2455644-4559,"1,140.85",INGRAMS REMOVERS & STORERS.
Children and Young Peoples Services,CYPS - Local Authority,Construction Work,908105,Construction work,11-Jun-2012,2455647-DURH/0232,"1,056.00",INSPIREDSPACES DURHAM LTD.
Children and Young Peoples Services,CYPS - Local Authority,Construction Work,908105,Construction work,11-Jun-2012,2455647-DURH/0233,"383,180.00",INSPIREDSPACES DURHAM LTD.
Children and Young Peoples Services,CYPS - Local Authority,Construction Work,908105,Construction work,11-Jun-2012,2455647-DURH/0238,"27,423.91",INSPIREDSPACES DURHAM LTD.
Children and Young Peoples Services,CYPS - Local Authority,Transport,230007,Contract Hire,11-Jun-2012,2455656-F487D&E,620.00,JAFFAS TAXIS.
Children and Young Peoples Services,CYPS - Local Authority,Transport,230007,Contract Hire,11-Jun-2012,2455656-P036AMAY12,"1,608.00",JAFFAS TAXIS.
Children and Young Peoples Services,CYPS - Local Authority,Transport,230007,Contract Hire,11-Jun-2012,2455658-1290,"2,724.78",JEFF ANDERSON COACHES LTD.
Children and Young Peoples Services,CYPS - Local Authority,Transport,230007,Contract Hire,11-Jun-2012,2455658-1291,"4,066.26",JEFF ANDERSON COACHES LTD.
Children and Young Peoples Services,CYPS - Local Authority,Transport,230007,Contract Hire,11-Jun-2012,2455658-1293,"2,188.78",JEFF ANDERSON COACHES LTD.
Children and Young Peoples Services,CYPS - Local Authority,Transport,230007,Contract Hire,11-Jun-2012,2455665-5/3236MAY12,"1,100.00",JK TAXIS.
Children and Young Peoples Services,CYPS - Local Authority,Transport,230007,Contract Hire,11-Jun-2012,2455665-5MAY12,870.00,JK TAXIS.
Children and Young Peoples Services,CYPS - Local Authority,Transport,230007,Contract Hire,11-Jun-2012,2455667-2012/17,"1,613.26",JM HUMBLE COACH HIRE.
Children and Young Peoples Services,CYPS - Local Authority,Transport,230007,Contract Hire,11-Jun-2012,2455673-5,838.50,JOHN RIDLEY.
Children and Young Peoples Services,CYPS - Local Authority,Transport,230007,Contract Hire,11-Jun-2012,2455674-13,"1,144.00",JOHNS TAXIS (CHESTER LE STREET).
Children and Young Peoples Services,CYPS - Local Authority,Transport,230007,Contract Hire,11-Jun-2012,2455674-14,"1,650.00",JOHNS TAXIS (CHESTER LE STREET).
Children and Young Peoples Services,CYPS - Local Authority,Transport,230007,Contract Hire,11-Jun-2012,2455674-16,704.00,JOHNS TAXIS (CHESTER LE STREET).
Children and Young Peoples Services,CYPS - Local Authority,Transport,230007,Contract Hire,11-Jun-2012,2455678-SJ47,"1,596.54",JOVIAL PRIVATE HIRE.
Children and Young Peoples Services,CYPS - Local Authority,Transport,230007,Contract Hire,11-Jun-2012,2455678-T15,"1,606.00",JOVIAL PRIVATE HIRE.
Children and Young Peoples Services,CYPS - Local Authority,Transport,230007,Contract Hire,11-Jun-2012,2455687-8,836.00,KEVIN PARKIN.
Children and Young Peoples Services,CYPS - Local Authority,Transport,230007,Contract Hire,11-Jun-2012,2455708-912MAY12,"2,640.00",LP TRAVEL LTD.
Children and Young Peoples Services,CYPS - Local Authority,Transport,230007,Contract Hire,11-Jun-2012,2455718-4315,"1,012.50",MARKS TAXIS.
Children and Young Peoples Services,CYPS - Local Authority,Transport,230007,Contract Hire,11-Jun-2012,2455725-004644,"1,760.00",MICHAELS TRAVEL.
Children and Young Peoples Services,CYPS - Local Authority,Transport,230007,Contract Hire,11-Jun-2012,2455735-411,"3,080.00",MR AD HOWARD.
Children and Young Peoples Services,CYPS - Local Authority,Transport,230007,Contract Hire,11-Jun-2012,2455736-BP-05-12,"1,606.00",MR CT WALKER T/A COLIN`S TAXIS.
Children and Young Peoples Services,CYPS - Local Authority,Transport,230007,Contract Hire,11-Jun-2012,2455736-M-05-12,"2,489.80",MR CT WALKER T/A COLIN`S TAXIS.
Children and Young Peoples Services,CYPS - Local Authority,Transport,230007,Contract Hire,11-Jun-2012,2455737-5A,"1,855.00",MR G FREELAND.
Children and Young Peoples Services,CYPS - Local Authority,Transport,230007,Contract Hire,11-Jun-2012,2455738-7002MAY12,"1,640.00",MR JG HOWARTH.
Children and Young Peoples Services,CYPS - Local Authority,Transport,230007,Contract Hire,11-Jun-2012,2455739-0020,"1,320.00",MR JR FORT.
Children and Young Peoples Services,CYPS - Local Authority,Transport,230007,Contract Hire,11-Jun-2012,2455739-003MAY12,648.00,MR JR FORT.
Children and Young Peoples Services,CYPS - Local Authority,Transport,230007,Contract Hire,11-Jun-2012,2455740-N072/05/12,"1,786.00",MR M ALLISON.
Children and Young Peoples Services,CYPS - Local Authority,Transport,230007,Contract Hire,11-Jun-2012,2455740-N187/05/12,880.00,MR M ALLISON.
Children and Young Peoples Services,CYPS - Local Authority,Transport,230007,Contract Hire,11-Jun-2012,2455740-NO81/05/12,"1,342.00",MR M ALLISON.
Children and Young Peoples Services,CYPS - Local Authority,Transport,230007,Contract Hire,11-Jun-2012,2455740-NO84/05/12,"1,034.00",MR M ALLISON.
Children and Young Peoples Services,CYPS - Local Authority,Transport,230007,Contract Hire,11-Jun-2012,2455742-2676,660.00,MR S BOWERS.
Children and Young Peoples Services,CYPS - Local Authority,Transport,230007,Contract Hire,11-Jun-2012,2455742-2677,777.00,MR S BOWERS.
Children and Young Peoples Services,CYPS - Local Authority,Supplies and Services,340001,Postages,11-Jun-2012,2455750-DB1012510164,500.00,NEOPOST FINANCE LTD.
Children and Young Peoples Services,CYPS - Local Authority,Supplies and Services,340001,Postages,11-Jun-2012,2455751-662722MAY2012,500.00,NEOPOST LTD CREDIFON RCB ACCOUNT.
Children and Young Peoples Services,CYPS - Local Authority,Transport,230005,Contract Hire,11-Jun-2012,2455765-SL01175657INV,625.60,NORTHGATE VEHICLE HIRE LTD.
Children and Young Peoples Services,CYPS - Local Authority,Supplies and Services,332047,"Printing, Stationery and Gen Off Exps",11-Jun-2012,2455860-5011421,851.52,SUPPLIES TEAM LTD.
Children and Young Peoples Services,CYPS - Local Authority,Transport,230007,Contract Hire,11-Jun-2012,2455863-05/2012/044,"1,708.96",TARN`S TAXIS.
Children and Young Peoples Services,CYPS - Local Authority,Employees,040001,"Recruitment, Instruction and Training",11-Jun-2012,2455885-100000895391,552.00,TMP (UK) LTD (RECRUITMENT).
Children and Young Peoples Services,CYPS - Local Authority,Supplies and Services,336005,Advertising,11-Jun-2012,2455885-100000895393,"5,137.60",TMP (UK) LTD (RECRUITMENT).
Children and Young Peoples Services,CYPS - Local Authority,Transport,230007,Contract Hire,11-Jun-2012,2455892-936,807.07,TRAPPA`S TRAVEL.
Children and Young Peoples Services,CYPS - Local Authority,Transport,230007,Contract Hire,11-Jun-2012,2455894-A030,"1,012.50",TRIDENT TAXIS.
Children and Young Peoples Services,CYPS - Local Authority,Construction Work,908105,Construction work,11-Jun-2012,2455900-000529663,"3,111.00",TURNER & TOWNSEND LLP.
Children and Young Peoples Services,CYPS - Local Authority,Transport,230007,Contract Hire,11-Jun-2012,2455901-0618,"4,774.44",TYNESIDE TRAVEL LTD.
Children and Young Peoples Services,Dedicated Schools Grant,Third Party Payments,425005,Rendered by Voluntary Organisations,11-Jun-2012,2455531-2141527,"1,150.00",DARLINGTON BOROUGH COUNCIL.
Children and Young Peoples Services,Dedicated Schools Grant,Transport,230007,Contract Hire,11-Jun-2012,2455737-5C,"1,540.00",MR G FREELAND.
Children and Young Peoples Services,Dedicated Schools Grant,Transport,230007,Contract Hire,11-Jun-2012,2455767-0003MAY12,"2,090.00",NORTHVIEW PRIVATE HIRE.
Children and Young Peoples Services,Dedicated Schools Grant,Supplies and Services,324093,Provisions,11-Jun-2012,2455864-SITSW1008551,"1,462.50",TAYLOR SHAW LTD.
Children and Young Peoples Services,Dedicated Schools Grant,Supplies and Services,324093,Provisions,11-Jun-2012,2455864-SITSW1008671,819.00,TAYLOR SHAW LTD.
Children and Young Peoples Services,Dedicated Schools Grant,Transport,230007,Contract Hire,11-Jun-2012,2455893-2MAY12,540.00,TRAVEL 6.
Corporate Resources,Corporate Services Financing,Debtors,930153,Debtor-postages-Wear Valley,11-Jun-2012,2455785-R,"1,304.70",PITNEY BOWES LTD.
Corporate Resources,ICT Services incl. Design and Print,Stock,926900,Stock in hand-Inventory system,11-Jun-2012,2455520-812479,578.10,CPC.
Corporate Resources,ICT Services incl. Design and Print,Stock,926900,Stock in hand-Inventory system,11-Jun-2012,2455537-7401935879,673.61,DELL COMPUTER CORPORATION LTD.
Corporate Resources,ICT Services incl. Design and Print,Stock,926900,Stock in hand-Inventory system,11-Jun-2012,2455537-7401935880,"3,369.95",DELL COMPUTER CORPORATION LTD.
Corporate Resources,ICT Services incl. Design and Print,Stock,926900,Stock in hand-Inventory system,11-Jun-2012,2455606-INV0144042,"4,350.00",GV MULTI MEDIA LTD.
Corporate Resources,ICT Services incl. Design and Print,Supplies and Services,332029,"Printing, Stationery and Gen Off Exps",11-Jun-2012,2455626-63612,"3,610.00",HILLPRINT MEDIA LTD.
Corporate Resources,ICT Services incl. Design and Print,Supplies and Services,304639,Equipment and Materials,11-Jun-2012,2455646-11726602,683.88,INSIGHT DIRECT (UK) LTD.
Corporate Resources,ICT Services incl. Design and Print,"Vehicles, Equipment, Furniture and Fittings",912701,Computer equipment,11-Jun-2012,2455646-11727619,605.00,INSIGHT DIRECT (UK) LTD.
Corporate Resources,ICT Services incl. Design and Print,Supplies and Services,342525,Computers and Communications,11-Jun-2012,2455744-110,"4,800.00",MRS K DE BOINVILLE.
Corporate Resources,ICT Services incl. Design and Print,Supplies and Services,332029,"Printing, Stationery and Gen Off Exps",11-Jun-2012,2455852-6322,"3,420.00",SPOT ON DISPLAYS LTD.
Corporate Resources,ICT Services incl. Design and Print,Stock,926900,Stock in hand-Inventory system,11-Jun-2012,2455860-5012205,"2,017.11",SUPPLIES TEAM LTD.
Corporate Resources,Internal Audit and Insurance,Supplies and Services,384199,Miscellaneous Expenses,11-Jun-2012,2455793-1353746683,"3,950.00",PRICEWATERHOUSECOOPERS.
Corporate Resources,Legal & Democratic Services,Supplies and Services,338025,Services,11-Jun-2012,2455565-1088,803.00,ELYSIAN PATHOLOGY SERVICES LTD.
Corporate Resources,Legal & Democratic Services,Supplies and Services,384199,Miscellaneous Expenses,11-Jun-2012,2455766-2884,"1,100.00",NORTHGENE LTD.
Corporate Resources,Legal & Democratic Services,Supplies and Services,336005,Advertising,11-Jun-2012,2455885-100000895100,551.80,TMP (UK) LTD (RECRUITMENT).
Neighbourhood Services,Direct Services,Stock,926900,Stock in hand-Inventory system,11-Jun-2012,2455400-LLI251735,"1,182.72",A THOMPSON & SONS LTD.
Neighbourhood Services,Direct Services,Stock,926900,Stock in hand-Inventory system,11-Jun-2012,2455425-916770793,"2,097.48",ARCO LTD.
Neighbourhood Services,Direct Services,Stock,926900,Stock in hand-Inventory system,11-Jun-2012,2455432-SIN167671,738.00,ATF SUPPLIES LTD.
Neighbourhood Services,Direct Services,Stock,926900,Stock in hand-Inventory system,11-Jun-2012,2455447-DUR/123939,660.00,BEMCO LTD.
Neighbourhood Services,Direct Services,Stock,926900,Stock in hand-Inventory system,11-Jun-2012,2455454-0000205358,625.00,BISON BEDE LTD.
Neighbourhood Services,Direct Services,Stock,926900,Stock in hand-Inventory system,11-Jun-2012,2455458-8312295,700.00,BOLD NU TEC INSULATION PRODUCTS & SERVICES LTD.
Neighbourhood Services,Direct Services,Supplies and Services,324117,Provisions,11-Jun-2012,2455461-22492871,807.65,BRAKE BROS FOODSERVICE LTD.
Neighbourhood Services,Direct Services,Transport,210057,Repair and Maintenance of Vehicles,11-Jun-2012,2455484-557918,524.88,CHATFIELDS.
Neighbourhood Services,Direct Services,Transport,210057,Repair and Maintenance of Vehicles,11-Jun-2012,2455539-DE10632930,826.66,DENNIS EAGLE LTD.
Neighbourhood Services,Direct Services,Supplies and Services,304221,Equipment and Materials,11-Jun-2012,2455546-00099911,"4,633.00",DUNHAM BUSH LTD.
Neighbourhood Services,Direct Services,Stock,926900,Stock in hand-Inventory system,11-Jun-2012,2455578-OP/I259206,"1,040.00",FLEMING & CO (MACHINERY) LTD.
Neighbourhood Services,Direct Services,Transport,210057,Repair and Maintenance of Vehicles,11-Jun-2012,2455579-IN080670,540.30,FM STEELSTOCK LTD.
Neighbourhood Services,Direct Services,Stock,926004,Stock,11-Jun-2012,2455585-216085613,628.54,FUCHS LUBRICANTS (UK) PLC.
Neighbourhood Services,Direct Services,Stock,926004,Stock,11-Jun-2012,2455588-7825575,"5,747.00",GB OILS T/A BRETT FUELS.
Neighbourhood Services,Direct Services,Stock,926004,Stock,11-Jun-2012,2455588-7845143,"1,307.00",GB OILS T/A BRETT FUELS.
Neighbourhood Services,Direct Services,Stock,926004,Stock,11-Jun-2012,2455588-7881484,"10,138.50",GB OILS T/A BRETT FUELS.
Neighbourhood Services,Direct Services,Stock,926004,Stock,11-Jun-2012,2455588-7901683,"13,473.43",GB OILS T/A BRETT FUELS.
Neighbourhood Services,Direct Services,Stock,926004,Stock,11-Jun-2012,2455588-7901868,"3,212.66",GB OILS T/A BRETT FUELS.
Neighbourhood Services,Direct Services,Supplies and Services,304221,Equipment and Materials,11-Jun-2012,2455606-INV0144043,592.00,GV MULTI MEDIA LTD.
Neighbourhood Services,Direct Services,Premises,106099,Centrally Controlled Rep and Maint,11-Jun-2012,2455635-112644,520.00,HUTCHINSON DRAINAGE LTD.
Neighbourhood Services,Direct Services,Stock,926900,Stock in hand-Inventory system,11-Jun-2012,2455648-374560,"1,845.76",INSTARMAC GROUP PLC.
Neighbourhood Services,Direct Services,Stock,926900,Stock in hand-Inventory system,11-Jun-2012,2455662-3307/0304960,"2,765.00",JEWSON LTD.
Neighbourhood Services,Direct Services,Stock,926900,Stock in hand-Inventory system,11-Jun-2012,2455682-STI362397,884.00,JT DOVE LTD.
Neighbourhood Services,Direct Services,Supplies and Services,304221,Equipment and Materials,11-Jun-2012,2455789-4120/133443,833.98,PLUMBING TRADE SUPPLIES LTD.
Neighbourhood Services,Direct Services,Premises,108251,Service Repairs and Maintenance,11-Jun-2012,2455799-2406,"6,071.04",QW SECURITY LTD.
Neighbourhood Services,Direct Services,Premises,108251,Service Repairs and Maintenance,11-Jun-2012,2455799-2473,"6,462.72",QW SECURITY LTD.
Neighbourhood Services,Direct Services,Transport,230005,Contract Hire,11-Jun-2012,2455810-SLINV/00039503,"4,410.00",RIVERSIDE TRUCK RENTAL LTD.
Neighbourhood Services,Direct Services,Transport,230005,Contract Hire,11-Jun-2012,2455810-SLINV/00039504,"4,410.00",RIVERSIDE TRUCK RENTAL LTD.
Neighbourhood Services,Direct Services,Stock,926900,Stock in hand-Inventory system,11-Jun-2012,2455860-5010101,903.40,SUPPLIES TEAM LTD.
Neighbourhood Services,Direct Services,Transport,210057,Repair and Maintenance of Vehicles,11-Jun-2012,2455873-96266017,816.48,TERBERG MATEC (UK) LTD.
Neighbourhood Services,Direct Services,Transport,210057,Repair and Maintenance of Vehicles,11-Jun-2012,2455874-C68069,972.90,TH WHITE LTD.
Neighbourhood Services,Direct Services,Stock,926900,Stock in hand-Inventory system,11-Jun-2012,2455883-N/IN74614,"1,197.00",THOMAS OWEN & SONS (NEWCASTLE) LTD.
Neighbourhood Services,"Environment,Health & Consumer Protection",Employees,040149,"Recruitment, Instruction and Training",11-Jun-2012,2455489-802387961,714.00,CITY & GUILDS OF LONDON INSTITUTE.
Neighbourhood Services,Sport & Leisure,Premises,106099,Centrally Controlled Rep and Maint,11-Jun-2012,2455404-11995,"1,004.00",ACROL AIR CONDITIONING CO LTD.
Neighbourhood Services,Sport & Leisure,Premises,106099,Centrally Controlled Rep and Maint,11-Jun-2012,2455510-10847,"2,100.00",COOL BREEZE LTD.
Neighbourhood Services,Sport & Leisure,Supplies and Services,304221,Equipment and Materials,11-Jun-2012,2455518-491,800.00,COUNTY DURHAM EMS.
Neighbourhood Services,Sport & Leisure,Supplies and Services,384700,Miscellaneous Expenses,11-Jun-2012,2455548-CDS05/11,"6,506.80",DURHAM AMATEUR ROWING CLUB.
Neighbourhood Services,Sport & Leisure,Premises,106099,Centrally Controlled Rep and Maint,11-Jun-2012,2455607-87867,"1,903.17",H20 CHEMICALS.
Neighbourhood Services,Sport & Leisure,Supplies and Services,304221,Equipment and Materials,11-Jun-2012,2455871-12004633,"22,886.10",TECHNOGYM UK LTD.
Neighbourhood Services,Technical Services,Supplies and Services,304221,Equipment and Materials,11-Jun-2012,2455410-16175056,568.13,AGGREGATE INDUSTRIES UK LTD.
Neighbourhood Services,Technical Services,Supplies and Services,304221,Equipment and Materials,11-Jun-2012,2455410-16182474,709.02,AGGREGATE INDUSTRIES UK LTD.
Neighbourhood Services,Technical Services,Supplies and Services,304221,Equipment and Materials,11-Jun-2012,2455410-16219702,"1,212.90",AGGREGATE INDUSTRIES UK LTD.
Neighbourhood Services,Technical Services,Supplies and Services,304221,Equipment and Materials,11-Jun-2012,2455410-16229886,"1,234.93",AGGREGATE INDUSTRIES UK LTD.
Neighbourhood Services,Technical Services,Supplies and Services,304221,Equipment and Materials,11-Jun-2012,2455410-16229891,964.38,AGGREGATE INDUSTRIES UK LTD.
Neighbourhood Services,Technical Services,Supplies and Services,304221,Equipment and Materials,11-Jun-2012,2455410-16229892,"9,121.64",AGGREGATE INDUSTRIES UK LTD.
Neighbourhood Services,Technical Services,Supplies and Services,304221,Equipment and Materials,11-Jun-2012,2455410-16236852,"1,157.29",AGGREGATE INDUSTRIES UK LTD.
Neighbourhood Services,Technical Services,Supplies and Services,304221,Equipment and Materials,11-Jun-2012,2455410-16348363,606.40,AGGREGATE INDUSTRIES UK LTD.
Neighbourhood Services,Technical Services,Supplies and Services,304221,Equipment and Materials,11-Jun-2012,2455410-16377603,874.08,AGGREGATE INDUSTRIES UK LTD.
Neighbourhood Services,Technical Services,Supplies and Services,304221,Equipment and Materials,11-Jun-2012,2455410-16377604,"1,102.99",AGGREGATE INDUSTRIES UK LTD.
Neighbourhood Services,Technical Services,Supplies and Services,304221,Equipment and Materials,11-Jun-2012,2455410-16383833,718.28,AGGREGATE INDUSTRIES UK LTD.
Neighbourhood Services,Technical Services,Supplies and Services,304221,Equipment and Materials,11-Jun-2012,2455410-16391116,829.10,AGGREGATE INDUSTRIES UK LTD.
Neighbourhood Services,Technical Services,Supplies and Services,304221,Equipment and Materials,11-Jun-2012,2455410-16409612,682.34,AGGREGATE INDUSTRIES UK LTD.
Neighbourhood Services,Technical Services,Supplies and Services,304221,Equipment and Materials,11-Jun-2012,2455410-16409616,"10,835.59",AGGREGATE INDUSTRIES UK LTD.
Neighbourhood Services,Technical Services,Supplies and Services,304221,Equipment and Materials,11-Jun-2012,2455410-16409624,"1,087.29",AGGREGATE INDUSTRIES UK LTD.
Neighbourhood Services,Technical Services,Supplies and Services,304221,Equipment and Materials,11-Jun-2012,2455410-16418263,702.06,AGGREGATE INDUSTRIES UK LTD.
Neighbourhood Services,Technical Services,Supplies and Services,304221,Equipment and Materials,11-Jun-2012,2455410-16424622,"2,659.72",AGGREGATE INDUSTRIES UK LTD.
Neighbourhood Services,Technical Services,Supplies and Services,304221,Equipment and Materials,11-Jun-2012,2455410-16438821,"1,098.18",AGGREGATE INDUSTRIES UK LTD.
Neighbourhood Services,Technical Services,Supplies and Services,304221,Equipment and Materials,11-Jun-2012,2455410-16444533,608.00,AGGREGATE INDUSTRIES UK LTD.
Neighbourhood Services,Technical Services,Supplies and Services,304221,Equipment and Materials,11-Jun-2012,2455410-16466994,610.97,AGGREGATE INDUSTRIES UK LTD.
Neighbourhood Services,Technical Services,Supplies and Services,304221,Equipment and Materials,11-Jun-2012,2455410-16473518,"1,501.71",AGGREGATE INDUSTRIES UK LTD.
Neighbourhood Services,Technical Services,Supplies and Services,304221,Equipment and Materials,11-Jun-2012,2455410-16480338,"1,223.07",AGGREGATE INDUSTRIES UK LTD.
Neighbourhood Services,Technical Services,Supplies and Services,304221,Equipment and Materials,11-Jun-2012,2455410-16480340,814.22,AGGREGATE INDUSTRIES UK LTD.
Neighbourhood Services,Technical Services,Supplies and Services,304221,Equipment and Materials,11-Jun-2012,2455410-16480341,"1,518.46",AGGREGATE INDUSTRIES UK LTD.
Neighbourhood Services,Technical Services,Supplies and Services,304221,Equipment and Materials,11-Jun-2012,2455410-16480342,824.80,AGGREGATE INDUSTRIES UK LTD.
Neighbourhood Services,Technical Services,Supplies and Services,304221,Equipment and Materials,11-Jun-2012,2455410-16486150,"1,414.33",AGGREGATE INDUSTRIES UK LTD.
Neighbourhood Services,Technical Services,Supplies and Services,304221,Equipment and Materials,11-Jun-2012,2455410-16486151,705.50,AGGREGATE INDUSTRIES UK LTD.
Neighbourhood Services,Technical Services,Stock,926004,Stock,11-Jun-2012,2455500-90120097,"12,314.67",CLEVELAND POTASH LTD.
Neighbourhood Services,Technical Services,Stock,926004,Stock,11-Jun-2012,2455500-90120108,"12,558.40",CLEVELAND POTASH LTD.
Neighbourhood Services,Technical Services,Supplies and Services,342037,Computers and Communications,11-Jun-2012,2455568-112327,"11,200.00",ESRI (UK) LTD.
Neighbourhood Services,Technical Services,Supplies and Services,304221,Equipment and Materials,11-Jun-2012,2455570-16355621,"1,548.17",EXPRESS ASPHALT.
Neighbourhood Services,Technical Services,Third Party Payments,460151,Contract Payments,11-Jun-2012,2455648-374392,735.28,INSTARMAC GROUP PLC.
Neighbourhood Services,Technical Services,Supplies and Services,304221,Equipment and Materials,11-Jun-2012,2455791-046556,572.74,PREMIER WASTE MANAGEMENT LTD.
Neighbourhood Services,Technical Services,Supplies and Services,304221,Equipment and Materials,11-Jun-2012,2455791-046560,"2,252.81",PREMIER WASTE MANAGEMENT LTD.
Neighbourhood Services,Technical Services,Supplies and Services,304221,Equipment and Materials,11-Jun-2012,2455857-042101,673.27,STONEGRAVE AGGREGATES LTD.
Neighbourhood Services,Technical Services,Supplies and Services,304358,Equipment and Materials,11-Jun-2012,2455916-2409,"1,288.64",YOULL CONSTRUCTION LTD.
RED HRA,Housing Revenue Account,Construction Work,908105,Construction work,11-Jun-2012,2455407-10179,850.00,ADVANTAGE UTILITIES SERVICES LTD.
RED HRA,Housing Revenue Account,Construction Work,908105,Construction work,11-Jun-2012,2455407-10180,850.00,ADVANTAGE UTILITIES SERVICES LTD.
RED HRA,HRA Capital,Construction Work,908105,Construction work,11-Jun-2012,2455493-2770,"1,241.60",CITY FABRICATIONS.
RED HRA,HRA Capital,Construction Work,908105,Construction work,11-Jun-2012,2455554-8779,"1,210.81",EASIBATHE LTD.
Regeneration & Economic Development,Economic Development and Housing,Supplies and Services,384199,Miscellaneous Expenses,11-Jun-2012,2455436-45923,"2,850.00",AZTEC COLOUR PRINT NORTH EAST LTD.
Regeneration & Economic Development,Economic Development and Housing,Other Expenses,914001,Other capital expenses,11-Jun-2012,2455457-PV/MHOT/01/2012,"3,228.67",BLAIZE.
Regeneration & Economic Development,Economic Development and Housing,Third Party Payments,440999,Other Third Party Payments,11-Jun-2012,2455480-2755,"15,914.00",CENTREPOINT SOHO.
Regeneration & Economic Development,Economic Development and Housing,Other Expenses,914001,Other capital expenses,11-Jun-2012,2455496-001,"4,980.00",CLARE JAMES LTD.
Regeneration & Economic Development,Economic Development and Housing,Premises,120021,Energy Costs,11-Jun-2012,2455513-07206093,"1,165.20",CORONA ENERGY RETAIL 2 LTD.
Regeneration & Economic Development,Economic Development and Housing,Premises,120021,Energy Costs,11-Jun-2012,2455513-07206265,581.15,CORONA ENERGY RETAIL 2 LTD.
Regeneration & Economic Development,Economic Development and Housing,Premises,120021,Energy Costs,11-Jun-2012,2455513-07206266,670.33,CORONA ENERGY RETAIL 2 LTD.
Regeneration & Economic Development,Economic Development and Housing,Supplies and Services,304221,Equipment and Materials,11-Jun-2012,2455650-23644,560.00,INTERPLAN SIGN SYSTEMS LTD.
Regeneration & Economic Development,Housing General Fund,Cap Exp on Grants & Other Financial Assistance (REFCUS),918401,Capital grants,11-Jun-2012,2455572-DFG456/11-52SRD,"8,965.00",F TIFFEN BUILDING SERVICES.
Regeneration & Economic Development,Housing General Fund,Cap Exp on Grants & Other Financial Assistance (REFCUS),918401,Capital grants,11-Jun-2012,2455572-GP,"3,105.00",F TIFFEN BUILDING SERVICES.
Regeneration & Economic Development,Housing General Fund,Fees,901001,Internal fees,11-Jun-2012,2455884-SITRH/0004323,505.10,THREE RIVERS HOUSING ASSOCIATION LTD.
Regeneration & Economic Development,Housing General Fund,Other Expenses,914001,Other capital expenses,11-Jun-2012,2455896-PSI-9038508,"1,129.87",TSG ENTERPRISE SOLUTIONS.
Regeneration & Economic Development,"Spatial Policy, Planning, Assets & Environment",Supplies and Services,377015,County Durham Development,11-Jun-2012,2455777-7213,513.00,PA PROMOTIONS LTD.
Regeneration & Economic Development,"Spatial Policy, Planning, Assets & Environment",Supplies and Services,384199,Miscellaneous Expenses,11-Jun-2012,2455839-201204031,"1,606.00",SIMPSON & BROWN.
Regeneration & Economic Development,Transport,Employees,080025,Agency Staff,11-Jun-2012,2455409-60216682-55,"2,650.35",AECOM LTD.
Regeneration & Economic Development,Transport,Third Party Payments,430106,Rendered by Private Contractors,11-Jun-2012,2455479-71ETCM-F29/4-26/5/12,"4,606.23",CENTRAL COACHES.
Regeneration & Economic Development,Transport,Other Expenses,914001,Other capital expenses,11-Jun-2012,2455519-14681,666.57,COUPE LINE LTD.
Regeneration & Economic Development,Transport,Construction Work,908105,Construction work,11-Jun-2012,2455519-INS-B-S-7120,"7,864.33",COUPE LINE LTD.
Regeneration & Economic Development,Transport,Third Party Payments,430106,Rendered by Private Contractors,11-Jun-2012,2455685-PPT2974-29/4-26/5/12,"2,504.55",KEITH HAMMOND.
Regeneration & Economic Development,Transport,Third Party Payments,430100,Rendered by Private Contractors,11-Jun-2012,2455844-2313,"2,919.22",SOCIAL RESOURCE CENTRE LTD.
Regeneration & Economic Development,Transport,Other Expenses,914001,Other capital expenses,11-Jun-2012,2455885-100000895097,698.70,TMP (UK) LTD (RECRUITMENT).
Regeneration & Economic Development,Transport,Other Expenses,914001,Other capital expenses,11-Jun-2012,2455885-100000895098,"1,759.96",TMP (UK) LTD (RECRUITMENT).
Regeneration & Economic Development,Transport,Other Expenses,914001,Other capital expenses,11-Jun-2012,2455885-100000895101,629.95,TMP (UK) LTD (RECRUITMENT).
Regeneration & Economic Development,Transport,Supplies and Services,336005,Advertising,11-Jun-2012,2455885-100000895102,695.00,TMP (UK) LTD (RECRUITMENT).
Adults Wellbeing and Health,Commissioning inc Supporting People,Supplies and Services,336005,Advertising,12-Jun-2012,2456640-RNE009469,500.00,REAL RADIO (NORTH EAST) LTD.
Adults Wellbeing and Health,Commissioning inc Supporting People,Supplies and Services,384302,Miscellaneous Expenses,12-Jun-2012,2456592-SR,"1,350.00",JR MILGATE ORCHESTRA PROMOTIONS.
Adults Wellbeing and Health,Commissioning inc Supporting People,Supplies and Services,338047,Services,12-Jun-2012,2456541-5832/M,"1,971.83",COMEDY STORE MANAGEMENT.
Adults Wellbeing and Health,Commissioning inc Supporting People,Supplies and Services,338047,Services,12-Jun-2012,2456575-6719,"25,000.00",HELICON MOUNTAIN LTD.
Adults Wellbeing and Health,Head of Adults,Transport,230005,Contract Hire,12-Jun-2012,2456500-E0512,899.84,AABAT TAXIS.
Adults Wellbeing and Health,Head of Adults,Supplies and Services,338365,Services,12-Jun-2012,2456555-8501,564.84,EASIBATHE LTD.
Adults Wellbeing and Health,Head of Adults,Transport,230005,Contract Hire,12-Jun-2012,2456594-00191,500.00,KENNAS KABS.
Adults Wellbeing and Health,Social Inclusion,Supplies and Services,384199,Miscellaneous Expenses,12-Jun-2012,2456506-INV005,935.00,ANN AHMED.
Adults Wellbeing and Health,Social Inclusion,Supplies and Services,384199,Miscellaneous Expenses,12-Jun-2012,2456565-JR/PB002,"9,000.00",FRIENDS OF BLACKHILL & CONSETT PARK.
Children and Young Peoples Services,CYPS - Local Authority,Transport,230007,Contract Hire,12-Jun-2012,2456498-220727,"1,165.12",A MURRAY TRAVEL.
Children and Young Peoples Services,CYPS - Local Authority,Transport,230007,Contract Hire,12-Jun-2012,2456498-220728MAY12,"2,447.72",A MURRAY TRAVEL.
Children and Young Peoples Services,CYPS - Local Authority,Transport,230007,Contract Hire,12-Jun-2012,2456500-B0512,"1,771.00",AABAT TAXIS.
Children and Young Peoples Services,CYPS - Local Authority,Transport,230007,Contract Hire,12-Jun-2012,2456500-C0512,"1,263.00",AABAT TAXIS.
Children and Young Peoples Services,CYPS - Local Authority,Transport,230007,Contract Hire,12-Jun-2012,2456500-D0512,575.00,AABAT TAXIS.
Children and Young Peoples Services,CYPS - Local Authority,Transport,230007,Contract Hire,12-Jun-2012,2456500-E0512A,"1,657.74",AABAT TAXIS.
Children and Young Peoples Services,CYPS - Local Authority,Transport,230007,Contract Hire,12-Jun-2012,2456500-F0512,"1,941.94",AABAT TAXIS.
Children and Young Peoples Services,CYPS - Local Authority,Transport,230007,Contract Hire,12-Jun-2012,2456500-G0512,"1,672.00",AABAT TAXIS.
Children and Young Peoples Services,CYPS - Local Authority,Transport,230007,Contract Hire,12-Jun-2012,2456500-H0512,"1,874.66",AABAT TAXIS.
Children and Young Peoples Services,CYPS - Local Authority,Transport,230007,Contract Hire,12-Jun-2012,2456500-J0512,"1,936.66",AABAT TAXIS.
Children and Young Peoples Services,CYPS - Local Authority,Transport,230007,Contract Hire,12-Jun-2012,2456500-L0512,"1,870.00",AABAT TAXIS.
Children and Young Peoples Services,CYPS - Local Authority,Transport,230007,Contract Hire,12-Jun-2012,2456500-N0512,"2,596.00",AABAT TAXIS.
Children and Young Peoples Services,CYPS - Local Authority,Transport,230007,Contract Hire,12-Jun-2012,2456500-X0512,"1,320.00",AABAT TAXIS.
Children and Young Peoples Services,CYPS - Local Authority,Transport,230007,Contract Hire,12-Jun-2012,2456501-4,"1,750.00",ADZ CABZ.
Children and Young Peoples Services,CYPS - Local Authority,Transport,230007,Contract Hire,12-Jun-2012,2456513-DCCM1,"2,706.26",ATLAS TAXIS BISHOP AUCKLAND.
Children and Young Peoples Services,CYPS - Local Authority,Transport,230007,Contract Hire,12-Jun-2012,2456513-DCCM10,"2,527.50",ATLAS TAXIS BISHOP AUCKLAND.
Children and Young Peoples Services,CYPS - Local Authority,Transport,230007,Contract Hire,12-Jun-2012,2456513-DCCM2,"1,462.50",ATLAS TAXIS BISHOP AUCKLAND.
Children and Young Peoples Services,CYPS - Local Authority,Transport,230007,Contract Hire,12-Jun-2012,2456513-DCCM4,"1,760.00",ATLAS TAXIS BISHOP AUCKLAND.
Children and Young Peoples Services,CYPS - Local Authority,Transport,230007,Contract Hire,12-Jun-2012,2456513-DCCM5,"1,738.00",ATLAS TAXIS BISHOP AUCKLAND.
Children and Young Peoples Services,CYPS - Local Authority,Transport,230007,Contract Hire,12-Jun-2012,2456513-DCCM6,"1,944.05",ATLAS TAXIS BISHOP AUCKLAND.
Children and Young Peoples Services,CYPS - Local Authority,Transport,230007,Contract Hire,12-Jun-2012,2456513-DCCM7,660.00,ATLAS TAXIS BISHOP AUCKLAND.
Children and Young Peoples Services,CYPS - Local Authority,Transport,230007,Contract Hire,12-Jun-2012,2456513-DCCM8,"2,815.36",ATLAS TAXIS BISHOP AUCKLAND.
Children and Young Peoples Services,CYPS - Local Authority,Transport,230007,Contract Hire,12-Jun-2012,2456517-TGS0412,"3,532.32",BELL BROTHERS TRAVEL.
Children and Young Peoples Services,CYPS - Local Authority,Supplies and Services,338066,Services,12-Jun-2012,2456562-5297,"12,596.00",FISCHER EDUCATIONAL PROJECT LTD.
Children and Young Peoples Services,CYPS - Local Authority,Construction Work,908105,Construction work,12-Jun-2012,2456579-7080288377,"1,253.72",HONEYWELL NOVAR SYSTEMS LTD.
Children and Young Peoples Services,CYPS - Local Authority,"Vehicles, Equipment, Furniture and Fittings",912701,Computer equipment,12-Jun-2012,2456582-DURH/0235,"124,870.96",INSPIREDSPACES DURHAM LTD.
Children and Young Peoples Services,CYPS - Local Authority,Transport,230007,Contract Hire,12-Jun-2012,2456594-00190,"2,200.00",KENNAS KABS.
Children and Young Peoples Services,CYPS - Local Authority,Transport,230007,Contract Hire,12-Jun-2012,2456594-DCCM3,"2,662.24",KENNAS KABS.
Children and Young Peoples Services,CYPS - Local Authority,Transport,230005,Contract Hire,12-Jun-2012,2456603-KDC050412,"1,223.00",MJ TIMNEY.
Children and Young Peoples Services,CYPS - Local Authority,Transport,230007,Contract Hire,12-Jun-2012,2456606-58MAY12,"2,519.88",MR GN ROBBINS.
Children and Young Peoples Services,CYPS - Local Authority,Transport,230007,Contract Hire,12-Jun-2012,2456663-7,890.00,TRAVEL 6.
Children and Young Peoples Services,Dedicated Schools Grant,Transport,230007,Contract Hire,12-Jun-2012,2456496-1205,"1,000.00",1A CAB.
Children and Young Peoples Services,Dedicated Schools Grant,Transport,230007,Contract Hire,12-Jun-2012,2456594-00189,"2,235.00",KENNAS KABS.
Corporate Resources,ICT Services incl. Design and Print,Supplies and Services,304245,Equipment and Materials,12-Jun-2012,2456509-WN1866892,824.16,ANTALIS MCNAUGHTON LTD.
Corporate Resources,ICT Services incl. Design and Print,Stock,926900,Stock in hand-Inventory system,12-Jun-2012,2456550-146752840,541.56,DIVERSEY LTD.
Corporate Resources,Legal & Democratic Services,Transport,245005,Members etc Travelling,12-Jun-2012,2456559-D045634-U8FN,644.00,ENTERPRISE RAC UK LTD.
Corporate Resources,Management,Supplies and Services,384899,Miscellaneous Expenses,12-Jun-2012,2456653-12018522,"84,480.00",SOUTH TYNESIDE COUNCIL.
Neighbourhood Services,Direct Services,Stock,926900,Stock in hand-Inventory system,12-Jun-2012,2456510-916720630,668.79,ARCO LTD.
Neighbourhood Services,Direct Services,Supplies and Services,389001,Inventory Related,12-Jun-2012,2456510-916754507,"3,372.75",ARCO LTD.
Neighbourhood Services,Direct Services,Stock,926900,Stock in hand-Inventory system,12-Jun-2012,2456516-INV068812,"1,879.20",AZTEC CHEMICALS LTD.
Neighbourhood Services,Direct Services,Stock,926900,Stock in hand-Inventory system,12-Jun-2012,2456516-INV069124,"1,064.00",AZTEC CHEMICALS LTD.
Neighbourhood Services,Direct Services,Stock,926900,Stock in hand-Inventory system,12-Jun-2012,2456521-8312320,510.00,BOLD NU TEC INSULATION PRODUCTS & SERVICES LTD.
Neighbourhood Services,Direct Services,Supplies and Services,324117,Provisions,12-Jun-2012,2456522-22450367,529.62,BRAKE BROS FOODSERVICE LTD.
Neighbourhood Services,Direct Services,Third Party Payments,430100,Rendered by Private Contractors,12-Jun-2012,2456527-182526,704.00,BURNT TREE GROUP LTD.
Neighbourhood Services,Direct Services,Supplies and Services,304221,Equipment and Materials,12-Jun-2012,2456529-23138231,"2,501.21",CALOR GAS LTD.
Neighbourhood Services,Direct Services,Supplies and Services,304259,Equipment and Materials,12-Jun-2012,2456529-23193338,"1,247.53",CALOR GAS LTD.
Neighbourhood Services,Direct Services,Supplies and Services,304259,Equipment and Materials,12-Jun-2012,2456531-430268,"1,959.75",CARRS BILLINGTON AGRICULTURE.
Neighbourhood Services,Direct Services,Supplies and Services,304221,Equipment and Materials,12-Jun-2012,2456533-92563,"1,472.90",CHAS LONG & SON (AGGREGATES) LTD.
Neighbourhood Services,Direct Services,Third Party Payments,430100,Rendered by Private Contractors,12-Jun-2012,2456540-23702,"2,337.35",COLLETT TRANSPORT SERVICES LTD.
Neighbourhood Services,Direct Services,Supplies and Services,304221,Equipment and Materials,12-Jun-2012,2456551-TC/KP/8026,"1,734.82",DUNNINGHAM DECORATORS LTD.
Neighbourhood Services,Direct Services,Stock,926900,Stock in hand-Inventory system,12-Jun-2012,2456554-161927,875.10,EA CLAYTON LTD.
Neighbourhood Services,Direct Services,Supplies and Services,304221,Equipment and Materials,12-Jun-2012,2456557-059-099044,"1,117.24",EDMUNDSON ELECTRICAL LTD.
Neighbourhood Services,Direct Services,Stock,926004,Stock,12-Jun-2012,2456570-7901452,"2,568.40",GB OILS T/A BRETT FUELS.
Neighbourhood Services,Direct Services,Third Party Payments,430101,Rendered by Private Contractors,12-Jun-2012,2456576-INV08871779,"1,264.96",HI Q TYRESERVICES.
Neighbourhood Services,Direct Services,Third Party Payments,430101,Rendered by Private Contractors,12-Jun-2012,2456576-INV08894492,505.92,HI Q TYRESERVICES.
Neighbourhood Services,Direct Services,Supplies and Services,304221,Equipment and Materials,12-Jun-2012,2456598-NE112570,"6,095.10",LLOYD WORRALL (NEWCASTLE UPON TYNE) LTD.
Neighbourhood Services,Direct Services,Transport,210057,Repair and Maintenance of Vehicles,12-Jun-2012,2456611-129721,"1,380.00",MTS BOBCAT.
Neighbourhood Services,Direct Services,Supplies and Services,304221,Equipment and Materials,12-Jun-2012,2456639-21999,"2,459.16",R PARKER WALL & FLOOR TILING CONTRACTOR.
Neighbourhood Services,Direct Services,Transport,210057,Repair and Maintenance of Vehicles,12-Jun-2012,2456642-755485,611.20,RICKERBY LTD.
Neighbourhood Services,Direct Services,Transport,230005,Contract Hire,12-Jun-2012,2456644-SLINV/00039454,"3,360.00",RIVERSIDE TRUCK RENTAL LTD.
Neighbourhood Services,Direct Services,Transport,230005,Contract Hire,12-Jun-2012,2456644-SLINV/00039502,"4,410.00",RIVERSIDE TRUCK RENTAL LTD.
Neighbourhood Services,Direct Services,Third Party Payments,430100,Rendered by Private Contractors,12-Jun-2012,2456644-SLINV/00040569,820.95,RIVERSIDE TRUCK RENTAL LTD.
Neighbourhood Services,Direct Services,Third Party Payments,430100,Rendered by Private Contractors,12-Jun-2012,2456644-SLINV/00040648,756.32,RIVERSIDE TRUCK RENTAL LTD.
Neighbourhood Services,Direct Services,Third Party Payments,430100,Rendered by Private Contractors,12-Jun-2012,2456661-0000067722,576.65,THE SEKURA GROUP.
Neighbourhood Services,Direct Services,Third Party Payments,430100,Rendered by Private Contractors,12-Jun-2012,2456661-0000067727,580.90,THE SEKURA GROUP.
Neighbourhood Services,Direct Services,Third Party Payments,430100,Rendered by Private Contractors,12-Jun-2012,2456661-0000067737,708.24,THE SEKURA GROUP.
Neighbourhood Services,Direct Services,Third Party Payments,430100,Rendered by Private Contractors,12-Jun-2012,2456661-0000067740,691.62,THE SEKURA GROUP.
Neighbourhood Services,Direct Services,Supplies and Services,304221,Equipment and Materials,12-Jun-2012,2456668-0000117952,"1,455.53",WARMSEAL WINDOWS (NEWCASTLE) LTD.
Neighbourhood Services,Direct Services,Supplies and Services,304221,Equipment and Materials,12-Jun-2012,2456674-73293292,"1,705.34",WOLSELEY UK LTD.
Neighbourhood Services,Projects and Business services,Supplies and Services,338027,Services,12-Jun-2012,2456586-B1682500/009/SAA,"1,675.75",JACOBS ENGINEERING UK LTD.
Neighbourhood Services,Sport & Leisure,Premises,135005,Water Services,12-Jun-2012,2456623-210334670021035,"1,392.11",NORTHUMBRIAN WATER LTD.
Neighbourhood Services,Technical Services,Supplies and Services,304221,Equipment and Materials,12-Jun-2012,2456503-16191688,908.78,AGGREGATE INDUSTRIES UK LTD.
Neighbourhood Services,Technical Services,Supplies and Services,304221,Equipment and Materials,12-Jun-2012,2456503-16377602,"1,020.50",AGGREGATE INDUSTRIES UK LTD.
Neighbourhood Services,Technical Services,Supplies and Services,304221,Equipment and Materials,12-Jun-2012,2456503-16391114,"1,569.61",AGGREGATE INDUSTRIES UK LTD.
Neighbourhood Services,Technical Services,Supplies and Services,304221,Equipment and Materials,12-Jun-2012,2456503-16400064,740.91,AGGREGATE INDUSTRIES UK LTD.
Neighbourhood Services,Technical Services,Supplies and Services,304221,Equipment and Materials,12-Jun-2012,2456503-16400147,"1,663.91",AGGREGATE INDUSTRIES UK LTD.
Neighbourhood Services,Technical Services,Supplies and Services,304221,Equipment and Materials,12-Jun-2012,2456503-16409621,619.89,AGGREGATE INDUSTRIES UK LTD.
Neighbourhood Services,Technical Services,Supplies and Services,304221,Equipment and Materials,12-Jun-2012,2456503-16418260,"1,324.57",AGGREGATE INDUSTRIES UK LTD.
Neighbourhood Services,Technical Services,Supplies and Services,304221,Equipment and Materials,12-Jun-2012,2456503-16424620,732.84,AGGREGATE INDUSTRIES UK LTD.
Neighbourhood Services,Technical Services,Supplies and Services,304221,Equipment and Materials,12-Jun-2012,2456503-16433118,"2,831.46",AGGREGATE INDUSTRIES UK LTD.
Neighbourhood Services,Technical Services,Supplies and Services,304221,Equipment and Materials,12-Jun-2012,2456503-16444531,"1,700.70",AGGREGATE INDUSTRIES UK LTD.
Neighbourhood Services,Technical Services,Supplies and Services,304221,Equipment and Materials,12-Jun-2012,2456503-16452912,946.19,AGGREGATE INDUSTRIES UK LTD.
Neighbourhood Services,Technical Services,Supplies and Services,304221,Equipment and Materials,12-Jun-2012,2456503-16461000,911.89,AGGREGATE INDUSTRIES UK LTD.
Neighbourhood Services,Technical Services,Supplies and Services,304221,Equipment and Materials,12-Jun-2012,2456503-16486152,720.74,AGGREGATE INDUSTRIES UK LTD.
Neighbourhood Services,Technical Services,Supplies and Services,304221,Equipment and Materials,12-Jun-2012,2456503-16486153,597.89,AGGREGATE INDUSTRIES UK LTD.
Neighbourhood Services,Technical Services,Supplies and Services,304358,Equipment and Materials,12-Jun-2012,2456585-5304033,998.40,JA GILSON (AGRICULTURAL CONTRACTORS) LTD.
RED HRA,HRA Capital,Construction Work,908105,Construction work,12-Jun-2012,2456672-19807,"3,633.69",WHITFIELDS BUILDING SERVICES LTD.
Regeneration & Economic Development,Economic Development and Housing,Supplies and Services,384199,Miscellaneous Expenses,12-Jun-2012,2456601-SEOC,500.00,MEDIAWORKS UK LTD.
Regeneration & Economic Development,Economic Development and Housing,Supplies and Services,304259,Equipment and Materials,12-Jun-2012,2456625-CN18028207,500.16,OCS GROUP UK LTD T/A CANNON HYGIENE.
Regeneration & Economic Development,Economic Development and Housing,Third Party Payments,440999,Other Third Party Payments,12-Jun-2012,2456675-INV87580,587.00,WORKWEAR EXPRESS LTD.
Regeneration & Economic Development,Housing General Fund,Cap Exp on Grants & Other Financial Assistance (REFCUS),918401,Capital grants,12-Jun-2012,2456618-DFG49/12,798.52,NORTHERN GAS NETWORKS LTD.
Regeneration & Economic Development,Housing General Fund,Fees,901002,Professional Fees,12-Jun-2012,2456619-90294320,"1,100.00",NORTHERN GAS NETWORKS LTD.
Regeneration & Economic Development,"Spatial Policy, Planning, Assets & Environment",Employees,040149,"Recruitment, Instruction and Training",12-Jun-2012,2456645-NT28032704B-2,500.00,ROYAL TOWN PLANNING INSTITUTE (NTHN BRANCH).
Regeneration & Economic Development,Strategy Programmes and Performance,Supplies and Services,384899,Miscellaneous Expenses,12-Jun-2012,2456651-NPD/DCC001B/01,"3,643.85",SOUTH DURHAM ENTERPRISE AGENCY LTD.
Regeneration & Economic Development,Transport,Construction Work,908105,Construction work,12-Jun-2012,2456528-18878,"2,577.08",BUS SHELTERS LTD.
Regeneration & Economic Development,Transport,Supplies and Services,342053,Computers and Communications,12-Jun-2012,2456560-47444017,"4,117.00",EXOR CORPORATION LTD.
Regeneration & Economic Development,Transport,Supplies and Services,342053,Computers and Communications,12-Jun-2012,2456590-00697,"4,500.00",JOURNEY PLAN LTD.
Adults Wellbeing and Health,Commissioning inc Supporting People,Third Party Payments,443001,Supporting People,13-Jun-2012,2456726-1941611,"1,600.00",COMMUNITY INTEGRATED CARE LTD.
Adults Wellbeing and Health,Commissioning inc Supporting People,Third Party Payments,443001,Supporting People,13-Jun-2012,2456726-1941944,"1,200.00",COMMUNITY INTEGRATED CARE LTD.
Adults Wellbeing and Health,Commissioning inc Supporting People,Third Party Payments,443001,Supporting People,13-Jun-2012,2456726-1941988,"2,800.00",COMMUNITY INTEGRATED CARE LTD.
Adults Wellbeing and Health,Commissioning inc Supporting People,Third Party Payments,443001,Supporting People,13-Jun-2012,2456726-1941992,"3,200.00",COMMUNITY INTEGRATED CARE LTD.
Adults Wellbeing and Health,Commissioning inc Supporting People,Third Party Payments,443001,Supporting People,13-Jun-2012,2456735-1941893,"4,456.80",DEACONSTAR LTD.
Adults Wellbeing and Health,Commissioning inc Supporting People,Third Party Payments,442002,Supporting People,13-Jun-2012,2456741-1941950,"48,671.04",DISC LTD.
Adults Wellbeing and Health,Commissioning inc Supporting People,Third Party Payments,441001,Supporting People,13-Jun-2012,2456744-1941935,"19,417.64",DURHAM ACTION ON SINGLE HOUSING.
Adults Wellbeing and Health,Commissioning inc Supporting People,Third Party Payments,443001,Supporting People,13-Jun-2012,2456744-1941939,"1,576.40",DURHAM ACTION ON SINGLE HOUSING.
Adults Wellbeing and Health,Commissioning inc Supporting People,Third Party Payments,443001,Supporting People,13-Jun-2012,2456744-1941941,"1,576.40",DURHAM ACTION ON SINGLE HOUSING.
Adults Wellbeing and Health,Commissioning inc Supporting People,Third Party Payments,443001,Supporting People,13-Jun-2012,2456744-1941942,788.20,DURHAM ACTION ON SINGLE HOUSING.
Adults Wellbeing and Health,Commissioning inc Supporting People,Third Party Payments,443001,Supporting People,13-Jun-2012,2456793-1941936,"1,125.72",INTEGRATION TRUST.
Adults Wellbeing and Health,Commissioning inc Supporting People,Third Party Payments,443001,Supporting People,13-Jun-2012,2456812-1941960,"16,166.28",KINDSTREAM CARE LTD.
Adults Wellbeing and Health,Commissioning inc Supporting People,Third Party Payments,443001,Supporting People,13-Jun-2012,2456812-1941967,"4,135.56",KINDSTREAM CARE LTD.
Adults Wellbeing and Health,Commissioning inc Supporting People,Third Party Payments,443001,Supporting People,13-Jun-2012,2456833-1941699,"2,484.76",MENCAP.
Adults Wellbeing and Health,Commissioning inc Supporting People,Third Party Payments,443001,Supporting People,13-Jun-2012,2456833-1941701,"2,524.44",MENCAP.
Adults Wellbeing and Health,Commissioning inc Supporting People,Third Party Payments,443001,Supporting People,13-Jun-2012,2456833-1941702,907.96,MENCAP.
Adults Wellbeing and Health,Commissioning inc Supporting People,Third Party Payments,442002,Supporting People,13-Jun-2012,2456834-1942087,"7,460.12",MENTAL HEALTH MATTERS.
Adults Wellbeing and Health,Commissioning inc Supporting People,Third Party Payments,442002,Supporting People,13-Jun-2012,2456839-1942026,"5,561.68",MOVING ON.
Adults Wellbeing and Health,Commissioning inc Supporting People,Third Party Payments,442002,Supporting People,13-Jun-2012,2456783-1941914,"4,883.56",HARBOUR SUPPORT SV.
Adults Wellbeing and Health,Commissioning inc Supporting People,Third Party Payments,441001,Supporting People,13-Jun-2012,2456783-1941954,"9,190.44",HARBOUR SUPPORT SV.
Adults Wellbeing and Health,Commissioning inc Supporting People,Third Party Payments,444002,Supporting People,13-Jun-2012,2456900-1941834,"4,029.60",RICHMOND FELLOWSHIP.
Adults Wellbeing and Health,Commissioning inc Supporting People,Third Party Payments,441001,Supporting People,13-Jun-2012,2456900-1941849,"9,923.84",RICHMOND FELLOWSHIP.
Adults Wellbeing and Health,Commissioning inc Supporting People,Third Party Payments,442002,Supporting People,13-Jun-2012,2456900-1942088,"9,214.24",RICHMOND FELLOWSHIP.
Adults Wellbeing and Health,Commissioning inc Supporting People,Third Party Payments,441001,Supporting People,13-Jun-2012,2456747-1941850,"5,402.40",EAST DURHAM COMMUNITY INITIATIVES LTD.
Adults Wellbeing and Health,Commissioning inc Supporting People,Third Party Payments,442002,Supporting People,13-Jun-2012,2456914-1942031,"9,294.32",SHAID.
Adults Wellbeing and Health,Commissioning inc Supporting People,Supplies and Services,332001,"Printing, Stationery and Gen Off Exps",13-Jun-2012,2456927-00210606,582.29,STAGE ELECTRICS.
Adults Wellbeing and Health,Commissioning inc Supporting People,Third Party Payments,441001,Supporting People,13-Jun-2012,2456931-1941952,"56,460.28",STONHAM HOUSING ASSOCIATION LTD.
Adults Wellbeing and Health,Commissioning inc Supporting People,Third Party Payments,442002,Supporting People,13-Jun-2012,2456931-1942034,"163,227.45",STONHAM HOUSING ASSOCIATION LTD.
Adults Wellbeing and Health,Commissioning inc Supporting People,Third Party Payments,441001,Supporting People,13-Jun-2012,2456931-1942045,"5,753.44",STONHAM HOUSING ASSOCIATION LTD.
Adults Wellbeing and Health,Commissioning inc Supporting People,Third Party Payments,443001,Supporting People,13-Jun-2012,2456931-1942046,"23,085.92",STONHAM HOUSING ASSOCIATION LTD.
Adults Wellbeing and Health,Commissioning inc Supporting People,Third Party Payments,442002,Supporting People,13-Jun-2012,2456931-1942068,"30,454.80",STONHAM HOUSING ASSOCIATION LTD.
Adults Wellbeing and Health,Commissioning inc Supporting People,Third Party Payments,443001,Supporting People,13-Jun-2012,2456931-1942069,"8,131.20",STONHAM HOUSING ASSOCIATION LTD.
Adults Wellbeing and Health,Commissioning inc Supporting People,Third Party Payments,479101,Purchase of Care,13-Jun-2012,2456938-430022100,"4,092.93",TEES ESK & WEAR VALLEY NHS FOUNDATION TRUST.
Adults Wellbeing and Health,Commissioning inc Supporting People,Third Party Payments,441001,Supporting People,13-Jun-2012,2456939-1941853,"13,062.24",TEES VALLEY HOUSING LTD.
Adults Wellbeing and Health,Commissioning inc Supporting People,Third Party Payments,442002,Supporting People,13-Jun-2012,2456939-1941854,"28,385.64",TEES VALLEY HOUSING LTD.
Adults Wellbeing and Health,Commissioning inc Supporting People,Third Party Payments,444002,Supporting People,13-Jun-2012,2456876-1941726,864.00,OAKLEA TRUST.
Adults Wellbeing and Health,Commissioning inc Supporting People,Third Party Payments,444002,Supporting People,13-Jun-2012,2456876-1941728,"2,499.43",OAKLEA TRUST.
Adults Wellbeing and Health,Commissioning inc Supporting People,Third Party Payments,444002,Supporting People,13-Jun-2012,2456876-1941730,"1,728.00",OAKLEA TRUST.
Adults Wellbeing and Health,Commissioning inc Supporting People,Third Party Payments,444002,Supporting People,13-Jun-2012,2456876-1941742,"1,296.00",OAKLEA TRUST.
Adults Wellbeing and Health,Commissioning inc Supporting People,Third Party Payments,444002,Supporting People,13-Jun-2012,2456876-1941747,"1,296.00",OAKLEA TRUST.
Adults Wellbeing and Health,Commissioning inc Supporting People,Third Party Payments,441001,Supporting People,13-Jun-2012,2456944-1941609,"11,615.57",THREE RIVERS HOUSING ASSOCIATION LTD.
Adults Wellbeing and Health,Commissioning inc Supporting People,Third Party Payments,442002,Supporting People,13-Jun-2012,2456944-1941855,"8,976.12",THREE RIVERS HOUSING ASSOCIATION LTD.
Adults Wellbeing and Health,Commissioning inc Supporting People,Third Party Payments,442002,Supporting People,13-Jun-2012,2456944-1941913,"43,230.76",THREE RIVERS HOUSING ASSOCIATION LTD.
Adults Wellbeing and Health,Commissioning inc Supporting People,Third Party Payments,441001,Supporting People,13-Jun-2012,2456944-1941930,"6,395.16",THREE RIVERS HOUSING ASSOCIATION LTD.
Adults Wellbeing and Health,Commissioning inc Supporting People,Third Party Payments,442002,Supporting People,13-Jun-2012,2456944-1941931,863.24,THREE RIVERS HOUSING ASSOCIATION LTD.
Adults Wellbeing and Health,Commissioning inc Supporting People,Third Party Payments,442002,Supporting People,13-Jun-2012,2456944-1941934,"3,835.60",THREE RIVERS HOUSING ASSOCIATION LTD.
Adults Wellbeing and Health,Commissioning inc Supporting People,Third Party Payments,443001,Supporting People,13-Jun-2012,2456958-1941863,"1,378.20",WADDINGTON STREET CENTRE LTD.
Adults Wellbeing and Health,Commissioning inc Supporting People,Third Party Payments,441001,Supporting People,13-Jun-2012,2456958-1942032,"5,004.88",WADDINGTON STREET CENTRE LTD.
Adults Wellbeing and Health,Commissioning inc Supporting People,Third Party Payments,441001,Supporting People,13-Jun-2012,2456961-1942033,"9,535.12",WEAR VALLEY WOMENS AID.
Adults Wellbeing and Health,Commissioning inc Supporting People,Third Party Payments,442002,Supporting People,13-Jun-2012,2456693-1941933,"19,676.48",BID SERVICES WITH DEAF PEOPLE.
Adults Wellbeing and Health,Commissioning inc Supporting People,Third Party Payments,442002,Supporting People,13-Jun-2012,2456732-1942101,"24,000.96",CREATIVE SUPPORT LTD.
Adults Wellbeing and Health,Commissioning inc Supporting People,Third Party Payments,443001,Supporting People,13-Jun-2012,2456788-1941816,932.64,HOME HOUSING ASSOCIATION LTD.
Adults Wellbeing and Health,Commissioning inc Supporting People,Third Party Payments,441001,Supporting People,13-Jun-2012,2456866-1941917,"8,360.88",NORCARE LTD.
Adults Wellbeing and Health,Commissioning inc Supporting People,Third Party Payments,441001,Supporting People,13-Jun-2012,2456866-1941923,"10,697.08",NORCARE LTD.
Adults Wellbeing and Health,Commissioning inc Supporting People,Third Party Payments,442002,Supporting People,13-Jun-2012,2456866-1941924,"3,181.20",NORCARE LTD.
Adults Wellbeing and Health,Commissioning inc Supporting People,Third Party Payments,442002,Supporting People,13-Jun-2012,2456866-1941925,"2,021.08",NORCARE LTD.
Adults Wellbeing and Health,Commissioning inc Supporting People,Third Party Payments,443001,Supporting People,13-Jun-2012,2456925-1941717,"10,792.44",ST ANNES SHELTER & HOUSING ACTION.
Adults Wellbeing and Health,Commissioning inc Supporting People,Third Party Payments,443001,Supporting People,13-Jun-2012,2456849-1941871,733.76,REDACTED - PAYMENT TO INDIVIDUAL
Adults Wellbeing and Health,Commissioning inc Supporting People,Third Party Payments,442002,Supporting People,13-Jun-2012,2456763-1941912,"14,754.04",FOUNDATION.
Adults Wellbeing and Health,Commissioning inc Supporting People,Third Party Payments,442002,Supporting People,13-Jun-2012,2456763-1942089,"29,373.15",FOUNDATION.
Adults Wellbeing and Health,Commissioning inc Supporting People,Third Party Payments,443001,Supporting People,13-Jun-2012,2456786-1941874,"10,886.40",HIGHLEA CARE LTD.
Adults Wellbeing and Health,Commissioning inc Supporting People,Third Party Payments,441001,Supporting People,13-Jun-2012,2456941-1941872,"41,167.20",THE CYRENIANS LTD.
Adults Wellbeing and Health,Commissioning inc Supporting People,Supplies and Services,384199,Miscellaneous Expenses,13-Jun-2012,2456794-0105A,"3,750.00",INTEROPERA.
Adults Wellbeing and Health,Commissioning inc Supporting People,Third Party Payments,442002,Supporting People,13-Jun-2012,2456738-1942086,"3,820.28",DERWENTSIDE DOMESTIC ABUSE SERVICE.
Adults Wellbeing and Health,Commissioning inc Supporting People,Supplies and Services,304245,Equipment and Materials,13-Jun-2012,2456909-374,"4,083.33",SCENIC PANTOMIMES LTD.
Adults Wellbeing and Health,Head of Adults,Supplies and Services,338366,Services,13-Jun-2012,2456710-00033,"1,425.00",CARE ABILITY.
Adults Wellbeing and Health,Head of Adults,Supplies and Services,338366,Services,13-Jun-2012,2456710-53140,"2,770.85",CARE ABILITY.
Adults Wellbeing and Health,Head of Adults,Third Party Payments,472101,Purchase of Care,13-Jun-2012,2456890-748,"3,223.58",PREMIER COMMUNITY CARE LTD.
Adults Wellbeing and Health,Head of Adults,Third Party Payments,478111,Purchase of Care,13-Jun-2012,2456898-88465,"1,189.48",REAL LIFE OPTIONS.
Adults Wellbeing and Health,Head of Adults,Third Party Payments,478101,Purchase of Care,13-Jun-2012,2456955-SMM9242,"2,024.32",UNITED RESPONSE.
Adults Wellbeing and Health,Head of Adults,Supplies and Services,384999,Miscellaneous Expenses,13-Jun-2012,2456894-JOB001/15656,750.00,RAINBOW INTERNATIONAL.
Adults Wellbeing and Health,Social Inclusion,Supplies and Services,384999,Miscellaneous Expenses,13-Jun-2012,2456696-00008,"6,617.31",BISHOP CATERING LTD.
Adults Wellbeing and Health,Social Inclusion,Supplies and Services,384199,Miscellaneous Expenses,13-Jun-2012,2456713-2653/FFP/ZZ3,"2,455.31",CHILDREN NORTH EAST.
Assistant Chief Executive,Partnerships & Community Engagement Div.,Supplies and Services,384085,Miscellaneous Expenses,13-Jun-2012,208078-FRED03-12,500.00,DURHAM AMATEUR SWIMMING & WATER POLO CLUB.
Assistant Chief Executive,Partnerships & Community Engagement Div.,Supplies and Services,384085,Miscellaneous Expenses,13-Jun-2012,208118-TAYP02-12TURJ02-12,500.00,MEADOWFIELD & LANGLEY MOOR OVER 60S ASS.
Assistant Chief Executive,Partnerships & Community Engagement Div.,Supplies and Services,384085,Miscellaneous Expenses,13-Jun-2012,208180-MYED02-12,700.00,SEATON COMMUNITY CENTRE.
Assistant Chief Executive,Partnerships & Community Engagement Div.,Transfer Payments,525030,Other,13-Jun-2012,2456697-4TOG009AB11/4TOG014-NB11,"12,000.00",BISHOP MIDDLEHAM PARISH COUNCIL.
Children and Young Peoples Services,CYPS - Local Authority,Transport,210057,Repair and Maintenance of Vehicles,13-Jun-2012,208037-BCASC49041-2012,"1,052.00",AA BUSINESS SERVICES.
Children and Young Peoples Services,CYPS - Local Authority,Supplies and Services,364305,Grants to Voluntary Organisations,13-Jun-2012,208127-AC,679.57,REDACTED - PAYMENT TO INDIVIDUAL
Children and Young Peoples Services,CYPS - Local Authority,Third Party Payments,486022,Service Level Agreements,13-Jun-2012,208171-PADD,"1,010.00",POT A DOODLE DO.
Children and Young Peoples Services,CYPS - Local Authority,Third Party Payments,425040,Rendered by Voluntary Organisations,13-Jun-2012,2456690-104305044,"3,042.30",BARNARDOS.
Children and Young Peoples Services,CYPS - Local Authority,Third Party Payments,425040,Rendered by Voluntary Organisations,13-Jun-2012,2456690-104305045,"3,143.71",BARNARDOS.
Children and Young Peoples Services,CYPS - Local Authority,Third Party Payments,425040,Rendered by Voluntary Organisations,13-Jun-2012,2456690-104305099,"3,996.60",BARNARDOS.
Children and Young Peoples Services,CYPS - Local Authority,Third Party Payments,425040,Rendered by Voluntary Organisations,13-Jun-2012,2456690-104305100,"4,129.82",BARNARDOS.
Children and Young Peoples Services,CYPS - Local Authority,Transport,230007,Contract Hire,13-Jun-2012,2456691-330,"1,362.24",BEELINE MINI BUSES.
Children and Young Peoples Services,CYPS - Local Authority,Transport,230007,Contract Hire,13-Jun-2012,2456691-331,"2,527.36",BEELINE MINI BUSES.
Children and Young Peoples Services,CYPS - Local Authority,Transfer Payments,510026,School Children,13-Jun-2012,2456694-MP-2012/2013,"1,000.00",BISHOP AUCKLAND COLLEGE NURSERY.
Children and Young Peoples Services,CYPS - Local Authority,Transfer Payments,510026,School Children,13-Jun-2012,2456699-MP2012/2013,"1,000.00",BLUE SKY CHILDCARE.
Children and Young Peoples Services,CYPS - Local Authority,Premises,125009,Rents,13-Jun-2012,2456702-D10193,"10,737.11",BRADLEY HALL CHARTERED SURVEYORS CLIENT ACCOUNT.
Children and Young Peoples Services,CYPS - Local Authority,Premises,125009,Rents,13-Jun-2012,2456702-D10194,"4,223.64",BRADLEY HALL CHARTERED SURVEYORS CLIENT ACCOUNT.
Children and Young Peoples Services,CYPS - Local Authority,Transfer Payments,510026,School Children,13-Jun-2012,2456706-PP,600.00,REDACTED - PAYMENT TO INDIVIDUAL
Children and Young Peoples Services,CYPS - Local Authority,Transfer Payments,510026,School Children,13-Jun-2012,2456707-APP2012/2013,600.00,BUSY BEES.
Children and Young Peoples Services,CYPS - Local Authority,Premises,125009,Rents,13-Jun-2012,2456708-U1JUN-AUG12,"4,131.50",C & C PROPERTY.
Children and Young Peoples Services,CYPS - Local Authority,Transfer Payments,510026,School Children,13-Jun-2012,2456711-MP-2012/2013,"1,000.00",CASTLE VIEW PRIVATE DAY NURSERY LTD.
Children and Young Peoples Services,CYPS - Local Authority,Transport,230007,Contract Hire,13-Jun-2012,2456719-43242,"4,180.00",CJ GRIERSON.
Children and Young Peoples Services,CYPS - Local Authority,Transport,230007,Contract Hire,13-Jun-2012,2456719-43243,"2,741.20",CJ GRIERSON.
Children and Young Peoples Services,CYPS - Local Authority,Construction Work,908105,Construction work,13-Jun-2012,2456721-INS1-B-C,"12,914.31",CLUGSTON CONSTRUCTION LTD.
Children and Young Peoples Services,CYPS - Local Authority,Transport,230007,Contract Hire,13-Jun-2012,2456723-C/7004,"5,939.34",COCHRANES T/A KELVIN TRAVEL.
Children and Young Peoples Services,CYPS - Local Authority,Transport,230007,Contract Hire,13-Jun-2012,2456723-C/7005,"2,640.00",COCHRANES T/A KELVIN TRAVEL.
Children and Young Peoples Services,CYPS - Local Authority,Construction Work,908105,Construction work,13-Jun-2012,2456725-182927,641.25,COMET BUSINESS SERVICE.
